Payment Date,Transaction Number,Net Amount,Supplier (Beneficiary) Name,Local Supplier Internal Reference,Directorate / Service Where Expenditure Incurred,Service Category Label,Service Category URI,SeRCOP Expenditure Category,SeRCOP Expenditure Code,Purpose of Spend,SeRCOP Detailed Expenditure Code,Capital/Revenue,Procurement Classification
22/07/2022,2439076,1006.00,NORTH TYNESIDE COUNCIL,102767,Commissioning & Asset Management,Children's & Education Services,103,Supplies and Services,504,Miscellaneous Expenses,5034,Revenue,NON INFLUENCIBLE.PUBLIC SECTOR
05/07/2022,2431586,550.00,CLEAPSS,275273,"Health, Education, Care and Safeguarding",Children's & Education Services,103,Third Party Payments,505,Other Establishments,5041,Revenue,SUBSCRIPTIONS & PUBLICATIONS.MEMBERSHIPS
11/07/2022,2433458,585.52,Redacted Personal Data,402590,"Health, Education, Care and Safeguarding",Children's & Education Services,103,Third Party Payments,505,Other Establishments,5041,Revenue,NON INFLUENCIBLE.INDIVIDUAL
15/07/2022,2435019,242.00,ORANGE PCS LTD,345889,"Health, Education, Care and Safeguarding",Children's & Education Services,103,Supplies and Services,504,Communications & Computing,5028,Revenue,TELECOMMUNICATIONS.MOBILE
15/07/2022,2435019,284.00,ORANGE PCS LTD,345889,"Health, Education, Care and Safeguarding",Children's & Education Services,103,Supplies and Services,504,Communications & Computing,5028,Revenue,TELECOMMUNICATIONS.MOBILE
18/07/2022,2435954,3400.00,Redacted Personal Data,394213,"Health, Education, Care and Safeguarding",Children's & Education Services,103,Third Party Payments,505,Private Contractors,5042,Revenue,CONSULTANCY.CONSULTANCY
27/07/2022,2441321,270.00,Redacted Personal Data,355263,"Health, Education, Care and Safeguarding",Children's & Education Services,103,Supplies and Services,504,"Printing, Stationery and General Office Expenses",5026,Revenue,PUBLIC HEALTH.OCCUPATIONAL THERAPY SERVICES
27/07/2022,2441363,1800.00,Redacted Personal Data,400291,"Health, Education, Care and Safeguarding",Children's & Education Services,103,Third Party Payments,505,Private Contractors,5042,Revenue,CONSULTANCY.CONSULTANCY
27/07/2022,2441364,1142.86,Redacted Personal Data,400207,"Health, Education, Care and Safeguarding",Children's & Education Services,103,Third Party Payments,505,Private Contractors,5042,Revenue,CONSULTANCY.CONSULTANCY
29/07/2022,2442174,1000.00,DENBIGH COMMUNITY PRIMARY SCHOOL,276823,"Health, Education, Care and Safeguarding",Children's & Education Services,103,Third Party Payments,505,Independent Units within the Council,5035,Revenue,NON INFLUENCIBLE.NT SCHOOLS
29/07/2022,2442199,1248.80,MICHAEL REEVES EDUCATION CONSULTANT,402579,"Health, Education, Care and Safeguarding",Children's & Education Services,103,Third Party Payments,505,Other Establishments,5041,Revenue,CONSULTANCY.CONSULTANCY
07/07/2022,2431916,243.10,BUNZL UK LTD T/A BUNZL CLEANING & HYGIENE SUPPLIES,027747,"Health, Education, Care and Safeguarding",Children's & Education Services,103,Premises-Related Expenditure,502,Cleaning and Domestic Supplies,5012,Revenue,CLEANING & JANITORIAL.CLEANING MATERIALS
08/07/2022,2432496,121.32,OCE (UK) LIMITED,015952,"Health, Education, Care and Safeguarding",Children's & Education Services,103,Supplies and Services,504,"Printing, Stationery and General Office Expenses",5026,Revenue,OFFICE & REPROGRAPHICS EQUIPMENT.PHOTOCOPIERS & MFDS
08/07/2022,2432496,121.32,OCE (UK) LIMITED,015952,"Health, Education, Care and Safeguarding",Children's & Education Services,103,Supplies and Services,504,"Printing, Stationery and General Office Expenses",5026,Revenue,OFFICE & REPROGRAPHICS EQUIPMENT.PHOTOCOPIERS & MFDS
08/07/2022,2432496,121.32,OCE (UK) LIMITED,015952,"Health, Education, Care and Safeguarding",Children's & Education Services,103,Supplies and Services,504,"Printing, Stationery and General Office Expenses",5026,Revenue,OFFICE & REPROGRAPHICS EQUIPMENT.PHOTOCOPIERS & MFDS
20/07/2022,2438597,0.51,OCE (UK) LIMITED,015952,"Health, Education, Care and Safeguarding",Children's & Education Services,103,Supplies and Services,504,"Printing, Stationery and General Office Expenses",5026,Revenue,OFFICE & REPROGRAPHICS EQUIPMENT.PHOTOCOPIERS & MFDS
20/07/2022,2438597,1.22,OCE (UK) LIMITED,015952,"Health, Education, Care and Safeguarding",Children's & Education Services,103,Supplies and Services,504,"Printing, Stationery and General Office Expenses",5026,Revenue,OFFICE & REPROGRAPHICS EQUIPMENT.PHOTOCOPIERS & MFDS
20/07/2022,2438597,1.29,OCE (UK) LIMITED,015952,"Health, Education, Care and Safeguarding",Children's & Education Services,103,Supplies and Services,504,"Printing, Stationery and General Office Expenses",5026,Revenue,OFFICE & REPROGRAPHICS EQUIPMENT.PHOTOCOPIERS & MFDS
20/07/2022,2438597,1.75,OCE (UK) LIMITED,015952,"Health, Education, Care and Safeguarding",Children's & Education Services,103,Supplies and Services,504,"Printing, Stationery and General Office Expenses",5026,Revenue,OFFICE & REPROGRAPHICS EQUIPMENT.PHOTOCOPIERS & MFDS
20/07/2022,2438597,6.82,OCE (UK) LIMITED,015952,"Health, Education, Care and Safeguarding",Children's & Education Services,103,Supplies and Services,504,"Printing, Stationery and General Office Expenses",5026,Revenue,OFFICE & REPROGRAPHICS EQUIPMENT.PHOTOCOPIERS & MFDS
20/07/2022,2438597,6.82,OCE (UK) LIMITED,015952,"Health, Education, Care and Safeguarding",Children's & Education Services,103,Supplies and Services,504,"Printing, Stationery and General Office Expenses",5026,Revenue,OFFICE & REPROGRAPHICS EQUIPMENT.PHOTOCOPIERS & MFDS
20/07/2022,2438597,6.82,OCE (UK) LIMITED,015952,"Health, Education, Care and Safeguarding",Children's & Education Services,103,Supplies and Services,504,"Printing, Stationery and General Office Expenses",5026,Revenue,OFFICE & REPROGRAPHICS EQUIPMENT.PHOTOCOPIERS & MFDS
20/07/2022,2438597,6.82,OCE (UK) LIMITED,015952,"Health, Education, Care and Safeguarding",Children's & Education Services,103,Supplies and Services,504,"Printing, Stationery and General Office Expenses",5026,Revenue,OFFICE & REPROGRAPHICS EQUIPMENT.PHOTOCOPIERS & MFDS
20/07/2022,2438597,6.82,OCE (UK) LIMITED,015952,"Health, Education, Care and Safeguarding",Children's & Education Services,103,Supplies and Services,504,"Printing, Stationery and General Office Expenses",5026,Revenue,OFFICE & REPROGRAPHICS EQUIPMENT.PHOTOCOPIERS & MFDS
20/07/2022,2438597,6.82,OCE (UK) LIMITED,015952,"Health, Education, Care and Safeguarding",Children's & Education Services,103,Supplies and Services,504,"Printing, Stationery and General Office Expenses",5026,Revenue,OFFICE & REPROGRAPHICS EQUIPMENT.PHOTOCOPIERS & MFDS
20/07/2022,2438597,6.82,OCE (UK) LIMITED,015952,"Health, Education, Care and Safeguarding",Children's & Education Services,103,Supplies and Services,504,"Printing, Stationery and General Office Expenses",5026,Revenue,OFFICE & REPROGRAPHICS EQUIPMENT.PHOTOCOPIERS & MFDS
20/07/2022,2438597,7.07,OCE (UK) LIMITED,015952,"Health, Education, Care and Safeguarding",Children's & Education Services,103,Supplies and Services,504,"Printing, Stationery and General Office Expenses",5026,Revenue,OFFICE & REPROGRAPHICS EQUIPMENT.PHOTOCOPIERS & MFDS
20/07/2022,2438597,34.39,OCE (UK) LIMITED,015952,"Health, Education, Care and Safeguarding",Children's & Education Services,103,Supplies and Services,504,"Printing, Stationery and General Office Expenses",5026,Revenue,OFFICE & REPROGRAPHICS EQUIPMENT.PHOTOCOPIERS & MFDS
20/07/2022,2438597,37.29,OCE (UK) LIMITED,015952,"Health, Education, Care and Safeguarding",Children's & Education Services,103,Supplies and Services,504,"Printing, Stationery and General Office Expenses",5026,Revenue,OFFICE & REPROGRAPHICS EQUIPMENT.PHOTOCOPIERS & MFDS
20/07/2022,2438597,51.22,OCE (UK) LIMITED,015952,"Health, Education, Care and Safeguarding",Children's & Education Services,103,Supplies and Services,504,"Printing, Stationery and General Office Expenses",5026,Revenue,OFFICE & REPROGRAPHICS EQUIPMENT.PHOTOCOPIERS & MFDS
20/07/2022,2438597,124.30,OCE (UK) LIMITED,015952,"Health, Education, Care and Safeguarding",Children's & Education Services,103,Supplies and Services,504,"Printing, Stationery and General Office Expenses",5026,Revenue,OFFICE & REPROGRAPHICS EQUIPMENT.PHOTOCOPIERS & MFDS
20/07/2022,2438597,194.80,OCE (UK) LIMITED,015952,"Health, Education, Care and Safeguarding",Children's & Education Services,103,Supplies and Services,504,"Printing, Stationery and General Office Expenses",5026,Revenue,OFFICE & REPROGRAPHICS EQUIPMENT.PHOTOCOPIERS & MFDS
28/07/2022,2441538,39.69,OCE (UK) LIMITED,015952,"Health, Education, Care and Safeguarding",Children's & Education Services,103,Supplies and Services,504,"Printing, Stationery and General Office Expenses",5026,Revenue,OFFICE & REPROGRAPHICS EQUIPMENT.PHOTOCOPIERS & MFDS
28/07/2022,2441538,39.69,OCE (UK) LIMITED,015952,"Health, Education, Care and Safeguarding",Children's & Education Services,103,Supplies and Services,504,"Printing, Stationery and General Office Expenses",5026,Revenue,OFFICE & REPROGRAPHICS EQUIPMENT.PHOTOCOPIERS & MFDS
28/07/2022,2441538,39.69,OCE (UK) LIMITED,015952,"Health, Education, Care and Safeguarding",Children's & Education Services,103,Supplies and Services,504,"Printing, Stationery and General Office Expenses",5026,Revenue,OFFICE & REPROGRAPHICS EQUIPMENT.PHOTOCOPIERS & MFDS
28/07/2022,2441538,39.69,OCE (UK) LIMITED,015952,"Health, Education, Care and Safeguarding",Children's & Education Services,103,Supplies and Services,504,"Printing, Stationery and General Office Expenses",5026,Revenue,OFFICE & REPROGRAPHICS EQUIPMENT.PHOTOCOPIERS & MFDS
28/07/2022,2441538,39.69,OCE (UK) LIMITED,015952,"Health, Education, Care and Safeguarding",Children's & Education Services,103,Supplies and Services,504,"Printing, Stationery and General Office Expenses",5026,Revenue,OFFICE & REPROGRAPHICS EQUIPMENT.PHOTOCOPIERS & MFDS
28/07/2022,2441538,39.69,OCE (UK) LIMITED,015952,"Health, Education, Care and Safeguarding",Children's & Education Services,103,Supplies and Services,504,"Printing, Stationery and General Office Expenses",5026,Revenue,OFFICE & REPROGRAPHICS EQUIPMENT.PHOTOCOPIERS & MFDS
28/07/2022,2441538,39.69,OCE (UK) LIMITED,015952,"Health, Education, Care and Safeguarding",Children's & Education Services,103,Supplies and Services,504,"Printing, Stationery and General Office Expenses",5026,Revenue,OFFICE & REPROGRAPHICS EQUIPMENT.PHOTOCOPIERS & MFDS
28/07/2022,2441538,124.24,OCE (UK) LIMITED,015952,"Health, Education, Care and Safeguarding",Children's & Education Services,103,Supplies and Services,504,"Printing, Stationery and General Office Expenses",5026,Revenue,OFFICE & REPROGRAPHICS EQUIPMENT.PHOTOCOPIERS & MFDS
28/07/2022,2441538,127.11,OCE (UK) LIMITED,015952,"Health, Education, Care and Safeguarding",Children's & Education Services,103,Supplies and Services,504,"Printing, Stationery and General Office Expenses",5026,Revenue,OFFICE & REPROGRAPHICS EQUIPMENT.PHOTOCOPIERS & MFDS
28/07/2022,2441538,127.11,OCE (UK) LIMITED,015952,"Health, Education, Care and Safeguarding",Children's & Education Services,103,Supplies and Services,504,"Printing, Stationery and General Office Expenses",5026,Revenue,OFFICE & REPROGRAPHICS EQUIPMENT.PHOTOCOPIERS & MFDS
28/07/2022,2441538,236.44,OCE (UK) LIMITED,015952,"Health, Education, Care and Safeguarding",Children's & Education Services,103,Supplies and Services,504,"Printing, Stationery and General Office Expenses",5026,Revenue,OFFICE & REPROGRAPHICS EQUIPMENT.PHOTOCOPIERS & MFDS
29/07/2022,2442167,0.05,OCE (UK) LIMITED,015952,"Health, Education, Care and Safeguarding",Children's & Education Services,103,Supplies and Services,504,"Printing, Stationery and General Office Expenses",5026,Revenue,OFFICE & REPROGRAPHICS EQUIPMENT.PHOTOCOPIERS & MFDS
29/07/2022,2442167,0.38,OCE (UK) LIMITED,015952,"Health, Education, Care and Safeguarding",Children's & Education Services,103,Supplies and Services,504,"Printing, Stationery and General Office Expenses",5026,Revenue,OFFICE & REPROGRAPHICS EQUIPMENT.PHOTOCOPIERS & MFDS
29/07/2022,2442167,0.69,OCE (UK) LIMITED,015952,"Health, Education, Care and Safeguarding",Children's & Education Services,103,Supplies and Services,504,"Printing, Stationery and General Office Expenses",5026,Revenue,OFFICE & REPROGRAPHICS EQUIPMENT.PHOTOCOPIERS & MFDS
29/07/2022,2442167,0.86,OCE (UK) LIMITED,015952,"Health, Education, Care and Safeguarding",Children's & Education Services,103,Supplies and Services,504,"Printing, Stationery and General Office Expenses",5026,Revenue,OFFICE & REPROGRAPHICS EQUIPMENT.PHOTOCOPIERS & MFDS
29/07/2022,2442167,0.86,OCE (UK) LIMITED,015952,"Health, Education, Care and Safeguarding",Children's & Education Services,103,Supplies and Services,504,"Printing, Stationery and General Office Expenses",5026,Revenue,OFFICE & REPROGRAPHICS EQUIPMENT.PHOTOCOPIERS & MFDS
29/07/2022,2442167,0.86,OCE (UK) LIMITED,015952,"Health, Education, Care and Safeguarding",Children's & Education Services,103,Supplies and Services,504,"Printing, Stationery and General Office Expenses",5026,Revenue,OFFICE & REPROGRAPHICS EQUIPMENT.PHOTOCOPIERS & MFDS
29/07/2022,2442167,0.86,OCE (UK) LIMITED,015952,"Health, Education, Care and Safeguarding",Children's & Education Services,103,Supplies and Services,504,"Printing, Stationery and General Office Expenses",5026,Revenue,OFFICE & REPROGRAPHICS EQUIPMENT.PHOTOCOPIERS & MFDS
29/07/2022,2442167,0.86,OCE (UK) LIMITED,015952,"Health, Education, Care and Safeguarding",Children's & Education Services,103,Supplies and Services,504,"Printing, Stationery and General Office Expenses",5026,Revenue,OFFICE & REPROGRAPHICS EQUIPMENT.PHOTOCOPIERS & MFDS
29/07/2022,2442167,0.86,OCE (UK) LIMITED,015952,"Health, Education, Care and Safeguarding",Children's & Education Services,103,Supplies and Services,504,"Printing, Stationery and General Office Expenses",5026,Revenue,OFFICE & REPROGRAPHICS EQUIPMENT.PHOTOCOPIERS & MFDS
29/07/2022,2442167,0.86,OCE (UK) LIMITED,015952,"Health, Education, Care and Safeguarding",Children's & Education Services,103,Supplies and Services,504,"Printing, Stationery and General Office Expenses",5026,Revenue,OFFICE & REPROGRAPHICS EQUIPMENT.PHOTOCOPIERS & MFDS
29/07/2022,2442167,23.33,OCE (UK) LIMITED,015952,"Health, Education, Care and Safeguarding",Children's & Education Services,103,Supplies and Services,504,"Printing, Stationery and General Office Expenses",5026,Revenue,OFFICE & REPROGRAPHICS EQUIPMENT.PHOTOCOPIERS & MFDS
29/07/2022,2442167,38.88,OCE (UK) LIMITED,015952,"Health, Education, Care and Safeguarding",Children's & Education Services,103,Supplies and Services,504,"Printing, Stationery and General Office Expenses",5026,Revenue,OFFICE & REPROGRAPHICS EQUIPMENT.PHOTOCOPIERS & MFDS
29/07/2022,2442173,2034.99,TYNE TEES SECURITY LTD,389237,"Health, Education, Care and Safeguarding",Children's & Education Services,103,Third Party Payments,505,Private Contractors,5042,Revenue,FIRE & SECURITY.MANNED GUARDING
11/07/2022,2433525,7320.00,COOPERS TOURMASTER TRAVEL LIMITED,304672,"Health, Education, Care and Safeguarding",Children's & Education Services,103,Transport,503,Contract Hire and Operating Leases,5018,Revenue,PUBLIC TRANSPORT.TAXI SERVICES
29/07/2022,2442234,3540.00,COOPERS TOURMASTER TRAVEL LIMITED,304672,"Health, Education, Care and Safeguarding",Children's & Education Services,103,Transport,503,Contract Hire and Operating Leases,5018,Revenue,PUBLIC TRANSPORT.TAXI SERVICES
08/07/2022,2432496,121.32,OCE (UK) LIMITED,015952,"Health, Education, Care and Safeguarding",Children's & Education Services,103,Supplies and Services,504,"Printing, Stationery and General Office Expenses",5026,Revenue,OFFICE & REPROGRAPHICS EQUIPMENT.PHOTOCOPIERS & MFDS
20/07/2022,2438597,6.82,OCE (UK) LIMITED,015952,"Health, Education, Care and Safeguarding",Children's & Education Services,103,Supplies and Services,504,"Printing, Stationery and General Office Expenses",5026,Revenue,OFFICE & REPROGRAPHICS EQUIPMENT.PHOTOCOPIERS & MFDS
28/07/2022,2441538,39.69,OCE (UK) LIMITED,015952,"Health, Education, Care and Safeguarding",Children's & Education Services,103,Supplies and Services,504,"Printing, Stationery and General Office Expenses",5026,Revenue,OFFICE & REPROGRAPHICS EQUIPMENT.PHOTOCOPIERS & MFDS
29/07/2022,2442167,0.53,OCE (UK) LIMITED,015952,"Health, Education, Care and Safeguarding",Children's & Education Services,103,Supplies and Services,504,"Printing, Stationery and General Office Expenses",5026,Revenue,OFFICE & REPROGRAPHICS EQUIPMENT.PHOTOCOPIERS & MFDS
29/07/2022,2442167,0.86,OCE (UK) LIMITED,015952,"Health, Education, Care and Safeguarding",Children's & Education Services,103,Supplies and Services,504,"Printing, Stationery and General Office Expenses",5026,Revenue,OFFICE & REPROGRAPHICS EQUIPMENT.PHOTOCOPIERS & MFDS
29/07/2022,2442167,16.15,OCE (UK) LIMITED,015952,"Health, Education, Care and Safeguarding",Children's & Education Services,103,Supplies and Services,504,"Printing, Stationery and General Office Expenses",5026,Revenue,OFFICE & REPROGRAPHICS EQUIPMENT.PHOTOCOPIERS & MFDS
01/07/2022,2428064,1000.00,REFUGEE COUNCIL,327916,Resources,Children's & Education Services,103,Supplies and Services,504,Miscellaneous Expenses,5034,Revenue,HUMAN RESOURCES.TRAINING & CONFERENCES
01/07/2022,2428064,1400.00,REFUGEE COUNCIL,327916,Resources,Children's & Education Services,103,Supplies and Services,504,Miscellaneous Expenses,5034,Revenue,HUMAN RESOURCES.TRAINING & CONFERENCES
01/07/2022,2428091,825.00,IODA LTD,375460,Resources,Children's & Education Services,103,Supplies and Services,504,Contribution to Provisions,5033,Revenue,HUMAN RESOURCES.TRAINING & CONFERENCES
05/07/2022,2431438,274.00,UNIVERSITY HOSPITALS BIRMINGHAM,397816,Resources,Children's & Education Services,103,Supplies and Services,504,Miscellaneous Expenses,5034,Revenue,SUBSCRIPTIONS & PUBLICATIONS.BOOKS & PUBLICATIONS
06/07/2022,2431667,660.00,ELIA INTERNATIONAL LIMITED,401096,Resources,Children's & Education Services,103,Supplies and Services,504,Miscellaneous Expenses,5034,Revenue,CONSULTANCY.CONSULTANCY
06/07/2022,2431744,3984.00,DAC BEACHCROFT LLP,390542,Resources,Children's & Education Services,103,Supplies and Services,504,Miscellaneous Expenses,5034,Revenue,FINANCIAL SERVICES.FINANCIAL SERVICES
08/07/2022,2432346,411.25,SPANISH CITY (NE) LIMITED,396834,Resources,Children's & Education Services,103,Supplies and Services,504,Miscellaneous Expenses,5034,Revenue,FACILITIES MANAGEMENT.PROPERTY MANAGEMENT
08/07/2022,2432381,2050.00,SIGNS4LIFE,402805,Resources,Children's & Education Services,103,Supplies and Services,504,Miscellaneous Expenses,5034,Revenue,HUMAN RESOURCES.TRAINING & CONFERENCES
13/07/2022,2434503,1425.00,PEARLCATCHERS LTD,390252,Resources,Children's & Education Services,103,Supplies and Services,504,Contribution to Provisions,5033,Revenue,HUMAN RESOURCES.TRAINING & CONFERENCES
18/07/2022,2435908,600.00,ELAINE CHANDLER,401297,Resources,Children's & Education Services,103,Supplies and Services,504,Miscellaneous Expenses,5034,Revenue,HUMAN RESOURCES.TRAINING & CONFERENCES
18/07/2022,2435972,269.00,INSTITUTE OF GOVERNMENT AND PUBLIC POLICY,311445,Resources,Children's & Education Services,103,Supplies and Services,504,Miscellaneous Expenses,5034,Revenue,HUMAN RESOURCES.TRAINING & CONFERENCES
19/07/2022,2438310,270.00,MBL SEMINARS LIMITED,377458,Resources,Children's & Education Services,103,Supplies and Services,504,Miscellaneous Expenses,5034,Revenue,HUMAN RESOURCES.TRAINING & CONFERENCES
19/07/2022,2438313,345.00,IODA LTD,375460,Resources,Children's & Education Services,103,Supplies and Services,504,Contribution to Provisions,5033,Revenue,HUMAN RESOURCES.TRAINING & CONFERENCES
19/07/2022,2438313,825.00,IODA LTD,375460,Resources,Children's & Education Services,103,Supplies and Services,504,Contribution to Provisions,5033,Revenue,HUMAN RESOURCES.TRAINING & CONFERENCES
19/07/2022,2438317,425.00,HEADS,384634,Resources,Children's & Education Services,103,Supplies and Services,504,Miscellaneous Expenses,5034,Revenue,HUMAN RESOURCES.TRAINING & CONFERENCES
20/07/2022,2438631,835.00,SERCO LIMITED,320169,Resources,Children's & Education Services,103,Supplies and Services,504,Miscellaneous Expenses,5034,Revenue,HUMAN RESOURCES.PROFESSIONAL & ADVISORY SERVICES
20/07/2022,2438634,300.00,LLG Legal Training,250311,Resources,Children's & Education Services,103,Employees,501,Indirect Employee Expenses,5002,Revenue,HUMAN RESOURCES.TRAINING & CONFERENCES
21/07/2022,2438709,270.00,MBL SEMINARS LIMITED,377458,Resources,Children's & Education Services,103,Employees,501,Indirect Employee Expenses,5002,Revenue,HUMAN RESOURCES.TRAINING & CONFERENCES
25/07/2022,2439933,916.57,CALM TRAINING SERVICES LTD,347275,Resources,Children's & Education Services,103,Supplies and Services,504,Miscellaneous Expenses,5034,Revenue,HUMAN RESOURCES.TRAINING & CONFERENCES
26/07/2022,2440170,42220.00,LEARNING POOL LIMITED,373128,Resources,Children's & Education Services,103,Supplies and Services,504,Miscellaneous Expenses,5034,Revenue,HUMAN RESOURCES.TRAINING & CONFERENCES
29/07/2022,2442116,1200.00,PEARLCATCHERS LTD,390252,Resources,Children's & Education Services,103,Supplies and Services,504,Contribution to Provisions,5033,Revenue,HUMAN RESOURCES.TRAINING & CONFERENCES
29/07/2022,2442146,2000.00,LEARNING POOL LIMITED,373128,Resources,Children's & Education Services,103,Supplies and Services,504,Miscellaneous Expenses,5034,Revenue,HUMAN RESOURCES.TRAINING & CONFERENCES
29/07/2022,2442160,1360.00,INSTITUTE OF SWIMMING,379348,Resources,Children's & Education Services,103,Employees,501,Indirect Employee Expenses,5002,Revenue,HUMAN RESOURCES.TRAINING & CONFERENCES
05/07/2022,2431545,3.75,PEARSON EDUCATION LTD,327399,"Health, Education, Care and Safeguarding",Children's & Education Services,103,Supplies and Services,504,Equipment,5023,Revenue,SUBSCRIPTIONS & PUBLICATIONS.BOOKS & PUBLICATIONS
05/07/2022,2431545,343.96,PEARSON EDUCATION LTD,327399,"Health, Education, Care and Safeguarding",Children's & Education Services,103,Supplies and Services,504,Equipment,5023,Revenue,SUBSCRIPTIONS & PUBLICATIONS.BOOKS & PUBLICATIONS
05/07/2022,2431605,526.00,FRONTING THE CHALLENGE PROJECTS LTD T/A THRIVE,394559,"Health, Education, Care and Safeguarding",Children's & Education Services,103,Supplies and Services,504,Grants and Subscriptions,5031,Revenue,HUMAN RESOURCES.TRAINING & CONFERENCES
06/07/2022,2431749,255.83,CLICK TRAVEL LIMITED,388377,"Health, Education, Care and Safeguarding",Children's & Education Services,103,Supplies and Services,504,Expenses,5030,Revenue,HUMAN RESOURCES.TRAVEL & SUBSISTENCE
06/07/2022,2431749,342.67,CLICK TRAVEL LIMITED,388377,"Health, Education, Care and Safeguarding",Children's & Education Services,103,Supplies and Services,504,Expenses,5030,Revenue,HUMAN RESOURCES.TRAVEL & SUBSISTENCE
06/07/2022,2431749,380.83,CLICK TRAVEL LIMITED,388377,"Health, Education, Care and Safeguarding",Children's & Education Services,103,Supplies and Services,504,Expenses,5030,Revenue,HUMAN RESOURCES.TRAVEL & SUBSISTENCE
08/07/2022,2432496,178.36,OCE (UK) LIMITED,015952,"Health, Education, Care and Safeguarding",Children's & Education Services,103,Supplies and Services,504,"Printing, Stationery and General Office Expenses",5026,Revenue,OFFICE & REPROGRAPHICS EQUIPMENT.PHOTOCOPIERS & MFDS
13/07/2022,2434609,513.60,PEARSON EDUCATION LTD,327399,"Health, Education, Care and Safeguarding",Children's & Education Services,103,Supplies and Services,504,Equipment,5023,Revenue,SUBSCRIPTIONS & PUBLICATIONS.BOOKS & PUBLICATIONS
20/07/2022,2438597,6.82,OCE (UK) LIMITED,015952,"Health, Education, Care and Safeguarding",Children's & Education Services,103,Supplies and Services,504,"Printing, Stationery and General Office Expenses",5026,Revenue,OFFICE & REPROGRAPHICS EQUIPMENT.PHOTOCOPIERS & MFDS
28/07/2022,2441538,39.69,OCE (UK) LIMITED,015952,"Health, Education, Care and Safeguarding",Children's & Education Services,103,Supplies and Services,504,"Printing, Stationery and General Office Expenses",5026,Revenue,OFFICE & REPROGRAPHICS EQUIPMENT.PHOTOCOPIERS & MFDS
29/07/2022,2442167,0.48,OCE (UK) LIMITED,015952,"Health, Education, Care and Safeguarding",Children's & Education Services,103,Supplies and Services,504,"Printing, Stationery and General Office Expenses",5026,Revenue,OFFICE & REPROGRAPHICS EQUIPMENT.PHOTOCOPIERS & MFDS
29/07/2022,2442167,0.86,OCE (UK) LIMITED,015952,"Health, Education, Care and Safeguarding",Children's & Education Services,103,Supplies and Services,504,"Printing, Stationery and General Office Expenses",5026,Revenue,OFFICE & REPROGRAPHICS EQUIPMENT.PHOTOCOPIERS & MFDS
29/07/2022,2442167,1.06,OCE (UK) LIMITED,015952,"Health, Education, Care and Safeguarding",Children's & Education Services,103,Supplies and Services,504,"Printing, Stationery and General Office Expenses",5026,Revenue,OFFICE & REPROGRAPHICS EQUIPMENT.PHOTOCOPIERS & MFDS
29/07/2022,2442167,20.80,OCE (UK) LIMITED,015952,"Health, Education, Care and Safeguarding",Children's & Education Services,103,Supplies and Services,504,"Printing, Stationery and General Office Expenses",5026,Revenue,OFFICE & REPROGRAPHICS EQUIPMENT.PHOTOCOPIERS & MFDS
29/07/2022,2442167,62.54,OCE (UK) LIMITED,015952,"Health, Education, Care and Safeguarding",Children's & Education Services,103,Supplies and Services,504,"Printing, Stationery and General Office Expenses",5026,Revenue,OFFICE & REPROGRAPHICS EQUIPMENT.PHOTOCOPIERS & MFDS
01/07/2022,2428083,4631.82,YOUNG FOUNDATIONS LTD,358691,Commissioning & Asset Management,Children's & Education Services,103,Third Party Payments,505,Private Contractors,5042,Revenue,SOCIAL CARE.CARE SERVICES
01/07/2022,2428083,4631.82,YOUNG FOUNDATIONS LTD,358691,Commissioning & Asset Management,Children's & Education Services,103,Third Party Payments,505,Private Contractors,5042,Revenue,SOCIAL CARE.CARE SERVICES
01/07/2022,2428083,4631.82,YOUNG FOUNDATIONS LTD,358691,Commissioning & Asset Management,Children's & Education Services,103,Third Party Payments,505,Private Contractors,5042,Revenue,SOCIAL CARE.CARE SERVICES
01/07/2022,2428083,4814.75,YOUNG FOUNDATIONS LTD,358691,Commissioning & Asset Management,Children's & Education Services,103,Third Party Payments,505,Private Contractors,5042,Revenue,SOCIAL CARE.CARE SERVICES
05/07/2022,2431597,5540.52,YOUNG FOUNDATIONS LTD,358691,Commissioning & Asset Management,Children's & Education Services,103,Third Party Payments,505,Private Contractors,5042,Revenue,SOCIAL CARE.CARE SERVICES
13/07/2022,2434513,3750.00,RADICAL SERVICES LTD,316763,Commissioning & Asset Management,Children's & Education Services,103,Third Party Payments,505,Private Contractors,5042,Revenue,SOCIAL CARE.NURSING & RESIDENTIAL CARE
13/07/2022,2434513,3750.00,RADICAL SERVICES LTD,316763,Commissioning & Asset Management,Children's & Education Services,103,Third Party Payments,505,Private Contractors,5042,Revenue,SOCIAL CARE.NURSING & RESIDENTIAL CARE
14/07/2022,2434673,11398.67,ESPA LIMITED,327122,Commissioning & Asset Management,Children's & Education Services,103,Third Party Payments,505,Private Contractors,5042,Revenue,SOCIAL CARE.NURSING & RESIDENTIAL CARE
14/07/2022,2434673,11398.67,ESPA LIMITED,327122,Commissioning & Asset Management,Children's & Education Services,103,Third Party Payments,505,Private Contractors,5042,Revenue,SOCIAL CARE.NURSING & RESIDENTIAL CARE
15/07/2022,2435027,6019.75,TALBOT HOUSE,020441,Commissioning & Asset Management,Children's & Education Services,103,Third Party Payments,505,Private Contractors,5042,Revenue,SOCIAL CARE.NURSING & RESIDENTIAL CARE
20/07/2022,2438626,7233.60,NEXUS,305246,Commissioning & Asset Management,Children's & Education Services,103,Transport,503,Recharges,5017,Revenue,NON INFLUENCIBLE.NON INFLUENCIBLE
01/07/2022,2428068,940.10,ARK SEARCH LIMITED,401396,Resources,Children's & Education Services,103,Supplies and Services,504,Miscellaneous Expenses,5034,Revenue,HUMAN RESOURCES.TEMPORARY & AGENCY STAFF
01/07/2022,2428068,940.10,ARK SEARCH LIMITED,401396,Resources,Children's & Education Services,103,Supplies and Services,504,Miscellaneous Expenses,5034,Revenue,HUMAN RESOURCES.TEMPORARY & AGENCY STAFF
08/07/2022,2432393,752.08,ARK SEARCH LIMITED,401396,Resources,Children's & Education Services,103,Supplies and Services,504,Miscellaneous Expenses,5034,Revenue,HUMAN RESOURCES.TEMPORARY & AGENCY STAFF
08/07/2022,2432393,940.10,ARK SEARCH LIMITED,401396,Resources,Children's & Education Services,103,Supplies and Services,504,Miscellaneous Expenses,5034,Revenue,HUMAN RESOURCES.TEMPORARY & AGENCY STAFF
13/07/2022,2434548,5182.76,PHOENIX SOFTWARE LTD,355089,Resources,Children's & Education Services,103,Supplies and Services,504,Miscellaneous Expenses,5034,Revenue,ICT.SOFTWARE
19/07/2022,2438333,940.10,ARK SEARCH LIMITED,401396,Resources,Children's & Education Services,103,Supplies and Services,504,Miscellaneous Expenses,5034,Revenue,HUMAN RESOURCES.TEMPORARY & AGENCY STAFF
19/07/2022,2438333,940.10,ARK SEARCH LIMITED,401396,Resources,Children's & Education Services,103,Supplies and Services,504,Miscellaneous Expenses,5034,Revenue,HUMAN RESOURCES.TEMPORARY & AGENCY STAFF
25/07/2022,2439937,12000.00,EDUCATION SOFTWARE SOLUTIONS LIMITED,401878,Resources,Children's & Education Services,103,Supplies and Services,504,Miscellaneous Expenses,5034,Revenue,ICT.SOFTWARE
26/07/2022,2440230,940.10,ARK SEARCH LIMITED,401396,Resources,Children's & Education Services,103,Supplies and Services,504,Miscellaneous Expenses,5034,Revenue,HUMAN RESOURCES.TEMPORARY & AGENCY STAFF
26/07/2022,2440230,940.10,ARK SEARCH LIMITED,401396,Resources,Children's & Education Services,103,Supplies and Services,504,Miscellaneous Expenses,5034,Revenue,HUMAN RESOURCES.TEMPORARY & AGENCY STAFF
27/07/2022,2441318,499.00,SSL247 LIMITED,387466,Resources,Children's & Education Services,103,Supplies and Services,504,Miscellaneous Expenses,5034,Revenue,ICT.ONLINE SERVICES
29/07/2022,2442109,940.10,ARK SEARCH LIMITED,401396,Resources,Children's & Education Services,103,Supplies and Services,504,Miscellaneous Expenses,5034,Revenue,HUMAN RESOURCES.TEMPORARY & AGENCY STAFF
29/07/2022,2442109,940.10,ARK SEARCH LIMITED,401396,Resources,Children's & Education Services,103,Supplies and Services,504,Miscellaneous Expenses,5034,Revenue,HUMAN RESOURCES.TEMPORARY & AGENCY STAFF
01/07/2022,2428046,350.00,CHAPEL MEDIATION AND CONSULTANCY SERVICE,390179,"Health, Education, Care and Safeguarding",Children's & Education Services,103,Supplies and Services,504,Miscellaneous Expenses,5034,Revenue,SOCIAL CARE.CARE SERVICES
01/07/2022,2428088,1100.00,PERMANENT FUTURES LTD,380720,"Health, Education, Care and Safeguarding",Children's & Education Services,103,Third Party Payments,505,Private Contractors,5042,Revenue,HUMAN RESOURCES.RECRUITMENT & ASSESSMENT
01/07/2022,2428088,1375.00,PERMANENT FUTURES LTD,380720,"Health, Education, Care and Safeguarding",Children's & Education Services,103,Third Party Payments,505,Private Contractors,5042,Revenue,HUMAN RESOURCES.RECRUITMENT & ASSESSMENT
01/07/2022,2428088,1375.00,PERMANENT FUTURES LTD,380720,"Health, Education, Care and Safeguarding",Children's & Education Services,103,Third Party Payments,505,Private Contractors,5042,Revenue,HUMAN RESOURCES.RECRUITMENT & ASSESSMENT
01/07/2022,2428088,1375.00,PERMANENT FUTURES LTD,380720,"Health, Education, Care and Safeguarding",Children's & Education Services,103,Third Party Payments,505,Private Contractors,5042,Revenue,HUMAN RESOURCES.RECRUITMENT & ASSESSMENT
04/07/2022,2429383,1198.40,DIRECT CARS,366879,"Health, Education, Care and Safeguarding",Children's & Education Services,103,Transport,503,Recharges,5017,Revenue,PUBLIC TRANSPORT.TAXI SERVICES
08/07/2022,2432496,233.16,OCE (UK) LIMITED,015952,"Health, Education, Care and Safeguarding",Children's & Education Services,103,Supplies and Services,504,"Printing, Stationery and General Office Expenses",5026,Revenue,OFFICE & REPROGRAPHICS EQUIPMENT.PHOTOCOPIERS & MFDS
11/07/2022,2433521,617.61,DE POEL MANAGED SERVICES LIMITED,391542,"Health, Education, Care and Safeguarding",Children's & Education Services,103,Employees,501,Direct Employee Expenses,5001,Revenue,HUMAN RESOURCES.TEMPORARY & AGENCY STAFF
13/07/2022,2434539,350.00,CHAPEL MEDIATION AND CONSULTANCY SERVICE,390179,"Health, Education, Care and Safeguarding",Children's & Education Services,103,Supplies and Services,504,Miscellaneous Expenses,5034,Revenue,SOCIAL CARE.CARE SERVICES
13/07/2022,2434539,350.00,CHAPEL MEDIATION AND CONSULTANCY SERVICE,390179,"Health, Education, Care and Safeguarding",Children's & Education Services,103,Supplies and Services,504,Miscellaneous Expenses,5034,Revenue,SOCIAL CARE.CARE SERVICES
14/07/2022,2434730,617.61,DE POEL MANAGED SERVICES LIMITED,391542,"Health, Education, Care and Safeguarding",Children's & Education Services,103,Employees,501,Direct Employee Expenses,5001,Revenue,HUMAN RESOURCES.TEMPORARY & AGENCY STAFF
20/07/2022,2438591,617.61,DE POEL MANAGED SERVICES LIMITED,391542,"Health, Education, Care and Safeguarding",Children's & Education Services,103,Employees,501,Direct Employee Expenses,5001,Revenue,HUMAN RESOURCES.TEMPORARY & AGENCY STAFF
20/07/2022,2438597,6.82,OCE (UK) LIMITED,015952,"Health, Education, Care and Safeguarding",Children's & Education Services,103,Supplies and Services,504,"Printing, Stationery and General Office Expenses",5026,Revenue,OFFICE & REPROGRAPHICS EQUIPMENT.PHOTOCOPIERS & MFDS
26/07/2022,2440222,582.36,DIRECT CARS,366879,"Health, Education, Care and Safeguarding",Children's & Education Services,103,Transport,503,Recharges,5017,Revenue,PUBLIC TRANSPORT.TAXI SERVICES
28/07/2022,2441538,39.69,OCE (UK) LIMITED,015952,"Health, Education, Care and Safeguarding",Children's & Education Services,103,Supplies and Services,504,"Printing, Stationery and General Office Expenses",5026,Revenue,OFFICE & REPROGRAPHICS EQUIPMENT.PHOTOCOPIERS & MFDS
29/07/2022,2442167,0.01,OCE (UK) LIMITED,015952,"Health, Education, Care and Safeguarding",Children's & Education Services,103,Supplies and Services,504,"Printing, Stationery and General Office Expenses",5026,Revenue,OFFICE & REPROGRAPHICS EQUIPMENT.PHOTOCOPIERS & MFDS
29/07/2022,2442167,0.86,OCE (UK) LIMITED,015952,"Health, Education, Care and Safeguarding",Children's & Education Services,103,Supplies and Services,504,"Printing, Stationery and General Office Expenses",5026,Revenue,OFFICE & REPROGRAPHICS EQUIPMENT.PHOTOCOPIERS & MFDS
29/07/2022,2442167,75.10,OCE (UK) LIMITED,015952,"Health, Education, Care and Safeguarding",Children's & Education Services,103,Supplies and Services,504,"Printing, Stationery and General Office Expenses",5026,Revenue,OFFICE & REPROGRAPHICS EQUIPMENT.PHOTOCOPIERS & MFDS
29/07/2022,2442169,350.00,CHAPEL MEDIATION AND CONSULTANCY SERVICE,390179,"Health, Education, Care and Safeguarding",Children's & Education Services,103,Supplies and Services,504,Miscellaneous Expenses,5034,Revenue,SOCIAL CARE.CARE SERVICES
12/07/2022,2434258,600.00,QUICKSILVER,110169,Commissioning & Asset Management,Planning Services,110,Third Party Payments,505,Private Contractors,5042,Revenue,FACILITIES MANAGEMENT.REMOVALS & STORAGE
13/07/2022,2434567,210.00,CDS SECURITY & FIRE SERVICES LTD,384350,Commissioning & Asset Management,Planning Services,110,Premises-Related Expenditure,502,"Repairs, alterations and maintenance of buildings",5005,Revenue,REPAIRS & MAINTENANCE.REPAIRS & MAINTENANCE
19/07/2022,2438325,350.00,ALBANY OFFICE EQUIPMENT (WHOLESALE) LTD,306382,Commissioning & Asset Management,Planning Services,110,Supplies and Services,504,Equipment,5023,Revenue,FURNITURE.OFFICE
19/07/2022,2438414,1169.93,SITA UK LIMITED,359430,Commissioning & Asset Management,Planning Services,110,Third Party Payments,505,Private Contractors,5042,Revenue,WASTE.RECYCLING
21/07/2022,2438809,1167.75,PHOENIX SOFTWARE LTD,355089,Commissioning & Asset Management,Planning Services,110,Supplies and Services,504,Equipment,5023,Revenue,ICT.SOFTWARE
28/07/2022,2441549,568.00,ORANGE PCS LTD,345889,Commissioning & Asset Management,Planning Services,110,Supplies and Services,504,Communications & Computing,5028,Revenue,TELECOMMUNICATIONS.MOBILE
06/07/2022,2431650,800.00,LITTLE CYGNETS CHILDCARE LTD,392848,Commissioning & Asset Management,Children's & Education Services,103,Third Party Payments,505,Private Contractors,5042,Revenue,NON INFLUENCIBLE.GRANTS
11/07/2022,2433490,800.00,LINSKILL & NORTH TYNESIDE COMMUNITY DEVELOPMENT TRUST,368853,Commissioning & Asset Management,Children's & Education Services,103,Third Party Payments,505,Private Contractors,5042,Revenue,FACILITIES MANAGEMENT.ROOM HIRE
11/07/2022,2433494,1600.00,LITTLE SUNSHINE CHILDCARE,398646,Commissioning & Asset Management,Children's & Education Services,103,Third Party Payments,505,Private Contractors,5042,Revenue,SOCIAL CARE.CHILDCARE SERVICES
19/07/2022,2438305,800.00,FOOTPRINTS DAY NURSERY WALLSEND,397376,Commissioning & Asset Management,Children's & Education Services,103,Third Party Payments,505,Private Contractors,5042,Revenue,SOCIAL CARE.CHILDCARE SERVICES
25/07/2022,2440011,314.79,MARSH LTD,339167,Commissioning & Asset Management,Children's & Education Services,103,Premises-Related Expenditure,502,Premises Insurance,5014,Revenue,FINANCIAL SERVICES.INSURANCE
04/07/2022,2429093,14376.15,ZONE 4 KIDS AT WHITLEY LODGE,391817,"Health, Education, Care and Safeguarding",Children's & Education Services,103,Third Party Payments,505,Private Contractors,5042,Revenue,SOCIAL CARE.CHILDCARE SERVICES
04/07/2022,2429096,2017.71,DUDLEY PRE SCHOOL,391686,"Health, Education, Care and Safeguarding",Children's & Education Services,103,Third Party Payments,505,Private Contractors,5042,Revenue,SOCIAL CARE.FAMILY SUPPORT
04/07/2022,2429099,6277.02,LITTLE LEARNERS,391515,"Health, Education, Care and Safeguarding",Children's & Education Services,103,Third Party Payments,505,Private Contractors,5042,Revenue,NON INFLUENCIBLE.NON INFLUENCIBLE
04/07/2022,2429101,10394.13,RISE AND SHINE PLAYGROUP LTD,391514,"Health, Education, Care and Safeguarding",Children's & Education Services,103,Third Party Payments,505,Private Contractors,5042,Revenue,NON INFLUENCIBLE.NON INFLUENCIBLE
04/07/2022,2429103,1863.00,Redacted Personal Data,391109,"Health, Education, Care and Safeguarding",Children's & Education Services,103,Third Party Payments,505,Private Contractors,5042,Revenue,SOCIAL CARE.CHILDCARE SERVICES
04/07/2022,2429104,5740.80,ZONE 4 KIDS AT COQUET PARK,391000,"Health, Education, Care and Safeguarding",Children's & Education Services,103,Third Party Payments,505,Private Contractors,5042,Revenue,SOCIAL CARE.CHILDCARE SERVICES
04/07/2022,2429105,800.40,Redacted Personal Data,377854,"Health, Education, Care and Safeguarding",Children's & Education Services,103,Third Party Payments,505,Private Contractors,5042,Revenue,SOCIAL CARE.CHILDCARE SERVICES
04/07/2022,2429107,7451.34,SHINING STARS,390724,"Health, Education, Care and Safeguarding",Children's & Education Services,103,Third Party Payments,505,Private Contractors,5042,Revenue,SOCIAL CARE.CHILDCARE SERVICES
04/07/2022,2429109,2865.90,LITTLE GEMS OF THE SEA,390716,"Health, Education, Care and Safeguarding",Children's & Education Services,103,Third Party Payments,505,Private Contractors,5042,Revenue,SOCIAL CARE.CHILDCARE SERVICES
04/07/2022,2429114,18663.30,LITTLE TWISTERS LTD,389759,"Health, Education, Care and Safeguarding",Children's & Education Services,103,Third Party Payments,505,Private Contractors,5042,Revenue,SOCIAL CARE.CHILDCARE SERVICES
04/07/2022,2429115,4613.40,SPRING GARDENS OUT OF SCHOOL LTD,389048,"Health, Education, Care and Safeguarding",Children's & Education Services,103,Third Party Payments,505,Private Contractors,5042,Revenue,NON INFLUENCIBLE.NON INFLUENCIBLE
04/07/2022,2429120,414.00,Redacted Personal Data,386232,"Health, Education, Care and Safeguarding",Children's & Education Services,103,Third Party Payments,505,Private Contractors,5042,Revenue,SOCIAL CARE.CHILDCARE SERVICES
04/07/2022,2429121,1502.55,Redacted Personal Data,373721,"Health, Education, Care and Safeguarding",Children's & Education Services,103,Third Party Payments,505,Private Contractors,5042,Revenue,NON INFLUENCIBLE.GRANTS
04/07/2022,2429125,7429.00,CHILDRENS CHOICE AT SOUTHRIDGE,355211,"Health, Education, Care and Safeguarding",Children's & Education Services,103,Third Party Payments,505,Private Contractors,5042,Revenue,NON INFLUENCIBLE.NON INFLUENCIBLE
04/07/2022,2429129,8382.05,ACTION FOR CHILDREN,380697,"Health, Education, Care and Safeguarding",Children's & Education Services,103,Third Party Payments,505,Private Contractors,5042,Revenue,SOCIAL CARE.FOSTER CARE
04/07/2022,2429134,16814.25,WALLSEND DAY NURSERY,394147,"Health, Education, Care and Safeguarding",Children's & Education Services,103,Third Party Payments,505,Private Contractors,5042,Revenue,SOCIAL CARE.CHILDCARE SERVICES
04/07/2022,2429137,19044.00,EVOLUTION CHILDCARE,394146,"Health, Education, Care and Safeguarding",Children's & Education Services,103,Third Party Payments,505,Private Contractors,5042,Revenue,NON INFLUENCIBLE.GRANTS
04/07/2022,2429140,5032.80,Redacted Personal Data,394026,"Health, Education, Care and Safeguarding",Children's & Education Services,103,Third Party Payments,505,Private Contractors,5042,Revenue,NON INFLUENCIBLE.GRANTS
04/07/2022,2429142,2463.97,Redacted Personal Data,367496,"Health, Education, Care and Safeguarding",Children's & Education Services,103,Third Party Payments,505,Private Contractors,5042,Revenue,NON INFLUENCIBLE.GRANTS
04/07/2022,2429143,621.00,Redacted Personal Data,393472,"Health, Education, Care and Safeguarding",Children's & Education Services,103,Third Party Payments,505,Private Contractors,5042,Revenue,NON INFLUENCIBLE.GRANTS
04/07/2022,2429145,621.00,Redacted Personal Data,393277,"Health, Education, Care and Safeguarding",Children's & Education Services,103,Third Party Payments,505,Private Contractors,5042,Revenue,NON INFLUENCIBLE.INDIVIDUAL
04/07/2022,2429148,7452.00,LITTLE CYGNETS CHILDCARE LTD,392848,"Health, Education, Care and Safeguarding",Children's & Education Services,103,Third Party Payments,505,Private Contractors,5042,Revenue,NON INFLUENCIBLE.GRANTS
04/07/2022,2429151,24856.44,BAILEY'S BUTTERFLIES,392846,"Health, Education, Care and Safeguarding",Children's & Education Services,103,Third Party Payments,505,Private Contractors,5042,Revenue,NON INFLUENCIBLE.GRANTS
04/07/2022,2429153,2070.00,Redacted Personal Data,392805,"Health, Education, Care and Safeguarding",Children's & Education Services,103,Third Party Payments,505,Private Contractors,5042,Revenue,NON INFLUENCIBLE.INDIVIDUAL
04/07/2022,2429154,662.40,Redacted Personal Data,392804,"Health, Education, Care and Safeguarding",Children's & Education Services,103,Third Party Payments,505,Private Contractors,5042,Revenue,NON INFLUENCIBLE.INDIVIDUAL
04/07/2022,2429156,3448.71,TYNEMOUTH NURSERY @ NTC,392526,"Health, Education, Care and Safeguarding",Children's & Education Services,103,Third Party Payments,505,Private Contractors,5042,Revenue,SOCIAL CARE.CHILDCARE SERVICES
04/07/2022,2429158,10485.00,YMCA NORTH TYNESIDE,356069,"Health, Education, Care and Safeguarding",Children's & Education Services,103,Third Party Payments,505,Private Contractors,5042,Revenue,SOCIAL CARE.CARE SERVICES
04/07/2022,2429159,414.00,Redacted Personal Data,395121,"Health, Education, Care and Safeguarding",Children's & Education Services,103,Third Party Payments,505,Private Contractors,5042,Revenue,NON INFLUENCIBLE.GRANTS
04/07/2022,2429160,6624.00,SCHOOLS OUT (NORTHERN) LTD,350887,"Health, Education, Care and Safeguarding",Children's & Education Services,103,Third Party Payments,505,Private Contractors,5042,Revenue,SOCIAL CARE.CHILDCARE SERVICES
04/07/2022,2429161,966.00,Redacted Personal Data,394945,"Health, Education, Care and Safeguarding",Children's & Education Services,103,Third Party Payments,505,Private Contractors,5042,Revenue,NON INFLUENCIBLE.GRANTS
04/07/2022,2429162,621.00,Redacted Personal Data,394887,"Health, Education, Care and Safeguarding",Children's & Education Services,103,Third Party Payments,505,Private Contractors,5042,Revenue,NON INFLUENCIBLE.INDIVIDUAL
04/07/2022,2429164,4293.00,LITTLE RASCALS CHILDCARE,394764,"Health, Education, Care and Safeguarding",Children's & Education Services,103,Third Party Payments,505,Private Contractors,5042,Revenue,NON INFLUENCIBLE.GRANTS
04/07/2022,2429165,759.00,Redacted Personal Data,396265,"Health, Education, Care and Safeguarding",Children's & Education Services,103,Third Party Payments,505,Private Contractors,5042,Revenue,NON INFLUENCIBLE.INDIVIDUAL
04/07/2022,2429166,938.40,Redacted Personal Data,396026,"Health, Education, Care and Safeguarding",Children's & Education Services,103,Third Party Payments,505,Private Contractors,5042,Revenue,NON INFLUENCIBLE.GRANTS
04/07/2022,2429171,11505.24,THE FAMILY TREE CHILDRENS DAY NURSERY,395861,"Health, Education, Care and Safeguarding",Children's & Education Services,103,Third Party Payments,505,Private Contractors,5042,Revenue,SOCIAL CARE.CHILDCARE SERVICES
04/07/2022,2429172,455.40,Redacted Personal Data,395550,"Health, Education, Care and Safeguarding",Children's & Education Services,103,Third Party Payments,505,Private Contractors,5042,Revenue,NON INFLUENCIBLE.INDIVIDUAL
04/07/2022,2429174,1904.40,LITTLE ANGELS AMBERLEY,395289,"Health, Education, Care and Safeguarding",Children's & Education Services,103,Third Party Payments,505,Private Contractors,5042,Revenue,NON INFLUENCIBLE.GRANTS
04/07/2022,2429175,858.60,Redacted Personal Data,395185,"Health, Education, Care and Safeguarding",Children's & Education Services,103,Third Party Payments,505,Private Contractors,5042,Revenue,NON INFLUENCIBLE.GRANTS
04/07/2022,2429177,2001.00,Redacted Personal Data,394762,"Health, Education, Care and Safeguarding",Children's & Education Services,103,Third Party Payments,505,Private Contractors,5042,Revenue,NON INFLUENCIBLE.GRANTS
04/07/2022,2429179,314.55,ST BARTHOLOMEWS PLAYGROUP,329116,"Health, Education, Care and Safeguarding",Children's & Education Services,103,Third Party Payments,505,Private Contractors,5042,Revenue,SOCIAL CARE.CHILDCARE SERVICES
04/07/2022,2429180,789.76,Redacted Personal Data,394481,"Health, Education, Care and Safeguarding",Children's & Education Services,103,Third Party Payments,505,Private Contractors,5042,Revenue,NON INFLUENCIBLE.INDIVIDUAL
04/07/2022,2429184,690.00,Redacted Personal Data,392522,"Health, Education, Care and Safeguarding",Children's & Education Services,103,Third Party Payments,505,Private Contractors,5042,Revenue,NON INFLUENCIBLE.GRANTS
04/07/2022,2429185,414.00,Redacted Personal Data,392255,"Health, Education, Care and Safeguarding",Children's & Education Services,103,Third Party Payments,505,Private Contractors,5042,Revenue,NON INFLUENCIBLE.GRANTS
04/07/2022,2429187,29497.80,LEIGH'S NURSERIES,391513,"Health, Education, Care and Safeguarding",Children's & Education Services,103,Third Party Payments,505,Private Contractors,5042,Revenue,NON INFLUENCIBLE.NON INFLUENCIBLE
04/07/2022,2429188,858.60,Redacted Personal Data,381514,"Health, Education, Care and Safeguarding",Children's & Education Services,103,Third Party Payments,505,Private Contractors,5042,Revenue,NON INFLUENCIBLE.GRANTS
04/07/2022,2429190,9190.80,JELLYTOTS PRE SCHOOL,395969,"Health, Education, Care and Safeguarding",Children's & Education Services,103,Third Party Payments,505,Private Contractors,5042,Revenue,NON INFLUENCIBLE.GRANTS
04/07/2022,2429191,414.00,Redacted Personal Data,395549,"Health, Education, Care and Safeguarding",Children's & Education Services,103,Third Party Payments,505,Private Contractors,5042,Revenue,NON INFLUENCIBLE.INDIVIDUAL
04/07/2022,2429195,414.00,Redacted Personal Data,394445,"Health, Education, Care and Safeguarding",Children's & Education Services,103,Third Party Payments,505,Private Contractors,5042,Revenue,SOCIAL CARE.CHILDCARE SERVICES
04/07/2022,2429197,634.80,Redacted Personal Data,392525,"Health, Education, Care and Safeguarding",Children's & Education Services,103,Third Party Payments,505,Private Contractors,5042,Revenue,NON INFLUENCIBLE.GRANTS
04/07/2022,2429200,772.80,Redacted Personal Data,392256,"Health, Education, Care and Safeguarding",Children's & Education Services,103,Third Party Payments,505,Private Contractors,5042,Revenue,NON INFLUENCIBLE.GRANTS
04/07/2022,2429202,4516.05,HADRIAN BEARS PLAYGROUP,328680,"Health, Education, Care and Safeguarding",Children's & Education Services,103,Third Party Payments,505,Private Contractors,5042,Revenue,SOCIAL CARE.CHILDCARE SERVICES
04/07/2022,2429208,414.00,Redacted Personal Data,385253,"Health, Education, Care and Safeguarding",Children's & Education Services,103,Third Party Payments,505,Private Contractors,5042,Revenue,NON INFLUENCIBLE.GRANTS
04/07/2022,2429218,22204.20,KIDS 1ST DAY NURSERIES,358393,"Health, Education, Care and Safeguarding",Children's & Education Services,103,Third Party Payments,505,Private Contractors,5042,Revenue,SOCIAL CARE.CHILDCARE SERVICES
04/07/2022,2429219,29497.80,KIDS 1ST DAY NURSERIES,358393,"Health, Education, Care and Safeguarding",Children's & Education Services,103,Third Party Payments,505,Private Contractors,5042,Revenue,SOCIAL CARE.CHILDCARE SERVICES
04/07/2022,2429222,6598.56,HADRIAN PARK UNDER 5'S,356999,"Health, Education, Care and Safeguarding",Children's & Education Services,103,Third Party Payments,505,Private Contractors,5042,Revenue,SOCIAL CARE.CHILDCARE SERVICES
04/07/2022,2429223,3820.77,GRASMERE ACADAMY,388867,"Health, Education, Care and Safeguarding",Children's & Education Services,103,Third Party Payments,505,Private Contractors,5042,Revenue,NON INFLUENCIBLE.EXT SCHOOLS
04/07/2022,2429229,19044.00,FIELD HOUSE DAY NURSERY,346653,"Health, Education, Care and Safeguarding",Children's & Education Services,103,Third Party Payments,505,Private Contractors,5042,Revenue,SOCIAL CARE.CHILDCARE SERVICES
04/07/2022,2429232,414.00,GILLIAN HERRON,240076,"Health, Education, Care and Safeguarding",Children's & Education Services,103,Third Party Payments,505,Private Contractors,5042,Revenue,SOCIAL CARE.CHILDCARE SERVICES
04/07/2022,2429233,2484.00,Redacted Personal Data,336942,"Health, Education, Care and Safeguarding",Children's & Education Services,103,Third Party Payments,505,Private Contractors,5042,Revenue,HUMAN RESOURCES.TRAINING & CONFERENCES
04/07/2022,2429234,18423.00,FOREST HALL DAY NURSERY,283904,"Health, Education, Care and Safeguarding",Children's & Education Services,103,Third Party Payments,505,Private Contractors,5042,Revenue,SOCIAL CARE.CHILDCARE SERVICES
04/07/2022,2429235,16580.70,JUST LEARNING LTD,351428,"Health, Education, Care and Safeguarding",Children's & Education Services,103,Third Party Payments,505,Private Contractors,5042,Revenue,SOCIAL CARE.CHILDCARE SERVICES
04/07/2022,2429236,414.00,Redacted Personal Data,304367,"Health, Education, Care and Safeguarding",Children's & Education Services,103,Third Party Payments,505,Private Contractors,5042,Revenue,NON INFLUENCIBLE.GRANTS
04/07/2022,2429238,8597.40,HOLYSTONE OUT OF SCHOOL CLUB,346027,"Health, Education, Care and Safeguarding",Children's & Education Services,103,Third Party Payments,505,Private Contractors,5042,Revenue,NON INFLUENCIBLE.EXT SCHOOLS
04/07/2022,2429240,12036.78,GOOD TIME CHILDCARE AT REDESDALE,397525,"Health, Education, Care and Safeguarding",Children's & Education Services,103,Third Party Payments,505,Private Contractors,5042,Revenue,SOCIAL CARE.CHILDCARE SERVICES
04/07/2022,2429241,11591.10,FOOTPRINTS DAY NURSERY WALLSEND,397376,"Health, Education, Care and Safeguarding",Children's & Education Services,103,Third Party Payments,505,Private Contractors,5042,Revenue,SOCIAL CARE.CHILDCARE SERVICES
04/07/2022,2429246,5981.58,FOOTPRINTS DAY NURSERY,394148,"Health, Education, Care and Safeguarding",Children's & Education Services,103,Third Party Payments,505,Private Contractors,5042,Revenue,NON INFLUENCIBLE.GRANTS
04/07/2022,2429259,858.60,Redacted Personal Data,363605,"Health, Education, Care and Safeguarding",Children's & Education Services,103,Third Party Payments,505,Private Contractors,5042,Revenue,SOCIAL CARE.CHILDCARE SERVICES
04/07/2022,2429263,4194.00,RACHAEL�S RASCALS CHILDCARE,400439,"Health, Education, Care and Safeguarding",Children's & Education Services,103,Third Party Payments,505,Private Contractors,5042,Revenue,SOCIAL CARE.CHILDCARE SERVICES
04/07/2022,2429265,3222.30,ST ALBANS PRE SCHOOL,400362,"Health, Education, Care and Safeguarding",Children's & Education Services,103,Third Party Payments,505,Private Contractors,5042,Revenue,SOCIAL CARE.CHILDCARE SERVICES
04/07/2022,2429267,1449.00,Redacted Personal Data,400136,"Health, Education, Care and Safeguarding",Children's & Education Services,103,Third Party Payments,505,Private Contractors,5042,Revenue,SOCIAL CARE.CHILDCARE SERVICES
04/07/2022,2429270,3450.00,Redacted Personal Data,395106,"Health, Education, Care and Safeguarding",Children's & Education Services,103,Third Party Payments,505,Private Contractors,5042,Revenue,SOCIAL CARE.CHILDCARE SERVICES
04/07/2022,2429273,414.00,Redacted Personal Data,399276,"Health, Education, Care and Safeguarding",Children's & Education Services,103,Third Party Payments,505,Private Contractors,5042,Revenue,NON INFLUENCIBLE.INDIVIDUAL
04/07/2022,2429274,1524.90,Redacted Personal Data,399011,"Health, Education, Care and Safeguarding",Children's & Education Services,103,Third Party Payments,505,Private Contractors,5042,Revenue,NON INFLUENCIBLE.GRANTS
04/07/2022,2429277,6439.50,LITTLE SUNSHINE CHILDCARE,398646,"Health, Education, Care and Safeguarding",Children's & Education Services,103,Third Party Payments,505,Private Contractors,5042,Revenue,SOCIAL CARE.CHILDCARE SERVICES
04/07/2022,2429278,1035.00,LIANNE BRUCE T/A SAFE HAVEN CHILDMINDING,398644,"Health, Education, Care and Safeguarding",Children's & Education Services,103,Third Party Payments,505,Private Contractors,5042,Revenue,SOCIAL CARE.CHILDCARE SERVICES
04/07/2022,2429279,2750.80,Redacted Personal Data,363611,"Health, Education, Care and Safeguarding",Children's & Education Services,103,Third Party Payments,505,Private Contractors,5042,Revenue,NON INFLUENCIBLE.GRANTS
04/07/2022,2429282,5452.20,LITTLE LEARNERS (BARNSTAPLE ROAD),397576,"Health, Education, Care and Safeguarding",Children's & Education Services,103,Third Party Payments,505,Private Contractors,5042,Revenue,SOCIAL CARE.CHILDCARE SERVICES
04/07/2022,2429284,621.00,Redacted Personal Data,398047,"Health, Education, Care and Safeguarding",Children's & Education Services,103,Third Party Payments,505,Private Contractors,5042,Revenue,SOCIAL CARE.CHILDCARE SERVICES
04/07/2022,2429286,4948.92,Redacted Personal Data,394372,"Health, Education, Care and Safeguarding",Children's & Education Services,103,Third Party Payments,505,Private Contractors,5042,Revenue,SOCIAL CARE.CHILDREN'S CENTRES
04/07/2022,2429293,11269.13,LITTLE BLOSSOMS CHILDCARE,397233,"Health, Education, Care and Safeguarding",Children's & Education Services,103,Third Party Payments,505,Private Contractors,5042,Revenue,SOCIAL CARE.CHILDCARE SERVICES
04/07/2022,2429295,828.00,Redacted Personal Data,396483,"Health, Education, Care and Safeguarding",Children's & Education Services,103,Third Party Payments,505,Private Contractors,5042,Revenue,NON INFLUENCIBLE.INDIVIDUAL
04/07/2022,2429305,13001.40,BISHOP BEWICK CATHOLIC EDUCATION TRUST,400895,"Health, Education, Care and Safeguarding",Children's & Education Services,103,Third Party Payments,505,Private Contractors,5042,Revenue,NON INFLUENCIBLE.GRANTS
04/07/2022,2429306,9660.18,BISHOP BEWICK CATHOLIC EDUCATION TRUST,400895,"Health, Education, Care and Safeguarding",Children's & Education Services,103,Third Party Payments,505,Private Contractors,5042,Revenue,NON INFLUENCIBLE.GRANTS
04/07/2022,2429307,9729.00,BISHOP BEWICK CATHOLIC EDUCATION TRUST,400895,"Health, Education, Care and Safeguarding",Children's & Education Services,103,Third Party Payments,505,Private Contractors,5042,Revenue,NON INFLUENCIBLE.GRANTS
04/07/2022,2429308,15640.83,BISHOP BEWICK CATHOLIC EDUCATION TRUST,400895,"Health, Education, Care and Safeguarding",Children's & Education Services,103,Third Party Payments,505,Private Contractors,5042,Revenue,NON INFLUENCIBLE.GRANTS
04/07/2022,2429309,5871.60,BISHOP BEWICK CATHOLIC EDUCATION TRUST,400895,"Health, Education, Care and Safeguarding",Children's & Education Services,103,Third Party Payments,505,Private Contractors,5042,Revenue,NON INFLUENCIBLE.GRANTS
04/07/2022,2429310,7968.60,BISHOP BEWICK CATHOLIC EDUCATION TRUST,400895,"Health, Education, Care and Safeguarding",Children's & Education Services,103,Third Party Payments,505,Private Contractors,5042,Revenue,NON INFLUENCIBLE.GRANTS
04/07/2022,2429311,10275.30,BISHOP BEWICK CATHOLIC EDUCATION TRUST,400895,"Health, Education, Care and Safeguarding",Children's & Education Services,103,Third Party Payments,505,Private Contractors,5042,Revenue,NON INFLUENCIBLE.GRANTS
04/07/2022,2429312,5366.25,BISHOP BEWICK CATHOLIC EDUCATION TRUST,400895,"Health, Education, Care and Safeguarding",Children's & Education Services,103,Third Party Payments,505,Private Contractors,5042,Revenue,NON INFLUENCIBLE.GRANTS
04/07/2022,2429313,414.00,Redacted Personal Data,401748,"Health, Education, Care and Safeguarding",Children's & Education Services,103,Third Party Payments,505,Private Contractors,5042,Revenue,SOCIAL CARE.CHILDCARE SERVICES
04/07/2022,2429314,414.00,Redacted Personal Data,401438,"Health, Education, Care and Safeguarding",Children's & Education Services,103,Third Party Payments,505,Private Contractors,5042,Revenue,SOCIAL CARE.CHILDCARE SERVICES
04/07/2022,2429318,2146.50,LITTLE SUNSHINE CHILDCARE,398646,"Health, Education, Care and Safeguarding",Children's & Education Services,103,Third Party Payments,505,Private Contractors,5042,Revenue,SOCIAL CARE.CHILDCARE SERVICES
04/07/2022,2429320,429.30,Redacted Personal Data,327046,"Health, Education, Care and Safeguarding",Children's & Education Services,103,Third Party Payments,505,Private Contractors,5042,Revenue,SOCIAL CARE.CHILDCARE SERVICES
04/07/2022,2429365,828.00,Redacted Personal Data,383397,"Health, Education, Care and Safeguarding",Children's & Education Services,103,Third Party Payments,505,Private Contractors,5042,Revenue,NON INFLUENCIBLE.NON INFLUENCIBLE
04/07/2022,2429366,1258.20,Redacted Personal Data,363621,"Health, Education, Care and Safeguarding",Children's & Education Services,103,Third Party Payments,505,Private Contractors,5042,Revenue,NON INFLUENCIBLE.INDIVIDUAL
04/07/2022,2429367,414.00,Redacted Personal Data,363617,"Health, Education, Care and Safeguarding",Children's & Education Services,103,Third Party Payments,505,Private Contractors,5042,Revenue,NON INFLUENCIBLE.GRANTS
04/07/2022,2429369,1359.30,CULLERCOATS METHODIST CHURCH PLAYGROUP,322788,"Health, Education, Care and Safeguarding",Children's & Education Services,103,Third Party Payments,505,Private Contractors,5042,Revenue,SOCIAL CARE.CHILDCARE SERVICES
04/07/2022,2429370,379.50,Redacted Personal Data,358300,"Health, Education, Care and Safeguarding",Children's & Education Services,103,Third Party Payments,505,Private Contractors,5042,Revenue,NON INFLUENCIBLE.GRANTS
04/07/2022,2429373,14467.00,KINDER CASTLE  LTD,355757,"Health, Education, Care and Safeguarding",Children's & Education Services,103,Third Party Payments,505,Private Contractors,5042,Revenue,SOCIAL CARE.CHILDCARE SERVICES
04/07/2022,2429374,1467.90,Redacted Personal Data,346925,"Health, Education, Care and Safeguarding",Children's & Education Services,103,Third Party Payments,505,Private Contractors,5042,Revenue,HUMAN RESOURCES.TRAINING & CONFERENCES
04/07/2022,2429390,11481.60,BUSY BEES NURSERY,346030,"Health, Education, Care and Safeguarding",Children's & Education Services,103,Third Party Payments,505,Private Contractors,5042,Revenue,SOCIAL CARE.CHILDCARE SERVICES
04/07/2022,2429393,1435.20,WHITLEY LODGE UNDER 5's PRE-SCHOOL,343710,"Health, Education, Care and Safeguarding",Children's & Education Services,103,Third Party Payments,505,Private Contractors,5042,Revenue,SOCIAL CARE.CHILDCARE SERVICES
04/07/2022,2429395,345.00,Redacted Personal Data,355054,"Health, Education, Care and Safeguarding",Children's & Education Services,103,Third Party Payments,505,Private Contractors,5042,Revenue,NON INFLUENCIBLE.NON INFLUENCIBLE
04/07/2022,2429396,643.95,Redacted Personal Data,355052,"Health, Education, Care and Safeguarding",Children's & Education Services,103,Third Party Payments,505,Private Contractors,5042,Revenue,NON INFLUENCIBLE.INDIVIDUAL
04/07/2022,2429397,20907.00,CHILDRENS CHOICE NURSERY,335676,"Health, Education, Care and Safeguarding",Children's & Education Services,103,Third Party Payments,505,Private Contractors,5042,Revenue,SOCIAL CARE.CHILDCARE SERVICES
04/07/2022,2429400,7935.00,TYNEMOUTH NURSERY,327713,"Health, Education, Care and Safeguarding",Children's & Education Services,103,Third Party Payments,505,Private Contractors,5042,Revenue,SOCIAL CARE.CHILDCARE SERVICES
04/07/2022,2429406,19502.10,TYNEMOUTH LILLIPUT NURSERY,335878,"Health, Education, Care and Safeguarding",Children's & Education Services,103,Third Party Payments,505,Private Contractors,5042,Revenue,SOCIAL CARE.CHILDCARE SERVICES
04/07/2022,2429408,9342.60,RAINBOW CHILDCARE,348813,"Health, Education, Care and Safeguarding",Children's & Education Services,103,Third Party Payments,505,Private Contractors,5042,Revenue,SOCIAL CARE.CHILDCARE SERVICES
04/07/2022,2429410,629.10,Redacted Personal Data,313400,"Health, Education, Care and Safeguarding",Children's & Education Services,103,Third Party Payments,505,Private Contractors,5042,Revenue,NON INFLUENCIBLE.GRANTS
04/07/2022,2429415,345.00,Redacted Personal Data,401255,"Health, Education, Care and Safeguarding",Children's & Education Services,103,Third Party Payments,505,Private Contractors,5042,Revenue,SOCIAL CARE.CHILDCARE SERVICES
05/07/2022,2431511,1449.00,LITTLE RAINBOWS NURSERY,402417,"Health, Education, Care and Safeguarding",Children's & Education Services,103,Third Party Payments,505,Private Contractors,5042,Revenue,SOCIAL CARE.CHILDCARE SERVICES
11/07/2022,2433521,477.58,DE POEL MANAGED SERVICES LIMITED,391542,Local Environmental Services,Environmental & Regulatory Services,105,Employees,501,Direct Employee Expenses,5001,Revenue,HUMAN RESOURCES.TEMPORARY & AGENCY STAFF
11/07/2022,2433521,477.58,DE POEL MANAGED SERVICES LIMITED,391542,Local Environmental Services,Environmental & Regulatory Services,105,Employees,501,Direct Employee Expenses,5001,Revenue,HUMAN RESOURCES.TEMPORARY & AGENCY STAFF
11/07/2022,2433521,477.58,DE POEL MANAGED SERVICES LIMITED,391542,Local Environmental Services,Environmental & Regulatory Services,105,Employees,501,Direct Employee Expenses,5001,Revenue,HUMAN RESOURCES.TEMPORARY & AGENCY STAFF
11/07/2022,2433521,477.58,DE POEL MANAGED SERVICES LIMITED,391542,Local Environmental Services,Environmental & Regulatory Services,105,Employees,501,Direct Employee Expenses,5001,Revenue,HUMAN RESOURCES.TEMPORARY & AGENCY STAFF
05/07/2022,2431512,6282.09,LITTLE HUBBERS DAY NURSERY,398177,"Health, Education, Care and Safeguarding",Children's & Education Services,103,Third Party Payments,505,Private Contractors,5042,Revenue,SOCIAL CARE.CHILDCARE SERVICES
05/07/2022,2431515,15594.00,LINSKILL & NORTH TYNESIDE COMMUNITY DEVELOPMENT TRUST,368853,"Health, Education, Care and Safeguarding",Children's & Education Services,103,Third Party Payments,505,Private Contractors,5042,Revenue,FACILITIES MANAGEMENT.ROOM HIRE
28/07/2022,2441535,257.58,WALLSEND DAY NURSERY,394147,"Health, Education, Care and Safeguarding",Children's & Education Services,103,Third Party Payments,505,Private Contractors,5042,Revenue,SOCIAL CARE.CHILDCARE SERVICES
05/07/2022,2431555,453142.69,KAJIMA NORTH TYNESIDE LTD,356854,Commissioning & Asset Management,Children's & Education Services,103,Third Party Payments,505,Private Contractors,5042,Revenue,REPAIRS & MAINTENANCE.REPAIRS & MAINTENANCE
12/07/2022,2434260,600.00,BRITISH YOUTH COUNCIL,386829,Corporate Strategy,Children's & Education Services,103,Supplies and Services,504,Expenses,5030,Revenue,SUBSCRIPTIONS & PUBLICATIONS.MEMBERSHIPS
04/07/2022,2429116,950.40,GRASMERE ACADAMY,388867,Commissioning & Asset Management,Children's & Education Services,103,Third Party Payments,505,Private Contractors,5042,Revenue,NON INFLUENCIBLE.EXT SCHOOLS
04/07/2022,2429149,522.00,BAILEY'S BUTTERFLIES,392846,Commissioning & Asset Management,Children's & Education Services,103,Third Party Payments,505,Private Contractors,5042,Revenue,NON INFLUENCIBLE.GRANTS
04/07/2022,2429169,540.00,THE FAMILY TREE CHILDRENS DAY NURSERY,395861,Commissioning & Asset Management,Children's & Education Services,103,Third Party Payments,505,Private Contractors,5042,Revenue,SOCIAL CARE.CHILDCARE SERVICES
04/07/2022,2429182,518.40,ACTION FOR CHILDREN,380697,Commissioning & Asset Management,Children's & Education Services,103,Third Party Payments,505,Private Contractors,5042,Revenue,SOCIAL CARE.FOSTER CARE
04/07/2022,2429261,324.00,RACHAEL�S RASCALS CHILDCARE,400439,Commissioning & Asset Management,Children's & Education Services,103,Third Party Payments,505,Private Contractors,5042,Revenue,SOCIAL CARE.CHILDCARE SERVICES
04/07/2022,2429280,324.00,LITTLE LEARNERS (BARNSTAPLE ROAD),397576,Commissioning & Asset Management,Children's & Education Services,103,Third Party Payments,505,Private Contractors,5042,Revenue,SOCIAL CARE.CHILDCARE SERVICES
04/07/2022,2429291,540.00,LITTLE BLOSSOMS CHILDCARE,397233,Commissioning & Asset Management,Children's & Education Services,103,Third Party Payments,505,Private Contractors,5042,Revenue,SOCIAL CARE.CHILDCARE SERVICES
04/07/2022,2429298,324.00,BISHOP BEWICK CATHOLIC EDUCATION TRUST,400895,Commissioning & Asset Management,Children's & Education Services,103,Third Party Payments,505,Private Contractors,5042,Revenue,NON INFLUENCIBLE.GRANTS
04/07/2022,2429299,432.00,BISHOP BEWICK CATHOLIC EDUCATION TRUST,400895,Commissioning & Asset Management,Children's & Education Services,103,Third Party Payments,505,Private Contractors,5042,Revenue,NON INFLUENCIBLE.GRANTS
04/07/2022,2429300,324.00,BISHOP BEWICK CATHOLIC EDUCATION TRUST,400895,Commissioning & Asset Management,Children's & Education Services,103,Third Party Payments,505,Private Contractors,5042,Revenue,NON INFLUENCIBLE.GRANTS
04/07/2022,2429301,972.00,BISHOP BEWICK CATHOLIC EDUCATION TRUST,400895,Commissioning & Asset Management,Children's & Education Services,103,Third Party Payments,505,Private Contractors,5042,Revenue,NON INFLUENCIBLE.GRANTS
04/07/2022,2429303,432.00,BISHOP BEWICK CATHOLIC EDUCATION TRUST,400895,Commissioning & Asset Management,Children's & Education Services,103,Third Party Payments,505,Private Contractors,5042,Revenue,NON INFLUENCIBLE.GRANTS
04/07/2022,2429391,432.00,TYNEMOUTH LILLIPUT NURSERY,335878,Commissioning & Asset Management,Children's & Education Services,103,Third Party Payments,505,Private Contractors,5042,Revenue,SOCIAL CARE.CHILDCARE SERVICES
12/07/2022,2434167,570.00,THE SCHOOL BUS,396828,"Health, Education, Care and Safeguarding",Children's & Education Services,103,Supplies and Services,504,Grants and Subscriptions,5031,Revenue,SUBSCRIPTIONS & PUBLICATIONS.MEMBERSHIPS
15/07/2022,2434943,1795.00,NEW YORK PRIMARY SCHOOL,276829,"Health, Education, Care and Safeguarding",Children's & Education Services,103,Third Party Payments,505,Independent Units within the Council,5035,Revenue,NON INFLUENCIBLE.NT SCHOOLS
15/07/2022,2434944,730.00,MARINE PARK FIRST SCHOOL,233630,"Health, Education, Care and Safeguarding",Children's & Education Services,103,Third Party Payments,505,Independent Units within the Council,5035,Revenue,NON INFLUENCIBLE.NT SCHOOLS
15/07/2022,2434945,400.00,KING EDWARD PRIMARY SCHOOL,259086,"Health, Education, Care and Safeguarding",Children's & Education Services,103,Third Party Payments,505,Independent Units within the Council,5035,Revenue,NON INFLUENCIBLE.NT SCHOOLS
15/07/2022,2434949,660.00,WHITEHOUSE PRIMARY SCHOOL,276841,"Health, Education, Care and Safeguarding",Children's & Education Services,103,Third Party Payments,505,Independent Units within the Council,5035,Revenue,NON INFLUENCIBLE.NT SCHOOLS
15/07/2022,2434961,1185.00,WATERVILLE PRIMARY SCHOOL,259090,"Health, Education, Care and Safeguarding",Children's & Education Services,103,Third Party Payments,505,Independent Units within the Council,5035,Revenue,NON INFLUENCIBLE.NT SCHOOLS
15/07/2022,2434963,1375.00,HADRIAN PARK PRIMARY SCHOOL,266560,"Health, Education, Care and Safeguarding",Children's & Education Services,103,Third Party Payments,505,Independent Units within the Council,5035,Revenue,NON INFLUENCIBLE.NT SCHOOLS
15/07/2022,2434964,870.00,BENTON DENE PRIMARY SCHOOL,259099,"Health, Education, Care and Safeguarding",Children's & Education Services,103,Third Party Payments,505,Independent Units within the Council,5035,Revenue,NON INFLUENCIBLE.NT SCHOOLS
15/07/2022,2434965,1760.00,FORDLEY COMMUNITY PRIMARY SCHOOL,276824,"Health, Education, Care and Safeguarding",Children's & Education Services,103,Third Party Payments,505,Independent Units within the Council,5035,Revenue,NON INFLUENCIBLE.NT SCHOOLS
15/07/2022,2434966,855.00,DENBIGH COMMUNITY PRIMARY SCHOOL,276823,"Health, Education, Care and Safeguarding",Children's & Education Services,103,Third Party Payments,505,Independent Units within the Council,5035,Revenue,NON INFLUENCIBLE.NT SCHOOLS
15/07/2022,2434967,885.00,CULLERCOATS PRIMARY SCHOOL,003494,"Health, Education, Care and Safeguarding",Children's & Education Services,103,Third Party Payments,505,Independent Units within the Council,5035,Revenue,NON INFLUENCIBLE.NT SCHOOLS
15/07/2022,2434968,1360.00,COLLINGWOOD PRIMARY SCHOOL,276821,"Health, Education, Care and Safeguarding",Children's & Education Services,103,Third Party Payments,505,Independent Units within the Council,5035,Revenue,NON INFLUENCIBLE.NT SCHOOLS
15/07/2022,2434969,860.00,BURRADON PRIMARY SCHOOL,280335,"Health, Education, Care and Safeguarding",Children's & Education Services,103,Third Party Payments,505,Independent Units within the Council,5035,Revenue,NON INFLUENCIBLE.NT SCHOOLS
15/07/2022,2434970,1050.00,BATTLE HILL PRIMARY SCHOOL,276846,"Health, Education, Care and Safeguarding",Children's & Education Services,103,Third Party Payments,505,Independent Units within the Council,5035,Revenue,NON INFLUENCIBLE.NT SCHOOLS
15/07/2022,2434971,765.00,APPLETREE GARDENS FIRST SCHOOL,259094,"Health, Education, Care and Safeguarding",Children's & Education Services,103,Third Party Payments,505,Independent Units within the Council,5035,Revenue,NON INFLUENCIBLE.NT SCHOOLS
15/07/2022,2434972,780.00,REDESDALE PRIMARY SCHOOL,345411,"Health, Education, Care and Safeguarding",Children's & Education Services,103,Third Party Payments,505,Independent Units within the Council,5035,Revenue,NON INFLUENCIBLE.NT SCHOOLS
15/07/2022,2434973,2140.00,ROCKCLIFFE FIRST SCHOOL,301425,"Health, Education, Care and Safeguarding",Children's & Education Services,103,Third Party Payments,505,Independent Units within the Council,5035,Revenue,NON INFLUENCIBLE.NT SCHOOLS
20/07/2022,2438597,6.82,OCE (UK) LIMITED,015952,"Health, Education, Care and Safeguarding",Children's & Education Services,103,Supplies and Services,504,"Printing, Stationery and General Office Expenses",5026,Revenue,OFFICE & REPROGRAPHICS EQUIPMENT.PHOTOCOPIERS & MFDS
21/07/2022,2438756,400.00,NEW YORK PRIMARY SCHOOL,276829,"Health, Education, Care and Safeguarding",Children's & Education Services,103,Third Party Payments,505,Independent Units within the Council,5035,Revenue,NON INFLUENCIBLE.NT SCHOOLS
27/07/2022,2441232,1140.00,Redacted Personal Data,402165,"Health, Education, Care and Safeguarding",Children's & Education Services,103,Employees,501,Indirect Employee Expenses,5002,Revenue,HUMAN RESOURCES.TRAINING & CONFERENCES
27/07/2022,2441313,542.50,EMMA SHERIDAN,387865,"Health, Education, Care and Safeguarding",Children's & Education Services,103,Employees,501,Indirect Employee Expenses,5002,Revenue,EDUCATIONAL SUPPLIES.CURRICULUM
27/07/2022,2441313,665.00,EMMA SHERIDAN,387865,"Health, Education, Care and Safeguarding",Children's & Education Services,103,Employees,501,Indirect Employee Expenses,5002,Revenue,EDUCATIONAL SUPPLIES.CURRICULUM
27/07/2022,2441316,3622.50,Redacted Personal Data,393702,"Health, Education, Care and Safeguarding",Children's & Education Services,103,Employees,501,Indirect Employee Expenses,5002,Revenue,HUMAN RESOURCES.TRAINING & CONFERENCES
28/07/2022,2441538,39.69,OCE (UK) LIMITED,015952,"Health, Education, Care and Safeguarding",Children's & Education Services,103,Supplies and Services,504,"Printing, Stationery and General Office Expenses",5026,Revenue,OFFICE & REPROGRAPHICS EQUIPMENT.PHOTOCOPIERS & MFDS
28/07/2022,2441538,97.35,OCE (UK) LIMITED,015952,"Health, Education, Care and Safeguarding",Children's & Education Services,103,Supplies and Services,504,"Printing, Stationery and General Office Expenses",5026,Revenue,OFFICE & REPROGRAPHICS EQUIPMENT.PHOTOCOPIERS & MFDS
29/07/2022,2442167,0.86,OCE (UK) LIMITED,015952,"Health, Education, Care and Safeguarding",Children's & Education Services,103,Supplies and Services,504,"Printing, Stationery and General Office Expenses",5026,Revenue,OFFICE & REPROGRAPHICS EQUIPMENT.PHOTOCOPIERS & MFDS
19/07/2022,2438324,310.00,OCR,321292,"Health, Education, Care and Safeguarding",Children's & Education Services,103,Third Party Payments,505,Private Contractors,5042,Revenue,HUMAN RESOURCES.TRAINING & CONFERENCES
12/07/2022,2434196,547.07,JUSTICE PRINCE CIC,376479,"Health, Education, Care and Safeguarding",Children's & Education Services,103,Third Party Payments,505,Private Contractors,5042,Revenue,HUMAN RESOURCES.TRAINING & CONFERENCES
12/07/2022,2434196,1378.26,JUSTICE PRINCE CIC,376479,"Health, Education, Care and Safeguarding",Children's & Education Services,103,Third Party Payments,505,Private Contractors,5042,Revenue,HUMAN RESOURCES.TRAINING & CONFERENCES
12/07/2022,2434208,100.00,WATSONS TIMBER LTD,366019,"Health, Education, Care and Safeguarding",Children's & Education Services,103,Supplies and Services,504,Equipment,5023,Revenue,BUILDING MATERIALS.TIMBER
12/07/2022,2434208,200.00,WATSONS TIMBER LTD,366019,"Health, Education, Care and Safeguarding",Children's & Education Services,103,Supplies and Services,504,Equipment,5023,Revenue,BUILDING MATERIALS.TIMBER
12/07/2022,2434208,200.00,WATSONS TIMBER LTD,366019,"Health, Education, Care and Safeguarding",Children's & Education Services,103,Supplies and Services,504,Equipment,5023,Revenue,BUILDING MATERIALS.TIMBER
12/07/2022,2434208,200.00,WATSONS TIMBER LTD,366019,"Health, Education, Care and Safeguarding",Children's & Education Services,103,Supplies and Services,504,Equipment,5023,Revenue,BUILDING MATERIALS.TIMBER
12/07/2022,2434208,208.00,WATSONS TIMBER LTD,366019,"Health, Education, Care and Safeguarding",Children's & Education Services,103,Supplies and Services,504,Equipment,5023,Revenue,BUILDING MATERIALS.TIMBER
12/07/2022,2434208,250.00,WATSONS TIMBER LTD,366019,"Health, Education, Care and Safeguarding",Children's & Education Services,103,Supplies and Services,504,Equipment,5023,Revenue,BUILDING MATERIALS.TIMBER
18/07/2022,2435974,555.00,ALBANY OFFICE EQUIPMENT (WHOLESALE) LTD,306382,"Health, Education, Care and Safeguarding",Children's & Education Services,103,Supplies and Services,504,Miscellaneous Expenses,5034,Revenue,FURNITURE.OFFICE
01/07/2022,2428101,576.00,TYNEMOUTH SURF CO,276798,"Health, Education, Care and Safeguarding",Children's & Education Services,103,Capital,Capital,Capital,Capital,Revenue,ADVERTISING & MARKETING.EVENTS & PROMOTIONS
11/07/2022,2433521,483.29,DE POEL MANAGED SERVICES LIMITED,391542,"Health, Education, Care and Safeguarding",Children's & Education Services,103,Employees,501,Direct Employee Expenses,5001,Revenue,HUMAN RESOURCES.TEMPORARY & AGENCY STAFF
14/07/2022,2434730,448.49,DE POEL MANAGED SERVICES LIMITED,391542,"Health, Education, Care and Safeguarding",Children's & Education Services,103,Employees,501,Direct Employee Expenses,5001,Revenue,HUMAN RESOURCES.TEMPORARY & AGENCY STAFF
20/07/2022,2438591,510.35,DE POEL MANAGED SERVICES LIMITED,391542,"Health, Education, Care and Safeguarding",Children's & Education Services,103,Employees,501,Direct Employee Expenses,5001,Revenue,HUMAN RESOURCES.TEMPORARY & AGENCY STAFF
08/07/2022,2432496,98.03,OCE (UK) LIMITED,015952,"Health, Education, Care and Safeguarding",Children's & Education Services,103,Supplies and Services,504,"Printing, Stationery and General Office Expenses",5026,Revenue,OFFICE & REPROGRAPHICS EQUIPMENT.PHOTOCOPIERS & MFDS
13/07/2022,2434610,1849.55,ISOS HOUSING LIMITED,105505,"Health, Education, Care and Safeguarding",Children's & Education Services,103,Premises-Related Expenditure,502,Rents,5007,Revenue,SOCIAL CARE.CARE SERVICES
20/07/2022,2438597,6.82,OCE (UK) LIMITED,015952,"Health, Education, Care and Safeguarding",Children's & Education Services,103,Supplies and Services,504,"Printing, Stationery and General Office Expenses",5026,Revenue,OFFICE & REPROGRAPHICS EQUIPMENT.PHOTOCOPIERS & MFDS
28/07/2022,2441538,39.69,OCE (UK) LIMITED,015952,"Health, Education, Care and Safeguarding",Children's & Education Services,103,Supplies and Services,504,"Printing, Stationery and General Office Expenses",5026,Revenue,OFFICE & REPROGRAPHICS EQUIPMENT.PHOTOCOPIERS & MFDS
29/07/2022,2442167,0.54,OCE (UK) LIMITED,015952,"Health, Education, Care and Safeguarding",Children's & Education Services,103,Supplies and Services,504,"Printing, Stationery and General Office Expenses",5026,Revenue,OFFICE & REPROGRAPHICS EQUIPMENT.PHOTOCOPIERS & MFDS
29/07/2022,2442167,0.86,OCE (UK) LIMITED,015952,"Health, Education, Care and Safeguarding",Children's & Education Services,103,Supplies and Services,504,"Printing, Stationery and General Office Expenses",5026,Revenue,OFFICE & REPROGRAPHICS EQUIPMENT.PHOTOCOPIERS & MFDS
29/07/2022,2442167,12.96,OCE (UK) LIMITED,015952,"Health, Education, Care and Safeguarding",Children's & Education Services,103,Supplies and Services,504,"Printing, Stationery and General Office Expenses",5026,Revenue,OFFICE & REPROGRAPHICS EQUIPMENT.PHOTOCOPIERS & MFDS
01/07/2022,2428069,585.33,AFFINITY WORKFORCE SOLUTIONS LIMITED,401394,Commissioning & Asset Management,Children's & Education Services,103,Third Party Payments,505,Private Contractors,5042,Revenue,EDUCATIONAL SUPPLIES.EDUCATIONAL PLACEMENTS
05/07/2022,2431453,1945.50,Redacted Personal Data,326565,Commissioning & Asset Management,Children's & Education Services,103,Third Party Payments,505,Private Contractors,5042,Revenue,CLOTHING
06/07/2022,2431676,228.00,NUDGE EDUCATION LIMITED,398059,Commissioning & Asset Management,Children's & Education Services,103,Third Party Payments,505,Private Contractors,5042,Revenue,EDUCATIONAL SUPPLIES.EDUCATIONAL PLACEMENTS
06/07/2022,2431676,1200.00,NUDGE EDUCATION LIMITED,398059,Commissioning & Asset Management,Children's & Education Services,103,Third Party Payments,505,Private Contractors,5042,Revenue,EDUCATIONAL SUPPLIES.EDUCATIONAL PLACEMENTS
06/07/2022,2431676,26808.35,NUDGE EDUCATION LIMITED,398059,Commissioning & Asset Management,Children's & Education Services,103,Third Party Payments,505,Private Contractors,5042,Revenue,EDUCATIONAL SUPPLIES.EDUCATIONAL PLACEMENTS
08/07/2022,2432380,600.00,FRESH START IN EDUCATION LTD,403070,Commissioning & Asset Management,Children's & Education Services,103,Third Party Payments,505,Private Contractors,5042,Revenue,EDUCATIONAL SUPPLIES.ADULT & FURTHER EDUCATION SERVICES
08/07/2022,2432380,738.00,FRESH START IN EDUCATION LTD,403070,Commissioning & Asset Management,Children's & Education Services,103,Third Party Payments,505,Private Contractors,5042,Revenue,EDUCATIONAL SUPPLIES.ADULT & FURTHER EDUCATION SERVICES
08/07/2022,2432380,1476.00,FRESH START IN EDUCATION LTD,403070,Commissioning & Asset Management,Children's & Education Services,103,Third Party Payments,505,Private Contractors,5042,Revenue,EDUCATIONAL SUPPLIES.ADULT & FURTHER EDUCATION SERVICES
12/07/2022,2434219,2250.00,EBI LEARNING LTD,402692,Commissioning & Asset Management,Children's & Education Services,103,Third Party Payments,505,Private Contractors,5042,Revenue,HUMAN RESOURCES.TRAINING & CONFERENCES
13/07/2022,2434594,336.00,RADAR TAXIS,394913,Commissioning & Asset Management,Children's & Education Services,103,Transport,503,Recharges,5017,Revenue,PUBLIC TRANSPORT.TAXI SERVICES
14/07/2022,2434680,19550.00,SPORTING CHANCE NORTH EAST,399757,Commissioning & Asset Management,Children's & Education Services,103,Third Party Payments,505,Private Contractors,5042,Revenue,EDUCATIONAL SUPPLIES.EDUCATIONAL PLACEMENTS
14/07/2022,2434698,1500.00,NISAI VIRTUAL ACADEMY,398185,Commissioning & Asset Management,Children's & Education Services,103,Third Party Payments,505,Private Contractors,5042,Revenue,EDUCATIONAL SUPPLIES.EDUCATIONAL PLACEMENTS
14/07/2022,2434763,579.76,AFFINITY WORKFORCE SOLUTIONS LIMITED,401394,Commissioning & Asset Management,Children's & Education Services,103,Third Party Payments,505,Private Contractors,5042,Revenue,EDUCATIONAL SUPPLIES.EDUCATIONAL PLACEMENTS
22/07/2022,2438971,2706.00,FRESH START IN EDUCATION LTD,403070,Commissioning & Asset Management,Children's & Education Services,103,Third Party Payments,505,Private Contractors,5042,Revenue,EDUCATIONAL SUPPLIES.ADULT & FURTHER EDUCATION SERVICES
22/07/2022,2438982,525.00,EDUCATION WORLD LIMITED,401470,Commissioning & Asset Management,Children's & Education Services,103,Third Party Payments,505,Private Contractors,5042,Revenue,EDUCATIONAL SUPPLIES.EDUCATIONAL PLACEMENTS
22/07/2022,2438982,525.00,EDUCATION WORLD LIMITED,401470,Commissioning & Asset Management,Children's & Education Services,103,Third Party Payments,505,Private Contractors,5042,Revenue,EDUCATIONAL SUPPLIES.EDUCATIONAL PLACEMENTS
22/07/2022,2438982,525.00,EDUCATION WORLD LIMITED,401470,Commissioning & Asset Management,Children's & Education Services,103,Third Party Payments,505,Private Contractors,5042,Revenue,EDUCATIONAL SUPPLIES.EDUCATIONAL PLACEMENTS
22/07/2022,2438982,525.00,EDUCATION WORLD LIMITED,401470,Commissioning & Asset Management,Children's & Education Services,103,Third Party Payments,505,Private Contractors,5042,Revenue,EDUCATIONAL SUPPLIES.EDUCATIONAL PLACEMENTS
22/07/2022,2438982,525.00,EDUCATION WORLD LIMITED,401470,Commissioning & Asset Management,Children's & Education Services,103,Third Party Payments,505,Private Contractors,5042,Revenue,EDUCATIONAL SUPPLIES.EDUCATIONAL PLACEMENTS
29/07/2022,2442110,434.82,AFFINITY WORKFORCE SOLUTIONS LIMITED,401394,Commissioning & Asset Management,Children's & Education Services,103,Third Party Payments,505,Private Contractors,5042,Revenue,EDUCATIONAL SUPPLIES.EDUCATIONAL PLACEMENTS
29/07/2022,2442110,434.82,AFFINITY WORKFORCE SOLUTIONS LIMITED,401394,Commissioning & Asset Management,Children's & Education Services,103,Third Party Payments,505,Private Contractors,5042,Revenue,EDUCATIONAL SUPPLIES.EDUCATIONAL PLACEMENTS
29/07/2022,2442133,1166.66,NISAI VIRTUAL ACADEMY,398185,Commissioning & Asset Management,Children's & Education Services,103,Third Party Payments,505,Private Contractors,5042,Revenue,EDUCATIONAL SUPPLIES.EDUCATIONAL PLACEMENTS
29/07/2022,2442133,2083.34,NISAI VIRTUAL ACADEMY,398185,Commissioning & Asset Management,Children's & Education Services,103,Third Party Payments,505,Private Contractors,5042,Revenue,EDUCATIONAL SUPPLIES.EDUCATIONAL PLACEMENTS
05/07/2022,2431497,300.00,KATE CHAPMAN,403149,"Health, Education, Care and Safeguarding",Children's & Education Services,103,Third Party Payments,505,Private Contractors,5042,Revenue,
21/07/2022,2438802,253.60,NODA TAXIS LTD,234760,"Health, Education, Care and Safeguarding",Children's & Education Services,103,Transport,503,Contract Hire and Operating Leases,5018,Revenue,PUBLIC TRANSPORT.TAXI SERVICES
22/07/2022,2439046,400.00,Redacted Personal Data,327874,"Health, Education, Care and Safeguarding",Children's & Education Services,103,Supplies and Services,504,Equipment,5023,Revenue,NON INFLUENCIBLE.WELFARE
25/07/2022,2439924,-4500.00,THE POINT OF CARE FOUNDATION,403278,"Health, Education, Care and Safeguarding",Children's & Education Services,103,Supplies and Services,504,Miscellaneous Expenses,5034,Revenue,HUMAN RESOURCES.TRAINING & CONFERENCES
25/07/2022,2439924,4500.00,THE POINT OF CARE FOUNDATION,403278,"Health, Education, Care and Safeguarding",Children's & Education Services,103,Supplies and Services,504,Miscellaneous Expenses,5034,Revenue,HUMAN RESOURCES.TRAINING & CONFERENCES
25/07/2022,2439924,12500.00,THE POINT OF CARE FOUNDATION,403278,"Health, Education, Care and Safeguarding",Children's & Education Services,103,Supplies and Services,504,Miscellaneous Expenses,5034,Revenue,HUMAN RESOURCES.TRAINING & CONFERENCES
25/07/2022,2439941,300.00,BLENDED EVENTS LIMITED,399447,"Health, Education, Care and Safeguarding",Children's & Education Services,103,Supplies and Services,504,Miscellaneous Expenses,5034,Revenue,EDUCATIONAL SUPPLIES.ADULT & FURTHER EDUCATION SERVICES
25/07/2022,2439941,700.00,BLENDED EVENTS LIMITED,399447,"Health, Education, Care and Safeguarding",Children's & Education Services,103,Supplies and Services,504,Miscellaneous Expenses,5034,Revenue,EDUCATIONAL SUPPLIES.ADULT & FURTHER EDUCATION SERVICES
27/07/2022,2441215,1650.00,INTERNATIONAL HOUSE NEWCASTLE LTD,403305,"Health, Education, Care and Safeguarding",Children's & Education Services,103,Supplies and Services,504,Miscellaneous Expenses,5034,Revenue,
27/07/2022,2441215,1650.00,INTERNATIONAL HOUSE NEWCASTLE LTD,403305,"Health, Education, Care and Safeguarding",Children's & Education Services,103,Supplies and Services,504,Miscellaneous Expenses,5034,Revenue,
27/07/2022,2441215,2200.00,INTERNATIONAL HOUSE NEWCASTLE LTD,403305,"Health, Education, Care and Safeguarding",Children's & Education Services,103,Supplies and Services,504,Miscellaneous Expenses,5034,Revenue,
27/07/2022,2441215,2200.00,INTERNATIONAL HOUSE NEWCASTLE LTD,403305,"Health, Education, Care and Safeguarding",Children's & Education Services,103,Supplies and Services,504,Miscellaneous Expenses,5034,Revenue,
27/07/2022,2441215,2200.00,INTERNATIONAL HOUSE NEWCASTLE LTD,403305,"Health, Education, Care and Safeguarding",Children's & Education Services,103,Supplies and Services,504,Miscellaneous Expenses,5034,Revenue,
29/07/2022,2442124,780.00,BLENDED EVENTS LIMITED,399447,"Health, Education, Care and Safeguarding",Children's & Education Services,103,Supplies and Services,504,Miscellaneous Expenses,5034,Revenue,EDUCATIONAL SUPPLIES.ADULT & FURTHER EDUCATION SERVICES
04/07/2022,2429323,90.00,KYLE MORLEY,392456,"Health, Education, Care and Safeguarding",Children's & Education Services,103,Third Party Payments,505,Other Establishments,5041,Revenue,ADVERTISING & MARKETING.EVENTS & PROMOTIONS
04/07/2022,2429323,135.00,KYLE MORLEY,392456,"Health, Education, Care and Safeguarding",Children's & Education Services,103,Third Party Payments,505,Other Establishments,5041,Revenue,ADVERTISING & MARKETING.EVENTS & PROMOTIONS
04/07/2022,2429323,210.00,KYLE MORLEY,392456,"Health, Education, Care and Safeguarding",Children's & Education Services,103,Third Party Payments,505,Other Establishments,5041,Revenue,ADVERTISING & MARKETING.EVENTS & PROMOTIONS
05/07/2022,2431564,252.00,PAULINE BRANDON,388343,"Health, Education, Care and Safeguarding",Children's & Education Services,103,Third Party Payments,505,Other Establishments,5041,Revenue,HUMAN RESOURCES.TRAINING & CONFERENCES
12/07/2022,2434235,900.00,Redacted Personal Data,341903,"Health, Education, Care and Safeguarding",Children's & Education Services,103,Third Party Payments,505,Other Establishments,5041,Revenue,CONSULTANCY.CONSULTANCY
14/07/2022,2434747,252.00,PAULINE BRANDON,388343,"Health, Education, Care and Safeguarding",Children's & Education Services,103,Third Party Payments,505,Other Establishments,5041,Revenue,HUMAN RESOURCES.TRAINING & CONFERENCES
19/07/2022,2438308,672.00,Redacted Personal Data,389327,"Health, Education, Care and Safeguarding",Children's & Education Services,103,Third Party Payments,505,Other Establishments,5041,Revenue,HUMAN RESOURCES.TRAINING & CONFERENCES
19/07/2022,2438308,1141.00,Redacted Personal Data,389327,"Health, Education, Care and Safeguarding",Children's & Education Services,103,Third Party Payments,505,Other Establishments,5041,Revenue,HUMAN RESOURCES.TRAINING & CONFERENCES
19/07/2022,2438309,336.00,HOLLYS SCHOOL OF STEEL,383050,"Health, Education, Care and Safeguarding",Children's & Education Services,103,Third Party Payments,505,Other Establishments,5041,Revenue,HUMAN RESOURCES.TRAINING & CONFERENCES
19/07/2022,2438309,1533.00,HOLLYS SCHOOL OF STEEL,383050,"Health, Education, Care and Safeguarding",Children's & Education Services,103,Third Party Payments,505,Other Establishments,5041,Revenue,HUMAN RESOURCES.TRAINING & CONFERENCES
19/07/2022,2438395,672.00,PETER TICKELL,402157,"Health, Education, Care and Safeguarding",Children's & Education Services,103,Third Party Payments,505,Other Establishments,5041,Revenue,HUMAN RESOURCES.TRAINING & CONFERENCES
19/07/2022,2438410,308.00,Redacted Personal Data,380617,"Health, Education, Care and Safeguarding",Children's & Education Services,103,Third Party Payments,505,Other Establishments,5041,Revenue,HUMAN RESOURCES.TRAINING & CONFERENCES
19/07/2022,2438410,644.00,Redacted Personal Data,380617,"Health, Education, Care and Safeguarding",Children's & Education Services,103,Third Party Payments,505,Other Establishments,5041,Revenue,HUMAN RESOURCES.TRAINING & CONFERENCES
20/07/2022,2438594,644.00,Redacted Personal Data,392895,"Health, Education, Care and Safeguarding",Children's & Education Services,103,Third Party Payments,505,Other Establishments,5041,Revenue,HUMAN RESOURCES.TRAINING & CONFERENCES
20/07/2022,2438595,784.00,MR SELWYN J THOMPSON,392319,"Health, Education, Care and Safeguarding",Children's & Education Services,103,Third Party Payments,505,Other Establishments,5041,Revenue,HUMAN RESOURCES.TRAINING & CONFERENCES
20/07/2022,2438609,434.00,JOHN FLOOD MUSIC LTD,346728,"Health, Education, Care and Safeguarding",Children's & Education Services,103,Third Party Payments,505,Other Establishments,5041,Revenue,HUMAN RESOURCES.TRAINING & CONFERENCES
20/07/2022,2438609,728.00,JOHN FLOOD MUSIC LTD,346728,"Health, Education, Care and Safeguarding",Children's & Education Services,103,Third Party Payments,505,Other Establishments,5041,Revenue,HUMAN RESOURCES.TRAINING & CONFERENCES
20/07/2022,2438627,1260.00,Redacted Personal Data,381217,"Health, Education, Care and Safeguarding",Children's & Education Services,103,Third Party Payments,505,Other Establishments,5041,Revenue,HUMAN RESOURCES.TRAINING & CONFERENCES
20/07/2022,2438632,1120.00,ASL PERCUSSION,401985,"Health, Education, Care and Safeguarding",Children's & Education Services,103,Third Party Payments,505,Other Establishments,5041,Revenue,HUMAN RESOURCES.TRAINING & CONFERENCES
20/07/2022,2438633,2044.00,HELEN WEST,401647,"Health, Education, Care and Safeguarding",Children's & Education Services,103,Third Party Payments,505,Other Establishments,5041,Revenue,HUMAN RESOURCES.TRAINING & CONFERENCES
21/07/2022,2438733,840.00,Redacted Personal Data,397345,"Health, Education, Care and Safeguarding",Children's & Education Services,103,Third Party Payments,505,Other Establishments,5041,Revenue,HUMAN RESOURCES.TRAINING & CONFERENCES
21/07/2022,2438804,49.50,247 GRAPHICS,392182,"Health, Education, Care and Safeguarding",Children's & Education Services,103,Supplies and Services,504,"Printing, Stationery and General Office Expenses",5026,Revenue,ADVERTISING & MARKETING.EVENTS & PROMOTIONS
21/07/2022,2438804,90.00,247 GRAPHICS,392182,"Health, Education, Care and Safeguarding",Children's & Education Services,103,Supplies and Services,504,"Printing, Stationery and General Office Expenses",5026,Revenue,ADVERTISING & MARKETING.EVENTS & PROMOTIONS
21/07/2022,2438804,125.00,247 GRAPHICS,392182,"Health, Education, Care and Safeguarding",Children's & Education Services,103,Supplies and Services,504,"Printing, Stationery and General Office Expenses",5026,Revenue,ADVERTISING & MARKETING.EVENTS & PROMOTIONS
21/07/2022,2438804,142.50,247 GRAPHICS,392182,"Health, Education, Care and Safeguarding",Children's & Education Services,103,Supplies and Services,504,"Printing, Stationery and General Office Expenses",5026,Revenue,ADVERTISING & MARKETING.EVENTS & PROMOTIONS
22/07/2022,2439048,168.00,MRS ABIGAIL TICKELL,393265,"Health, Education, Care and Safeguarding",Children's & Education Services,103,Third Party Payments,505,Other Establishments,5041,Revenue,HUMAN RESOURCES.TRAINING & CONFERENCES
22/07/2022,2439048,644.00,MRS ABIGAIL TICKELL,393265,"Health, Education, Care and Safeguarding",Children's & Education Services,103,Third Party Payments,505,Other Establishments,5041,Revenue,HUMAN RESOURCES.TRAINING & CONFERENCES
22/07/2022,2439090,875.00,MY PERFORMANCE FACTORY,385783,"Health, Education, Care and Safeguarding",Children's & Education Services,103,Third Party Payments,505,Other Establishments,5041,Revenue,HUMAN RESOURCES.TRAINING & CONFERENCES
25/07/2022,2439935,532.00,LIZZIE LOWE,401916,"Health, Education, Care and Safeguarding",Children's & Education Services,103,Third Party Payments,505,Other Establishments,5041,Revenue,HUMAN RESOURCES.TRAINING & CONFERENCES
25/07/2022,2439938,915.00,DAZZLING SOUNDS,401382,"Health, Education, Care and Safeguarding",Children's & Education Services,103,Third Party Payments,505,Other Establishments,5041,Revenue,ADVERTISING & MARKETING.EVENTS & PROMOTIONS
25/07/2022,2439942,2045.00,Redacted Personal Data,385182,"Health, Education, Care and Safeguarding",Children's & Education Services,103,Third Party Payments,505,Other Establishments,5041,Revenue,HUMAN RESOURCES.TRAINING & CONFERENCES
25/07/2022,2439945,196.00,Redacted Personal Data,399021,"Health, Education, Care and Safeguarding",Children's & Education Services,103,Third Party Payments,505,Other Establishments,5041,Revenue,HUMAN RESOURCES.TRAINING & CONFERENCES
25/07/2022,2439945,336.00,Redacted Personal Data,399021,"Health, Education, Care and Safeguarding",Children's & Education Services,103,Third Party Payments,505,Other Establishments,5041,Revenue,HUMAN RESOURCES.TRAINING & CONFERENCES
25/07/2022,2439945,2828.00,Redacted Personal Data,399021,"Health, Education, Care and Safeguarding",Children's & Education Services,103,Third Party Payments,505,Other Establishments,5041,Revenue,HUMAN RESOURCES.TRAINING & CONFERENCES
25/07/2022,2440001,1392.50,SMG (UK) LTD,383297,"Health, Education, Care and Safeguarding",Children's & Education Services,103,Third Party Payments,505,Other Establishments,5041,Revenue,ADVERTISING & MARKETING.EVENTS & PROMOTIONS
25/07/2022,2440008,616.00,THOMAS RUSHTON,396409,"Health, Education, Care and Safeguarding",Children's & Education Services,103,Third Party Payments,505,Other Establishments,5041,Revenue,HUMAN RESOURCES.TRAINING & CONFERENCES
25/07/2022,2440017,420.00,Redacted Personal Data,336852,"Health, Education, Care and Safeguarding",Children's & Education Services,103,Third Party Payments,505,Other Establishments,5041,Revenue,HUMAN RESOURCES.TRAINING & CONFERENCES
26/07/2022,2440176,13396.00,CHARANGA LTD,382258,"Health, Education, Care and Safeguarding",Children's & Education Services,103,Supplies and Services,504,Grants and Subscriptions,5031,Revenue,ICT.SOFTWARE
26/07/2022,2440182,1250.00,MY PERFORMANCE FACTORY,385783,"Health, Education, Care and Safeguarding",Children's & Education Services,103,Third Party Payments,505,Other Establishments,5041,Revenue,HUMAN RESOURCES.TRAINING & CONFERENCES
26/07/2022,2440182,2500.00,MY PERFORMANCE FACTORY,385783,"Health, Education, Care and Safeguarding",Children's & Education Services,103,Third Party Payments,505,Other Establishments,5041,Revenue,HUMAN RESOURCES.TRAINING & CONFERENCES
27/07/2022,2441305,728.00,Redacted Personal Data,378652,"Health, Education, Care and Safeguarding",Children's & Education Services,103,Third Party Payments,505,Other Establishments,5041,Revenue,HUMAN RESOURCES.TRAINING & CONFERENCES
04/07/2022,2429322,60.00,MCANDREW PLUMBING,396035,Commissioning & Asset Management,Children's & Education Services,103,Third Party Payments,505,Private Contractors,5042,Revenue,REPAIRS & MAINTENANCE.REPAIRS & MAINTENANCE
04/07/2022,2429322,60.00,MCANDREW PLUMBING,396035,Commissioning & Asset Management,Children's & Education Services,103,Third Party Payments,505,Private Contractors,5042,Revenue,REPAIRS & MAINTENANCE.REPAIRS & MAINTENANCE
04/07/2022,2429322,525.00,MCANDREW PLUMBING,396035,Commissioning & Asset Management,Children's & Education Services,103,Third Party Payments,505,Private Contractors,5042,Revenue,REPAIRS & MAINTENANCE.REPAIRS & MAINTENANCE
13/07/2022,2434487,519.00,ASL LOCKERS,400893,"Health, Education, Care and Safeguarding",Children's & Education Services,103,Supplies and Services,504,Miscellaneous Expenses,5034,Revenue,FURNITURE.OFFICE
13/07/2022,2434487,590.00,ASL LOCKERS,400893,"Health, Education, Care and Safeguarding",Children's & Education Services,103,Supplies and Services,504,Miscellaneous Expenses,5034,Revenue,FURNITURE.OFFICE
29/07/2022,2442232,950.00,CAPITA SYMONDS LTD,376582,"Health, Education, Care and Safeguarding",Children's & Education Services,103,Third Party Payments,505,Private Contractors,5042,Revenue,REPAIRS & MAINTENANCE.REPAIRS & MAINTENANCE
15/07/2022,2434962,395.00,PRESTON GRANGE PRIMARY SCHOOL,244132,"Health, Education, Care and Safeguarding",Children's & Education Services,103,Third Party Payments,505,Private Contractors,5042,Revenue,NON INFLUENCIBLE.NT SCHOOLS
20/07/2022,2438639,4583.33,BALFOUR BEATTY WORKPLACE LIMITED,389026,"Health, Education, Care and Safeguarding",Children's & Education Services,103,Third Party Payments,505,Private Contractors,5042,Revenue,HUMAN RESOURCES.PROFESSIONAL & ADVISORY SERVICES
20/07/2022,2438639,4583.33,BALFOUR BEATTY WORKPLACE LIMITED,389026,"Health, Education, Care and Safeguarding",Children's & Education Services,103,Third Party Payments,505,Private Contractors,5042,Revenue,HUMAN RESOURCES.PROFESSIONAL & ADVISORY SERVICES
14/07/2022,2434624,84.00,1ST COVERALL COMPANY LIMITED,393273,Local Environmental Services,Environmental & Regulatory Services,105,Supplies and Services,504,Miscellaneous Expenses,5034,Revenue,CLOTHING.PROTECTIVE
11/07/2022,2433521,477.58,DE POEL MANAGED SERVICES LIMITED,391542,Local Environmental Services,Environmental & Regulatory Services,105,Employees,501,Direct Employee Expenses,5001,Revenue,HUMAN RESOURCES.TEMPORARY & AGENCY STAFF
11/07/2022,2433521,477.58,DE POEL MANAGED SERVICES LIMITED,391542,Local Environmental Services,Environmental & Regulatory Services,105,Employees,501,Direct Employee Expenses,5001,Revenue,HUMAN RESOURCES.TEMPORARY & AGENCY STAFF
11/07/2022,2433521,477.58,DE POEL MANAGED SERVICES LIMITED,391542,Local Environmental Services,Environmental & Regulatory Services,105,Employees,501,Direct Employee Expenses,5001,Revenue,HUMAN RESOURCES.TEMPORARY & AGENCY STAFF
11/07/2022,2433521,477.58,DE POEL MANAGED SERVICES LIMITED,391542,Local Environmental Services,Environmental & Regulatory Services,105,Employees,501,Direct Employee Expenses,5001,Revenue,HUMAN RESOURCES.TEMPORARY & AGENCY STAFF
11/07/2022,2433521,477.58,DE POEL MANAGED SERVICES LIMITED,391542,Local Environmental Services,Environmental & Regulatory Services,105,Employees,501,Direct Employee Expenses,5001,Revenue,HUMAN RESOURCES.TEMPORARY & AGENCY STAFF
11/07/2022,2433521,477.58,DE POEL MANAGED SERVICES LIMITED,391542,Local Environmental Services,Environmental & Regulatory Services,105,Employees,501,Direct Employee Expenses,5001,Revenue,HUMAN RESOURCES.TEMPORARY & AGENCY STAFF
11/07/2022,2433521,477.58,DE POEL MANAGED SERVICES LIMITED,391542,Local Environmental Services,Environmental & Regulatory Services,105,Employees,501,Direct Employee Expenses,5001,Revenue,HUMAN RESOURCES.TEMPORARY & AGENCY STAFF
11/07/2022,2433521,477.58,DE POEL MANAGED SERVICES LIMITED,391542,Local Environmental Services,Environmental & Regulatory Services,105,Employees,501,Direct Employee Expenses,5001,Revenue,HUMAN RESOURCES.TEMPORARY & AGENCY STAFF
14/07/2022,2434730,477.58,DE POEL MANAGED SERVICES LIMITED,391542,Local Environmental Services,Environmental & Regulatory Services,105,Employees,501,Direct Employee Expenses,5001,Revenue,HUMAN RESOURCES.TEMPORARY & AGENCY STAFF
14/07/2022,2434730,477.58,DE POEL MANAGED SERVICES LIMITED,391542,Local Environmental Services,Environmental & Regulatory Services,105,Employees,501,Direct Employee Expenses,5001,Revenue,HUMAN RESOURCES.TEMPORARY & AGENCY STAFF
14/07/2022,2434730,477.58,DE POEL MANAGED SERVICES LIMITED,391542,Local Environmental Services,Environmental & Regulatory Services,105,Employees,501,Direct Employee Expenses,5001,Revenue,HUMAN RESOURCES.TEMPORARY & AGENCY STAFF
14/07/2022,2434730,477.58,DE POEL MANAGED SERVICES LIMITED,391542,Local Environmental Services,Environmental & Regulatory Services,105,Employees,501,Direct Employee Expenses,5001,Revenue,HUMAN RESOURCES.TEMPORARY & AGENCY STAFF
14/07/2022,2434730,477.58,DE POEL MANAGED SERVICES LIMITED,391542,Local Environmental Services,Environmental & Regulatory Services,105,Employees,501,Direct Employee Expenses,5001,Revenue,HUMAN RESOURCES.TEMPORARY & AGENCY STAFF
14/07/2022,2434730,477.58,DE POEL MANAGED SERVICES LIMITED,391542,Local Environmental Services,Environmental & Regulatory Services,105,Employees,501,Direct Employee Expenses,5001,Revenue,HUMAN RESOURCES.TEMPORARY & AGENCY STAFF
14/07/2022,2434730,477.58,DE POEL MANAGED SERVICES LIMITED,391542,Local Environmental Services,Environmental & Regulatory Services,105,Employees,501,Direct Employee Expenses,5001,Revenue,HUMAN RESOURCES.TEMPORARY & AGENCY STAFF
14/07/2022,2434730,477.58,DE POEL MANAGED SERVICES LIMITED,391542,Local Environmental Services,Environmental & Regulatory Services,105,Employees,501,Direct Employee Expenses,5001,Revenue,HUMAN RESOURCES.TEMPORARY & AGENCY STAFF
14/07/2022,2434730,477.58,DE POEL MANAGED SERVICES LIMITED,391542,Local Environmental Services,Environmental & Regulatory Services,105,Employees,501,Direct Employee Expenses,5001,Revenue,HUMAN RESOURCES.TEMPORARY & AGENCY STAFF
14/07/2022,2434730,477.58,DE POEL MANAGED SERVICES LIMITED,391542,Local Environmental Services,Environmental & Regulatory Services,105,Employees,501,Direct Employee Expenses,5001,Revenue,HUMAN RESOURCES.TEMPORARY & AGENCY STAFF
14/07/2022,2434730,477.58,DE POEL MANAGED SERVICES LIMITED,391542,Local Environmental Services,Environmental & Regulatory Services,105,Employees,501,Direct Employee Expenses,5001,Revenue,HUMAN RESOURCES.TEMPORARY & AGENCY STAFF
14/07/2022,2434730,484.04,DE POEL MANAGED SERVICES LIMITED,391542,Local Environmental Services,Environmental & Regulatory Services,105,Employees,501,Direct Employee Expenses,5001,Revenue,HUMAN RESOURCES.TEMPORARY & AGENCY STAFF
20/07/2022,2438591,477.58,DE POEL MANAGED SERVICES LIMITED,391542,Local Environmental Services,Environmental & Regulatory Services,105,Employees,501,Direct Employee Expenses,5001,Revenue,HUMAN RESOURCES.TEMPORARY & AGENCY STAFF
20/07/2022,2438591,477.58,DE POEL MANAGED SERVICES LIMITED,391542,Local Environmental Services,Environmental & Regulatory Services,105,Employees,501,Direct Employee Expenses,5001,Revenue,HUMAN RESOURCES.TEMPORARY & AGENCY STAFF
20/07/2022,2438591,477.58,DE POEL MANAGED SERVICES LIMITED,391542,Local Environmental Services,Environmental & Regulatory Services,105,Employees,501,Direct Employee Expenses,5001,Revenue,HUMAN RESOURCES.TEMPORARY & AGENCY STAFF
20/07/2022,2438591,477.58,DE POEL MANAGED SERVICES LIMITED,391542,Local Environmental Services,Environmental & Regulatory Services,105,Employees,501,Direct Employee Expenses,5001,Revenue,HUMAN RESOURCES.TEMPORARY & AGENCY STAFF
20/07/2022,2438591,477.58,DE POEL MANAGED SERVICES LIMITED,391542,Local Environmental Services,Environmental & Regulatory Services,105,Employees,501,Direct Employee Expenses,5001,Revenue,HUMAN RESOURCES.TEMPORARY & AGENCY STAFF
20/07/2022,2438591,477.58,DE POEL MANAGED SERVICES LIMITED,391542,Local Environmental Services,Environmental & Regulatory Services,105,Employees,501,Direct Employee Expenses,5001,Revenue,HUMAN RESOURCES.TEMPORARY & AGENCY STAFF
20/07/2022,2438591,477.58,DE POEL MANAGED SERVICES LIMITED,391542,Local Environmental Services,Environmental & Regulatory Services,105,Employees,501,Direct Employee Expenses,5001,Revenue,HUMAN RESOURCES.TEMPORARY & AGENCY STAFF
20/07/2022,2438591,477.58,DE POEL MANAGED SERVICES LIMITED,391542,Local Environmental Services,Environmental & Regulatory Services,105,Employees,501,Direct Employee Expenses,5001,Revenue,HUMAN RESOURCES.TEMPORARY & AGENCY STAFF
20/07/2022,2438591,477.58,DE POEL MANAGED SERVICES LIMITED,391542,Local Environmental Services,Environmental & Regulatory Services,105,Employees,501,Direct Employee Expenses,5001,Revenue,HUMAN RESOURCES.TEMPORARY & AGENCY STAFF
20/07/2022,2438591,477.58,DE POEL MANAGED SERVICES LIMITED,391542,Local Environmental Services,Environmental & Regulatory Services,105,Employees,501,Direct Employee Expenses,5001,Revenue,HUMAN RESOURCES.TEMPORARY & AGENCY STAFF
20/07/2022,2438591,477.58,DE POEL MANAGED SERVICES LIMITED,391542,Local Environmental Services,Environmental & Regulatory Services,105,Employees,501,Direct Employee Expenses,5001,Revenue,HUMAN RESOURCES.TEMPORARY & AGENCY STAFF
20/07/2022,2438591,477.58,DE POEL MANAGED SERVICES LIMITED,391542,Local Environmental Services,Environmental & Regulatory Services,105,Employees,501,Direct Employee Expenses,5001,Revenue,HUMAN RESOURCES.TEMPORARY & AGENCY STAFF
25/07/2022,2440015,4736.00,UK CONTAINER MAINTENANCE LTD,388158,Local Environmental Services,Environmental & Regulatory Services,105,Supplies and Services,504,Equipment,5023,Revenue,WASTE.CONSUMABLES
29/07/2022,2442220,12030.14,OVERTON UK LTD,247577,Local Environmental Services,Environmental & Regulatory Services,105,Transport,503,Direct Transport Costs,5016,Revenue,VEHICLE MANAGEMENT.PARTS
01/07/2022,2428111,114.00,CARRS BILLINGTON AGRICULTURE,243075,Local Environmental Services,Cultural & Related Services,104,Supplies and Services,504,Equipment,5023,Revenue,VEHICLE MANAGEMENT.PARTS
01/07/2022,2428111,312.00,CARRS BILLINGTON AGRICULTURE,243075,Local Environmental Services,Cultural & Related Services,104,Supplies and Services,504,Equipment,5023,Revenue,VEHICLE MANAGEMENT.PARTS
11/07/2022,2433521,468.28,DE POEL MANAGED SERVICES LIMITED,391542,Local Environmental Services,Cultural & Related Services,104,Employees,501,Direct Employee Expenses,5001,Revenue,HUMAN RESOURCES.TEMPORARY & AGENCY STAFF
11/07/2022,2433521,468.28,DE POEL MANAGED SERVICES LIMITED,391542,Local Environmental Services,Cultural & Related Services,104,Employees,501,Direct Employee Expenses,5001,Revenue,HUMAN RESOURCES.TEMPORARY & AGENCY STAFF
11/07/2022,2433521,468.28,DE POEL MANAGED SERVICES LIMITED,391542,Local Environmental Services,Cultural & Related Services,104,Employees,501,Direct Employee Expenses,5001,Revenue,HUMAN RESOURCES.TEMPORARY & AGENCY STAFF
13/07/2022,2434517,120.25,NOMIX ENVIRO,350804,Local Environmental Services,Cultural & Related Services,104,Supplies and Services,504,Equipment,5023,Revenue,HORTICULTURAL.TOOLS & EQUIPMENT
13/07/2022,2434517,966.50,NOMIX ENVIRO,350804,Local Environmental Services,Cultural & Related Services,104,Supplies and Services,504,Equipment,5023,Revenue,HORTICULTURAL.TOOLS & EQUIPMENT
13/07/2022,2434517,1320.00,NOMIX ENVIRO,350804,Local Environmental Services,Cultural & Related Services,104,Supplies and Services,504,Equipment,5023,Revenue,HORTICULTURAL.TOOLS & EQUIPMENT
14/07/2022,2434730,468.28,DE POEL MANAGED SERVICES LIMITED,391542,Local Environmental Services,Cultural & Related Services,104,Employees,501,Direct Employee Expenses,5001,Revenue,HUMAN RESOURCES.TEMPORARY & AGENCY STAFF
14/07/2022,2434730,468.28,DE POEL MANAGED SERVICES LIMITED,391542,Local Environmental Services,Cultural & Related Services,104,Employees,501,Direct Employee Expenses,5001,Revenue,HUMAN RESOURCES.TEMPORARY & AGENCY STAFF
14/07/2022,2434730,468.28,DE POEL MANAGED SERVICES LIMITED,391542,Local Environmental Services,Cultural & Related Services,104,Employees,501,Direct Employee Expenses,5001,Revenue,HUMAN RESOURCES.TEMPORARY & AGENCY STAFF
20/07/2022,2438591,468.28,DE POEL MANAGED SERVICES LIMITED,391542,Local Environmental Services,Cultural & Related Services,104,Employees,501,Direct Employee Expenses,5001,Revenue,HUMAN RESOURCES.TEMPORARY & AGENCY STAFF
20/07/2022,2438591,468.28,DE POEL MANAGED SERVICES LIMITED,391542,Local Environmental Services,Cultural & Related Services,104,Employees,501,Direct Employee Expenses,5001,Revenue,HUMAN RESOURCES.TEMPORARY & AGENCY STAFF
20/07/2022,2438591,468.28,DE POEL MANAGED SERVICES LIMITED,391542,Local Environmental Services,Cultural & Related Services,104,Employees,501,Direct Employee Expenses,5001,Revenue,HUMAN RESOURCES.TEMPORARY & AGENCY STAFF
11/07/2022,2433521,468.28,DE POEL MANAGED SERVICES LIMITED,391542,Local Environmental Services,Cultural & Related Services,104,Employees,501,Direct Employee Expenses,5001,Revenue,HUMAN RESOURCES.TEMPORARY & AGENCY STAFF
11/07/2022,2433521,468.28,DE POEL MANAGED SERVICES LIMITED,391542,Local Environmental Services,Cultural & Related Services,104,Employees,501,Direct Employee Expenses,5001,Revenue,HUMAN RESOURCES.TEMPORARY & AGENCY STAFF
13/07/2022,2434517,22.00,NOMIX ENVIRO,350804,Local Environmental Services,Cultural & Related Services,104,Supplies and Services,504,Equipment,5023,Revenue,HORTICULTURAL.TOOLS & EQUIPMENT
13/07/2022,2434517,47.20,NOMIX ENVIRO,350804,Local Environmental Services,Cultural & Related Services,104,Supplies and Services,504,Equipment,5023,Revenue,HORTICULTURAL.TOOLS & EQUIPMENT
13/07/2022,2434517,102.40,NOMIX ENVIRO,350804,Local Environmental Services,Cultural & Related Services,104,Supplies and Services,504,Equipment,5023,Revenue,HORTICULTURAL.TOOLS & EQUIPMENT
13/07/2022,2434517,160.00,NOMIX ENVIRO,350804,Local Environmental Services,Cultural & Related Services,104,Supplies and Services,504,Equipment,5023,Revenue,HORTICULTURAL.TOOLS & EQUIPMENT
13/07/2022,2434517,120.25,NOMIX ENVIRO,350804,Local Environmental Services,Cultural & Related Services,104,Supplies and Services,504,Equipment,5023,Revenue,HORTICULTURAL.TOOLS & EQUIPMENT
13/07/2022,2434517,966.50,NOMIX ENVIRO,350804,Local Environmental Services,Cultural & Related Services,104,Supplies and Services,504,Equipment,5023,Revenue,HORTICULTURAL.TOOLS & EQUIPMENT
13/07/2022,2434517,1320.00,NOMIX ENVIRO,350804,Local Environmental Services,Cultural & Related Services,104,Supplies and Services,504,Equipment,5023,Revenue,HORTICULTURAL.TOOLS & EQUIPMENT
14/07/2022,2434730,468.28,DE POEL MANAGED SERVICES LIMITED,391542,Local Environmental Services,Cultural & Related Services,104,Employees,501,Direct Employee Expenses,5001,Revenue,HUMAN RESOURCES.TEMPORARY & AGENCY STAFF
14/07/2022,2434730,468.28,DE POEL MANAGED SERVICES LIMITED,391542,Local Environmental Services,Cultural & Related Services,104,Employees,501,Direct Employee Expenses,5001,Revenue,HUMAN RESOURCES.TEMPORARY & AGENCY STAFF
20/07/2022,2438591,468.28,DE POEL MANAGED SERVICES LIMITED,391542,Local Environmental Services,Cultural & Related Services,104,Employees,501,Direct Employee Expenses,5001,Revenue,HUMAN RESOURCES.TEMPORARY & AGENCY STAFF
20/07/2022,2438603,241.90,GROUNDSMAN TOOLS & SUPPLIES,375882,Local Environmental Services,Cultural & Related Services,104,Supplies and Services,504,Equipment,5023,Revenue,BUILDING MATERIALS.HAND TOOLS
11/07/2022,2433521,468.28,DE POEL MANAGED SERVICES LIMITED,391542,Local Environmental Services,Cultural & Related Services,104,Employees,501,Direct Employee Expenses,5001,Revenue,HUMAN RESOURCES.TEMPORARY & AGENCY STAFF
11/07/2022,2433521,468.28,DE POEL MANAGED SERVICES LIMITED,391542,Local Environmental Services,Cultural & Related Services,104,Employees,501,Direct Employee Expenses,5001,Revenue,HUMAN RESOURCES.TEMPORARY & AGENCY STAFF
11/07/2022,2433521,468.28,DE POEL MANAGED SERVICES LIMITED,391542,Local Environmental Services,Cultural & Related Services,104,Employees,501,Direct Employee Expenses,5001,Revenue,HUMAN RESOURCES.TEMPORARY & AGENCY STAFF
13/07/2022,2434517,47.20,NOMIX ENVIRO,350804,Local Environmental Services,Cultural & Related Services,104,Supplies and Services,504,Equipment,5023,Revenue,HORTICULTURAL.TOOLS & EQUIPMENT
13/07/2022,2434517,75.70,NOMIX ENVIRO,350804,Local Environmental Services,Cultural & Related Services,104,Supplies and Services,504,Equipment,5023,Revenue,HORTICULTURAL.TOOLS & EQUIPMENT
13/07/2022,2434517,80.00,NOMIX ENVIRO,350804,Local Environmental Services,Cultural & Related Services,104,Supplies and Services,504,Equipment,5023,Revenue,HORTICULTURAL.TOOLS & EQUIPMENT
13/07/2022,2434517,102.40,NOMIX ENVIRO,350804,Local Environmental Services,Cultural & Related Services,104,Supplies and Services,504,Equipment,5023,Revenue,HORTICULTURAL.TOOLS & EQUIPMENT
13/07/2022,2434517,120.25,NOMIX ENVIRO,350804,Local Environmental Services,Cultural & Related Services,104,Supplies and Services,504,Equipment,5023,Revenue,HORTICULTURAL.TOOLS & EQUIPMENT
13/07/2022,2434517,966.50,NOMIX ENVIRO,350804,Local Environmental Services,Cultural & Related Services,104,Supplies and Services,504,Equipment,5023,Revenue,HORTICULTURAL.TOOLS & EQUIPMENT
13/07/2022,2434517,1320.00,NOMIX ENVIRO,350804,Local Environmental Services,Cultural & Related Services,104,Supplies and Services,504,Equipment,5023,Revenue,HORTICULTURAL.TOOLS & EQUIPMENT
13/07/2022,2434517,1584.00,NOMIX ENVIRO,350804,Local Environmental Services,Cultural & Related Services,104,Supplies and Services,504,Equipment,5023,Revenue,HORTICULTURAL.TOOLS & EQUIPMENT
13/07/2022,2434571,18.45,A HILL & SONS LTD,372634,Local Environmental Services,Cultural & Related Services,104,Supplies and Services,504,Equipment,5023,Revenue,HORTICULTURAL.TOOLS & EQUIPMENT
13/07/2022,2434571,42.75,A HILL & SONS LTD,372634,Local Environmental Services,Cultural & Related Services,104,Supplies and Services,504,Equipment,5023,Revenue,HORTICULTURAL.TOOLS & EQUIPMENT
13/07/2022,2434571,48.15,A HILL & SONS LTD,372634,Local Environmental Services,Cultural & Related Services,104,Supplies and Services,504,Equipment,5023,Revenue,HORTICULTURAL.TOOLS & EQUIPMENT
13/07/2022,2434571,49.05,A HILL & SONS LTD,372634,Local Environmental Services,Cultural & Related Services,104,Supplies and Services,504,Equipment,5023,Revenue,HORTICULTURAL.TOOLS & EQUIPMENT
13/07/2022,2434571,56.25,A HILL & SONS LTD,372634,Local Environmental Services,Cultural & Related Services,104,Supplies and Services,504,Equipment,5023,Revenue,HORTICULTURAL.TOOLS & EQUIPMENT
13/07/2022,2434571,59.25,A HILL & SONS LTD,372634,Local Environmental Services,Cultural & Related Services,104,Supplies and Services,504,Equipment,5023,Revenue,HORTICULTURAL.TOOLS & EQUIPMENT
13/07/2022,2434571,66.50,A HILL & SONS LTD,372634,Local Environmental Services,Cultural & Related Services,104,Supplies and Services,504,Equipment,5023,Revenue,HORTICULTURAL.TOOLS & EQUIPMENT
13/07/2022,2434571,67.25,A HILL & SONS LTD,372634,Local Environmental Services,Cultural & Related Services,104,Supplies and Services,504,Equipment,5023,Revenue,HORTICULTURAL.TOOLS & EQUIPMENT
13/07/2022,2434571,72.00,A HILL & SONS LTD,372634,Local Environmental Services,Cultural & Related Services,104,Supplies and Services,504,Equipment,5023,Revenue,HORTICULTURAL.TOOLS & EQUIPMENT
13/07/2022,2434571,76.25,A HILL & SONS LTD,372634,Local Environmental Services,Cultural & Related Services,104,Supplies and Services,504,Equipment,5023,Revenue,HORTICULTURAL.TOOLS & EQUIPMENT
13/07/2022,2434571,85.25,A HILL & SONS LTD,372634,Local Environmental Services,Cultural & Related Services,104,Supplies and Services,504,Equipment,5023,Revenue,HORTICULTURAL.TOOLS & EQUIPMENT
13/07/2022,2434571,86.00,A HILL & SONS LTD,372634,Local Environmental Services,Cultural & Related Services,104,Supplies and Services,504,Equipment,5023,Revenue,HORTICULTURAL.TOOLS & EQUIPMENT
13/07/2022,2434571,87.00,A HILL & SONS LTD,372634,Local Environmental Services,Cultural & Related Services,104,Supplies and Services,504,Equipment,5023,Revenue,HORTICULTURAL.TOOLS & EQUIPMENT
13/07/2022,2434571,132.65,A HILL & SONS LTD,372634,Local Environmental Services,Cultural & Related Services,104,Supplies and Services,504,Equipment,5023,Revenue,HORTICULTURAL.TOOLS & EQUIPMENT
13/07/2022,2434571,142.00,A HILL & SONS LTD,372634,Local Environmental Services,Cultural & Related Services,104,Supplies and Services,504,Equipment,5023,Revenue,HORTICULTURAL.TOOLS & EQUIPMENT
13/07/2022,2434571,162.60,A HILL & SONS LTD,372634,Local Environmental Services,Cultural & Related Services,104,Supplies and Services,504,Equipment,5023,Revenue,HORTICULTURAL.TOOLS & EQUIPMENT
13/07/2022,2434571,165.90,A HILL & SONS LTD,372634,Local Environmental Services,Cultural & Related Services,104,Supplies and Services,504,Equipment,5023,Revenue,HORTICULTURAL.TOOLS & EQUIPMENT
14/07/2022,2434730,468.28,DE POEL MANAGED SERVICES LIMITED,391542,Local Environmental Services,Cultural & Related Services,104,Employees,501,Direct Employee Expenses,5001,Revenue,HUMAN RESOURCES.TEMPORARY & AGENCY STAFF
14/07/2022,2434730,468.28,DE POEL MANAGED SERVICES LIMITED,391542,Local Environmental Services,Cultural & Related Services,104,Employees,501,Direct Employee Expenses,5001,Revenue,HUMAN RESOURCES.TEMPORARY & AGENCY STAFF
14/07/2022,2434730,468.28,DE POEL MANAGED SERVICES LIMITED,391542,Local Environmental Services,Cultural & Related Services,104,Employees,501,Direct Employee Expenses,5001,Revenue,HUMAN RESOURCES.TEMPORARY & AGENCY STAFF
20/07/2022,2438591,468.28,DE POEL MANAGED SERVICES LIMITED,391542,Local Environmental Services,Cultural & Related Services,104,Employees,501,Direct Employee Expenses,5001,Revenue,HUMAN RESOURCES.TEMPORARY & AGENCY STAFF
20/07/2022,2438591,468.28,DE POEL MANAGED SERVICES LIMITED,391542,Local Environmental Services,Cultural & Related Services,104,Employees,501,Direct Employee Expenses,5001,Revenue,HUMAN RESOURCES.TEMPORARY & AGENCY STAFF
11/07/2022,2433521,518.90,DE POEL MANAGED SERVICES LIMITED,391542,Local Environmental Services,Cultural & Related Services,104,Employees,501,Direct Employee Expenses,5001,Revenue,HUMAN RESOURCES.TEMPORARY & AGENCY STAFF
11/07/2022,2433521,569.52,DE POEL MANAGED SERVICES LIMITED,391542,Local Environmental Services,Cultural & Related Services,104,Employees,501,Direct Employee Expenses,5001,Revenue,HUMAN RESOURCES.TEMPORARY & AGENCY STAFF
11/07/2022,2433521,620.15,DE POEL MANAGED SERVICES LIMITED,391542,Local Environmental Services,Cultural & Related Services,104,Employees,501,Direct Employee Expenses,5001,Revenue,HUMAN RESOURCES.TEMPORARY & AGENCY STAFF
11/07/2022,2433564,1108.06,PERCY A HUDSON LTD,008396,Local Environmental Services,Cultural & Related Services,104,Supplies and Services,504,Equipment,5023,Revenue,REPAIRS & MAINTENANCE.REPAIRS & MAINTENANCE
13/07/2022,2434517,80.00,NOMIX ENVIRO,350804,Local Environmental Services,Cultural & Related Services,104,Supplies and Services,504,Equipment,5023,Revenue,HORTICULTURAL.TOOLS & EQUIPMENT
13/07/2022,2434517,102.40,NOMIX ENVIRO,350804,Local Environmental Services,Cultural & Related Services,104,Supplies and Services,504,Equipment,5023,Revenue,HORTICULTURAL.TOOLS & EQUIPMENT
13/07/2022,2434517,32.00,NOMIX ENVIRO,350804,Local Environmental Services,Cultural & Related Services,104,Supplies and Services,504,Equipment,5023,Revenue,HORTICULTURAL.TOOLS & EQUIPMENT
13/07/2022,2434517,32.00,NOMIX ENVIRO,350804,Local Environmental Services,Cultural & Related Services,104,Supplies and Services,504,Equipment,5023,Revenue,HORTICULTURAL.TOOLS & EQUIPMENT
13/07/2022,2434517,51.00,NOMIX ENVIRO,350804,Local Environmental Services,Cultural & Related Services,104,Supplies and Services,504,Equipment,5023,Revenue,HORTICULTURAL.TOOLS & EQUIPMENT
13/07/2022,2434517,120.25,NOMIX ENVIRO,350804,Local Environmental Services,Cultural & Related Services,104,Supplies and Services,504,Equipment,5023,Revenue,HORTICULTURAL.TOOLS & EQUIPMENT
13/07/2022,2434517,966.50,NOMIX ENVIRO,350804,Local Environmental Services,Cultural & Related Services,104,Supplies and Services,504,Equipment,5023,Revenue,HORTICULTURAL.TOOLS & EQUIPMENT
13/07/2022,2434517,1056.00,NOMIX ENVIRO,350804,Local Environmental Services,Cultural & Related Services,104,Supplies and Services,504,Equipment,5023,Revenue,HORTICULTURAL.TOOLS & EQUIPMENT
13/07/2022,2434517,1320.00,NOMIX ENVIRO,350804,Local Environmental Services,Cultural & Related Services,104,Supplies and Services,504,Equipment,5023,Revenue,HORTICULTURAL.TOOLS & EQUIPMENT
14/07/2022,2434730,468.28,DE POEL MANAGED SERVICES LIMITED,391542,Local Environmental Services,Cultural & Related Services,104,Employees,501,Direct Employee Expenses,5001,Revenue,HUMAN RESOURCES.TEMPORARY & AGENCY STAFF
14/07/2022,2434730,468.28,DE POEL MANAGED SERVICES LIMITED,391542,Local Environmental Services,Cultural & Related Services,104,Employees,501,Direct Employee Expenses,5001,Revenue,HUMAN RESOURCES.TEMPORARY & AGENCY STAFF
20/07/2022,2438591,468.28,DE POEL MANAGED SERVICES LIMITED,391542,Local Environmental Services,Cultural & Related Services,104,Employees,501,Direct Employee Expenses,5001,Revenue,HUMAN RESOURCES.TEMPORARY & AGENCY STAFF
20/07/2022,2438591,468.28,DE POEL MANAGED SERVICES LIMITED,391542,Local Environmental Services,Cultural & Related Services,104,Employees,501,Direct Employee Expenses,5001,Revenue,HUMAN RESOURCES.TEMPORARY & AGENCY STAFF
20/07/2022,2438591,468.28,DE POEL MANAGED SERVICES LIMITED,391542,Local Environmental Services,Cultural & Related Services,104,Employees,501,Direct Employee Expenses,5001,Revenue,HUMAN RESOURCES.TEMPORARY & AGENCY STAFF
29/07/2022,2442207,73.86,GROUNDSMAN TOOLS & SUPPLIES,375882,Local Environmental Services,Cultural & Related Services,104,Supplies and Services,504,Equipment,5023,Revenue,BUILDING MATERIALS.HAND TOOLS
29/07/2022,2442207,849.95,GROUNDSMAN TOOLS & SUPPLIES,375882,Local Environmental Services,Cultural & Related Services,104,Supplies and Services,504,Equipment,5023,Revenue,BUILDING MATERIALS.HAND TOOLS
29/07/2022,2442207,279.60,GROUNDSMAN TOOLS & SUPPLIES,375882,Local Environmental Services,Cultural & Related Services,104,Supplies and Services,504,Equipment,5023,Revenue,BUILDING MATERIALS.HAND TOOLS
29/07/2022,2442207,110.80,GROUNDSMAN TOOLS & SUPPLIES,375882,Local Environmental Services,Cultural & Related Services,104,Supplies and Services,504,"Clothing, Uniforms and Laundry",5025,Revenue,BUILDING MATERIALS.HAND TOOLS
29/07/2022,2442207,220.00,GROUNDSMAN TOOLS & SUPPLIES,375882,Local Environmental Services,Cultural & Related Services,104,Supplies and Services,504,"Clothing, Uniforms and Laundry",5025,Revenue,BUILDING MATERIALS.HAND TOOLS
05/07/2022,2431447,1440.00,TREEPARTNER TRAINING LTD,402820,Local Environmental Services,Cultural & Related Services,104,Supplies and Services,504,Miscellaneous Expenses,5034,Revenue,HUMAN RESOURCES.TRAINING & CONFERENCES
14/07/2022,2434624,252.00,1ST COVERALL COMPANY LIMITED,393273,Local Environmental Services,Cultural & Related Services,104,Supplies and Services,504,Miscellaneous Expenses,5034,Revenue,CLOTHING.PROTECTIVE
19/07/2022,2438329,373.98,DVS COMPONENTS,004169,Local Environmental Services,Cultural & Related Services,104,Supplies and Services,504,Equipment,5023,Revenue,VEHICLE MANAGEMENT.PARTS
27/07/2022,2441310,287.20,KILLGERM CHEMICALS LTD,251235,Local Environmental Services,Environmental & Regulatory Services,105,Supplies and Services,504,Equipment,5023,Revenue,ENVIRONMENTAL SERVICES.ANIMAL SERVICES
27/07/2022,2441310,300.80,KILLGERM CHEMICALS LTD,251235,Local Environmental Services,Environmental & Regulatory Services,105,Supplies and Services,504,Equipment,5023,Revenue,ENVIRONMENTAL SERVICES.ANIMAL SERVICES
27/07/2022,2441310,448.00,KILLGERM CHEMICALS LTD,251235,Local Environmental Services,Environmental & Regulatory Services,105,Supplies and Services,504,Equipment,5023,Revenue,ENVIRONMENTAL SERVICES.ANIMAL SERVICES
11/07/2022,2433521,473.81,DE POEL MANAGED SERVICES LIMITED,391542,Local Environmental Services,Police Services,111,Employees,501,Direct Employee Expenses,5001,Revenue,HUMAN RESOURCES.TEMPORARY & AGENCY STAFF
11/07/2022,2433521,473.81,DE POEL MANAGED SERVICES LIMITED,391542,Local Environmental Services,Police Services,111,Employees,501,Direct Employee Expenses,5001,Revenue,HUMAN RESOURCES.TEMPORARY & AGENCY STAFF
11/07/2022,2433521,473.81,DE POEL MANAGED SERVICES LIMITED,391542,Local Environmental Services,Police Services,111,Employees,501,Direct Employee Expenses,5001,Revenue,HUMAN RESOURCES.TEMPORARY & AGENCY STAFF
21/07/2022,2438689,364.00,1ST COVERALL COMPANY LIMITED,393273,Waste Management,Environmental & Regulatory Services,105,Supplies and Services,504,Miscellaneous Expenses,5034,Revenue,CLOTHING.PROTECTIVE
21/07/2022,2438689,364.00,1ST COVERALL COMPANY LIMITED,393273,Waste Management,Environmental & Regulatory Services,105,Supplies and Services,504,Miscellaneous Expenses,5034,Revenue,CLOTHING.PROTECTIVE
21/07/2022,2438689,364.00,1ST COVERALL COMPANY LIMITED,393273,Waste Management,Environmental & Regulatory Services,105,Supplies and Services,504,Miscellaneous Expenses,5034,Revenue,CLOTHING.PROTECTIVE
21/07/2022,2438689,364.00,1ST COVERALL COMPANY LIMITED,393273,Waste Management,Environmental & Regulatory Services,105,Supplies and Services,504,Miscellaneous Expenses,5034,Revenue,CLOTHING.PROTECTIVE
27/07/2022,2441380,12900.00,CRAEMER UK LTD,384873,Waste Management,Environmental & Regulatory Services,105,Supplies and Services,504,Equipment,5023,Revenue,WASTE.CONSUMABLES
28/07/2022,2441538,39.69,OCE (UK) LIMITED,015952,Waste Management,Environmental & Regulatory Services,105,Supplies and Services,504,"Printing, Stationery and General Office Expenses",5026,Revenue,OFFICE & REPROGRAPHICS EQUIPMENT.PHOTOCOPIERS & MFDS
29/07/2022,2442167,0.04,OCE (UK) LIMITED,015952,Waste Management,Environmental & Regulatory Services,105,Supplies and Services,504,"Printing, Stationery and General Office Expenses",5026,Revenue,OFFICE & REPROGRAPHICS EQUIPMENT.PHOTOCOPIERS & MFDS
29/07/2022,2442167,0.25,OCE (UK) LIMITED,015952,Waste Management,Environmental & Regulatory Services,105,Supplies and Services,504,"Printing, Stationery and General Office Expenses",5026,Revenue,OFFICE & REPROGRAPHICS EQUIPMENT.PHOTOCOPIERS & MFDS
29/07/2022,2442167,0.86,OCE (UK) LIMITED,015952,Waste Management,Environmental & Regulatory Services,105,Supplies and Services,504,"Printing, Stationery and General Office Expenses",5026,Revenue,OFFICE & REPROGRAPHICS EQUIPMENT.PHOTOCOPIERS & MFDS
29/07/2022,2442167,5.34,OCE (UK) LIMITED,015952,Waste Management,Environmental & Regulatory Services,105,Supplies and Services,504,"Printing, Stationery and General Office Expenses",5026,Revenue,OFFICE & REPROGRAPHICS EQUIPMENT.PHOTOCOPIERS & MFDS
29/07/2022,2442167,9.28,OCE (UK) LIMITED,015952,Waste Management,Environmental & Regulatory Services,105,Supplies and Services,504,"Printing, Stationery and General Office Expenses",5026,Revenue,OFFICE & REPROGRAPHICS EQUIPMENT.PHOTOCOPIERS & MFDS
20/07/2022,2438597,0.31,OCE (UK) LIMITED,015952,Local Environmental Services,Environmental & Regulatory Services,105,Supplies and Services,504,"Printing, Stationery and General Office Expenses",5026,Revenue,OFFICE & REPROGRAPHICS EQUIPMENT.PHOTOCOPIERS & MFDS
20/07/2022,2438597,6.82,OCE (UK) LIMITED,015952,Local Environmental Services,Environmental & Regulatory Services,105,Supplies and Services,504,"Printing, Stationery and General Office Expenses",5026,Revenue,OFFICE & REPROGRAPHICS EQUIPMENT.PHOTOCOPIERS & MFDS
28/07/2022,2441402,33.72,1ST COVERALL COMPANY LIMITED,393273,Local Environmental Services,Environmental & Regulatory Services,105,Supplies and Services,504,"Clothing, Uniforms and Laundry",5025,Revenue,CLOTHING.PROTECTIVE
28/07/2022,2441402,42.84,1ST COVERALL COMPANY LIMITED,393273,Local Environmental Services,Environmental & Regulatory Services,105,Supplies and Services,504,"Clothing, Uniforms and Laundry",5025,Revenue,CLOTHING.PROTECTIVE
28/07/2022,2441402,42.84,1ST COVERALL COMPANY LIMITED,393273,Local Environmental Services,Environmental & Regulatory Services,105,Supplies and Services,504,"Clothing, Uniforms and Laundry",5025,Revenue,CLOTHING.PROTECTIVE
28/07/2022,2441402,270.00,1ST COVERALL COMPANY LIMITED,393273,Local Environmental Services,Environmental & Regulatory Services,105,Supplies and Services,504,"Clothing, Uniforms and Laundry",5025,Revenue,CLOTHING.PROTECTIVE
28/07/2022,2441538,39.69,OCE (UK) LIMITED,015952,Local Environmental Services,Environmental & Regulatory Services,105,Supplies and Services,504,"Printing, Stationery and General Office Expenses",5026,Revenue,OFFICE & REPROGRAPHICS EQUIPMENT.PHOTOCOPIERS & MFDS
14/07/2022,2434730,468.28,DE POEL MANAGED SERVICES LIMITED,391542,Local Environmental Services,Police Services,111,Employees,501,Direct Employee Expenses,5001,Revenue,HUMAN RESOURCES.TEMPORARY & AGENCY STAFF
14/07/2022,2434730,468.28,DE POEL MANAGED SERVICES LIMITED,391542,Local Environmental Services,Police Services,111,Employees,501,Direct Employee Expenses,5001,Revenue,HUMAN RESOURCES.TEMPORARY & AGENCY STAFF
14/07/2022,2434730,473.81,DE POEL MANAGED SERVICES LIMITED,391542,Local Environmental Services,Police Services,111,Employees,501,Direct Employee Expenses,5001,Revenue,HUMAN RESOURCES.TEMPORARY & AGENCY STAFF
14/07/2022,2434730,473.81,DE POEL MANAGED SERVICES LIMITED,391542,Local Environmental Services,Police Services,111,Employees,501,Direct Employee Expenses,5001,Revenue,HUMAN RESOURCES.TEMPORARY & AGENCY STAFF
20/07/2022,2438591,468.28,DE POEL MANAGED SERVICES LIMITED,391542,Local Environmental Services,Police Services,111,Employees,501,Direct Employee Expenses,5001,Revenue,HUMAN RESOURCES.TEMPORARY & AGENCY STAFF
20/07/2022,2438591,473.81,DE POEL MANAGED SERVICES LIMITED,391542,Local Environmental Services,Police Services,111,Employees,501,Direct Employee Expenses,5001,Revenue,HUMAN RESOURCES.TEMPORARY & AGENCY STAFF
20/07/2022,2438591,473.81,DE POEL MANAGED SERVICES LIMITED,391542,Local Environmental Services,Police Services,111,Employees,501,Direct Employee Expenses,5001,Revenue,HUMAN RESOURCES.TEMPORARY & AGENCY STAFF
20/07/2022,2438591,473.81,DE POEL MANAGED SERVICES LIMITED,391542,Local Environmental Services,Police Services,111,Employees,501,Direct Employee Expenses,5001,Revenue,HUMAN RESOURCES.TEMPORARY & AGENCY STAFF
29/07/2022,2442241,735.00,PRO AD LTD,302655,Local Environmental Services,Central Services,102,Third Party Payments,505,Private Contractors,5042,Revenue,ADVERTISING & MARKETING.EVENTS & PROMOTIONS
14/07/2022,2434730,512.21,DE POEL MANAGED SERVICES LIMITED,391542,Local Environmental Services,Environmental & Regulatory Services,105,Employees,501,Direct Employee Expenses,5001,Revenue,HUMAN RESOURCES.TEMPORARY & AGENCY STAFF
14/07/2022,2434730,512.21,DE POEL MANAGED SERVICES LIMITED,391542,Local Environmental Services,Environmental & Regulatory Services,105,Employees,501,Direct Employee Expenses,5001,Revenue,HUMAN RESOURCES.TEMPORARY & AGENCY STAFF
20/07/2022,2438591,512.21,DE POEL MANAGED SERVICES LIMITED,391542,Local Environmental Services,Environmental & Regulatory Services,105,Employees,501,Direct Employee Expenses,5001,Revenue,HUMAN RESOURCES.TEMPORARY & AGENCY STAFF
20/07/2022,2438591,512.21,DE POEL MANAGED SERVICES LIMITED,391542,Local Environmental Services,Environmental & Regulatory Services,105,Employees,501,Direct Employee Expenses,5001,Revenue,HUMAN RESOURCES.TEMPORARY & AGENCY STAFF
11/07/2022,2433521,468.28,DE POEL MANAGED SERVICES LIMITED,391542,Local Environmental Services,Cultural & Related Services,104,Employees,501,Direct Employee Expenses,5001,Revenue,HUMAN RESOURCES.TEMPORARY & AGENCY STAFF
11/07/2022,2433521,468.28,DE POEL MANAGED SERVICES LIMITED,391542,Local Environmental Services,Cultural & Related Services,104,Employees,501,Direct Employee Expenses,5001,Revenue,HUMAN RESOURCES.TEMPORARY & AGENCY STAFF
11/07/2022,2433521,468.28,DE POEL MANAGED SERVICES LIMITED,391542,Local Environmental Services,Cultural & Related Services,104,Employees,501,Direct Employee Expenses,5001,Revenue,HUMAN RESOURCES.TEMPORARY & AGENCY STAFF
11/07/2022,2433521,473.81,DE POEL MANAGED SERVICES LIMITED,391542,Local Environmental Services,Cultural & Related Services,104,Employees,501,Direct Employee Expenses,5001,Revenue,HUMAN RESOURCES.TEMPORARY & AGENCY STAFF
11/07/2022,2433521,473.81,DE POEL MANAGED SERVICES LIMITED,391542,Local Environmental Services,Cultural & Related Services,104,Employees,501,Direct Employee Expenses,5001,Revenue,HUMAN RESOURCES.TEMPORARY & AGENCY STAFF
14/07/2022,2434730,468.28,DE POEL MANAGED SERVICES LIMITED,391542,Local Environmental Services,Cultural & Related Services,104,Employees,501,Direct Employee Expenses,5001,Revenue,HUMAN RESOURCES.TEMPORARY & AGENCY STAFF
14/07/2022,2434730,468.28,DE POEL MANAGED SERVICES LIMITED,391542,Local Environmental Services,Cultural & Related Services,104,Employees,501,Direct Employee Expenses,5001,Revenue,HUMAN RESOURCES.TEMPORARY & AGENCY STAFF
14/07/2022,2434730,468.28,DE POEL MANAGED SERVICES LIMITED,391542,Local Environmental Services,Cultural & Related Services,104,Employees,501,Direct Employee Expenses,5001,Revenue,HUMAN RESOURCES.TEMPORARY & AGENCY STAFF
14/07/2022,2434730,473.81,DE POEL MANAGED SERVICES LIMITED,391542,Local Environmental Services,Cultural & Related Services,104,Employees,501,Direct Employee Expenses,5001,Revenue,HUMAN RESOURCES.TEMPORARY & AGENCY STAFF
14/07/2022,2434730,473.81,DE POEL MANAGED SERVICES LIMITED,391542,Local Environmental Services,Cultural & Related Services,104,Employees,501,Direct Employee Expenses,5001,Revenue,HUMAN RESOURCES.TEMPORARY & AGENCY STAFF
20/07/2022,2438591,236.90,DE POEL MANAGED SERVICES LIMITED,391542,Local Environmental Services,Cultural & Related Services,104,Employees,501,Direct Employee Expenses,5001,Revenue,HUMAN RESOURCES.TEMPORARY & AGENCY STAFF
20/07/2022,2438591,468.28,DE POEL MANAGED SERVICES LIMITED,391542,Local Environmental Services,Cultural & Related Services,104,Employees,501,Direct Employee Expenses,5001,Revenue,HUMAN RESOURCES.TEMPORARY & AGENCY STAFF
20/07/2022,2438591,468.28,DE POEL MANAGED SERVICES LIMITED,391542,Local Environmental Services,Cultural & Related Services,104,Employees,501,Direct Employee Expenses,5001,Revenue,HUMAN RESOURCES.TEMPORARY & AGENCY STAFF
20/07/2022,2438591,473.81,DE POEL MANAGED SERVICES LIMITED,391542,Local Environmental Services,Cultural & Related Services,104,Employees,501,Direct Employee Expenses,5001,Revenue,HUMAN RESOURCES.TEMPORARY & AGENCY STAFF
27/07/2022,2441315,543.00,VERGOUK,393000,Local Environmental Services,Cultural & Related Services,104,Supplies and Services,504,Equipment,5023,Revenue,HEALTH & SAFETY.PRODUCTS
08/07/2022,2432496,138.48,OCE (UK) LIMITED,015952,Waste Management,Environmental & Regulatory Services,105,Supplies and Services,504,"Printing, Stationery and General Office Expenses",5026,Revenue,OFFICE & REPROGRAPHICS EQUIPMENT.PHOTOCOPIERS & MFDS
19/07/2022,2438316,11580.00,ONE51 ES PLASTICS (UK) LTD T/A MGB PLASTICS,385568,Waste Management,Environmental & Regulatory Services,105,Supplies and Services,504,Equipment,5023,Revenue,WASTE.CONSUMABLES
20/07/2022,2438597,6.82,OCE (UK) LIMITED,015952,Waste Management,Environmental & Regulatory Services,105,Supplies and Services,504,"Printing, Stationery and General Office Expenses",5026,Revenue,OFFICE & REPROGRAPHICS EQUIPMENT.PHOTOCOPIERS & MFDS
21/07/2022,2438689,840.00,1ST COVERALL COMPANY LIMITED,393273,Waste Management,Environmental & Regulatory Services,105,Supplies and Services,504,Equipment,5023,Revenue,CLOTHING.PROTECTIVE
21/07/2022,2438689,32.30,1ST COVERALL COMPANY LIMITED,393273,Waste Management,Environmental & Regulatory Services,105,Supplies and Services,504,"Clothing, Uniforms and Laundry",5025,Revenue,CLOTHING.PROTECTIVE
21/07/2022,2438689,32.30,1ST COVERALL COMPANY LIMITED,393273,Waste Management,Environmental & Regulatory Services,105,Supplies and Services,504,"Clothing, Uniforms and Laundry",5025,Revenue,CLOTHING.PROTECTIVE
21/07/2022,2438689,64.60,1ST COVERALL COMPANY LIMITED,393273,Waste Management,Environmental & Regulatory Services,105,Supplies and Services,504,"Clothing, Uniforms and Laundry",5025,Revenue,CLOTHING.PROTECTIVE
21/07/2022,2438689,98.50,1ST COVERALL COMPANY LIMITED,393273,Waste Management,Environmental & Regulatory Services,105,Supplies and Services,504,"Clothing, Uniforms and Laundry",5025,Revenue,CLOTHING.PROTECTIVE
21/07/2022,2438689,197.00,1ST COVERALL COMPANY LIMITED,393273,Waste Management,Environmental & Regulatory Services,105,Supplies and Services,504,"Clothing, Uniforms and Laundry",5025,Revenue,CLOTHING.PROTECTIVE
21/07/2022,2438689,197.00,1ST COVERALL COMPANY LIMITED,393273,Waste Management,Environmental & Regulatory Services,105,Supplies and Services,504,"Clothing, Uniforms and Laundry",5025,Revenue,CLOTHING.PROTECTIVE
28/07/2022,2441538,127.11,OCE (UK) LIMITED,015952,Local Environmental Services,Environmental & Regulatory Services,105,Supplies and Services,504,"Printing, Stationery and General Office Expenses",5026,Revenue,OFFICE & REPROGRAPHICS EQUIPMENT.PHOTOCOPIERS & MFDS
28/07/2022,2441539,4.12,AZTEC CHEMICALS,303520,Local Environmental Services,Environmental & Regulatory Services,105,Supplies and Services,504,Equipment,5023,Revenue,CLEANING & JANITORIAL.CLEANING MATERIALS
28/07/2022,2441539,11.70,AZTEC CHEMICALS,303520,Local Environmental Services,Environmental & Regulatory Services,105,Supplies and Services,504,Equipment,5023,Revenue,CLEANING & JANITORIAL.CLEANING MATERIALS
28/07/2022,2441539,12.02,AZTEC CHEMICALS,303520,Local Environmental Services,Environmental & Regulatory Services,105,Supplies and Services,504,Equipment,5023,Revenue,CLEANING & JANITORIAL.CLEANING MATERIALS
28/07/2022,2441539,39.99,AZTEC CHEMICALS,303520,Local Environmental Services,Environmental & Regulatory Services,105,Supplies and Services,504,Equipment,5023,Revenue,CLEANING & JANITORIAL.CLEANING MATERIALS
28/07/2022,2441539,52.50,AZTEC CHEMICALS,303520,Local Environmental Services,Environmental & Regulatory Services,105,Supplies and Services,504,Equipment,5023,Revenue,CLEANING & JANITORIAL.CLEANING MATERIALS
28/07/2022,2441539,63.80,AZTEC CHEMICALS,303520,Local Environmental Services,Environmental & Regulatory Services,105,Supplies and Services,504,Equipment,5023,Revenue,CLEANING & JANITORIAL.CLEANING MATERIALS
28/07/2022,2441539,75.80,AZTEC CHEMICALS,303520,Local Environmental Services,Environmental & Regulatory Services,105,Supplies and Services,504,Equipment,5023,Revenue,CLEANING & JANITORIAL.CLEANING MATERIALS
28/07/2022,2441539,80.00,AZTEC CHEMICALS,303520,Local Environmental Services,Environmental & Regulatory Services,105,Supplies and Services,504,Equipment,5023,Revenue,CLEANING & JANITORIAL.CLEANING MATERIALS
28/07/2022,2441539,124.12,AZTEC CHEMICALS,303520,Local Environmental Services,Environmental & Regulatory Services,105,Supplies and Services,504,Equipment,5023,Revenue,CLEANING & JANITORIAL.CLEANING MATERIALS
28/07/2022,2441539,132.56,AZTEC CHEMICALS,303520,Local Environmental Services,Environmental & Regulatory Services,105,Supplies and Services,504,Equipment,5023,Revenue,CLEANING & JANITORIAL.CLEANING MATERIALS
28/07/2022,2441539,144.00,AZTEC CHEMICALS,303520,Local Environmental Services,Environmental & Regulatory Services,105,Supplies and Services,504,Equipment,5023,Revenue,CLEANING & JANITORIAL.CLEANING MATERIALS
29/07/2022,2442167,0.86,OCE (UK) LIMITED,015952,Local Environmental Services,Environmental & Regulatory Services,105,Supplies and Services,504,"Printing, Stationery and General Office Expenses",5026,Revenue,OFFICE & REPROGRAPHICS EQUIPMENT.PHOTOCOPIERS & MFDS
29/07/2022,2442207,279.60,GROUNDSMAN TOOLS & SUPPLIES,375882,Local Environmental Services,Environmental & Regulatory Services,105,Supplies and Services,504,Equipment,5023,Revenue,BUILDING MATERIALS.HAND TOOLS
29/07/2022,2442207,112.00,GROUNDSMAN TOOLS & SUPPLIES,375882,Local Environmental Services,Environmental & Regulatory Services,105,Supplies and Services,504,"Clothing, Uniforms and Laundry",5025,Revenue,BUILDING MATERIALS.HAND TOOLS
06/07/2022,2431748,20.00,SYNTEC MANUFACTURING LTD,388568,Local Environmental Services,Environmental & Regulatory Services,105,Premises-Related Expenditure,502,Cleaning and Domestic Supplies,5012,Revenue,VEHICLE MANAGEMENT.PARTS
06/07/2022,2431748,1376.00,SYNTEC MANUFACTURING LTD,388568,Local Environmental Services,Environmental & Regulatory Services,105,Premises-Related Expenditure,502,Cleaning and Domestic Supplies,5012,Revenue,VEHICLE MANAGEMENT.PARTS
18/07/2022,2435977,480.59,CARRS BILLINGTON AGRICULTURE,243075,Fleet Management,Cultural & Related Services,104,Transport,503,Direct Transport Costs,5016,Revenue,VEHICLE MANAGEMENT.PARTS
18/07/2022,2435977,668.48,CARRS BILLINGTON AGRICULTURE,243075,Fleet Management,Cultural & Related Services,104,Transport,503,Direct Transport Costs,5016,Revenue,VEHICLE MANAGEMENT.PARTS
18/07/2022,2435977,704.02,CARRS BILLINGTON AGRICULTURE,243075,Fleet Management,Cultural & Related Services,104,Transport,503,Direct Transport Costs,5016,Revenue,VEHICLE MANAGEMENT.PARTS
18/07/2022,2435977,809.71,CARRS BILLINGTON AGRICULTURE,243075,Fleet Management,Cultural & Related Services,104,Transport,503,Direct Transport Costs,5016,Revenue,VEHICLE MANAGEMENT.PARTS
18/07/2022,2435977,2220.79,CARRS BILLINGTON AGRICULTURE,243075,Fleet Management,Cultural & Related Services,104,Transport,503,Direct Transport Costs,5016,Revenue,VEHICLE MANAGEMENT.PARTS
18/07/2022,2435977,2768.61,CARRS BILLINGTON AGRICULTURE,243075,Fleet Management,Cultural & Related Services,104,Transport,503,Direct Transport Costs,5016,Revenue,VEHICLE MANAGEMENT.PARTS
29/07/2022,2442220,1017.00,OVERTON UK LTD,247577,Fleet Management,Cultural & Related Services,104,Transport,503,Direct Transport Costs,5016,Revenue,VEHICLE MANAGEMENT.PARTS
08/07/2022,2432496,98.03,OCE (UK) LIMITED,015952,Waste Management,Environmental & Regulatory Services,105,Supplies and Services,504,"Printing, Stationery and General Office Expenses",5026,Revenue,OFFICE & REPROGRAPHICS EQUIPMENT.PHOTOCOPIERS & MFDS
20/07/2022,2438597,6.82,OCE (UK) LIMITED,015952,Waste Management,Environmental & Regulatory Services,105,Supplies and Services,504,"Printing, Stationery and General Office Expenses",5026,Revenue,OFFICE & REPROGRAPHICS EQUIPMENT.PHOTOCOPIERS & MFDS
28/07/2022,2441538,39.69,OCE (UK) LIMITED,015952,Waste Management,Environmental & Regulatory Services,105,Supplies and Services,504,"Printing, Stationery and General Office Expenses",5026,Revenue,OFFICE & REPROGRAPHICS EQUIPMENT.PHOTOCOPIERS & MFDS
29/07/2022,2442167,0.74,OCE (UK) LIMITED,015952,Waste Management,Environmental & Regulatory Services,105,Supplies and Services,504,"Printing, Stationery and General Office Expenses",5026,Revenue,OFFICE & REPROGRAPHICS EQUIPMENT.PHOTOCOPIERS & MFDS
29/07/2022,2442167,0.86,OCE (UK) LIMITED,015952,Waste Management,Environmental & Regulatory Services,105,Supplies and Services,504,"Printing, Stationery and General Office Expenses",5026,Revenue,OFFICE & REPROGRAPHICS EQUIPMENT.PHOTOCOPIERS & MFDS
29/07/2022,2442167,24.97,OCE (UK) LIMITED,015952,Waste Management,Environmental & Regulatory Services,105,Supplies and Services,504,"Printing, Stationery and General Office Expenses",5026,Revenue,OFFICE & REPROGRAPHICS EQUIPMENT.PHOTOCOPIERS & MFDS
28/07/2022,2441400,293.80,BUNZL UK LTD T/A BUNZL CLEANING & HYGIENE SUPPLIES,027747,Local Environmental Services,Environmental & Regulatory Services,105,Premises-Related Expenditure,502,Cleaning and Domestic Supplies,5012,Revenue,CLEANING & JANITORIAL.CLEANING MATERIALS
28/07/2022,2441400,2205.00,BUNZL UK LTD T/A BUNZL CLEANING & HYGIENE SUPPLIES,027747,Local Environmental Services,Environmental & Regulatory Services,105,Premises-Related Expenditure,502,Cleaning and Domestic Supplies,5012,Revenue,CLEANING & JANITORIAL.CLEANING MATERIALS
19/07/2022,2438390,1983.00,VESTGUARD UK LIMITED,402887,Public Health,Environmental & Regulatory Services,105,Supplies and Services,504,Equipment,5023,Revenue,CLOTHING.PROTECTIVE
27/07/2022,2441341,510.27,CAPITA SYMONDS LTD,376582,Public Health,Environmental & Regulatory Services,105,Supplies and Services,504,Miscellaneous Expenses,5034,Revenue,REPAIRS & MAINTENANCE.REPAIRS & MAINTENANCE
27/07/2022,2441341,1267.48,CAPITA SYMONDS LTD,376582,Public Health,Environmental & Regulatory Services,105,Supplies and Services,504,Miscellaneous Expenses,5034,Revenue,REPAIRS & MAINTENANCE.REPAIRS & MAINTENANCE
27/07/2022,2441341,2229.17,CAPITA SYMONDS LTD,376582,Public Health,Environmental & Regulatory Services,105,Supplies and Services,504,Miscellaneous Expenses,5034,Revenue,REPAIRS & MAINTENANCE.REPAIRS & MAINTENANCE
27/07/2022,2441341,2510.18,CAPITA SYMONDS LTD,376582,Public Health,Environmental & Regulatory Services,105,Supplies and Services,504,Miscellaneous Expenses,5034,Revenue,REPAIRS & MAINTENANCE.REPAIRS & MAINTENANCE
27/07/2022,2441341,2752.14,CAPITA SYMONDS LTD,376582,Public Health,Environmental & Regulatory Services,105,Supplies and Services,504,Miscellaneous Expenses,5034,Revenue,REPAIRS & MAINTENANCE.REPAIRS & MAINTENANCE
27/07/2022,2441341,3034.51,CAPITA SYMONDS LTD,376582,Public Health,Environmental & Regulatory Services,105,Supplies and Services,504,Miscellaneous Expenses,5034,Revenue,REPAIRS & MAINTENANCE.REPAIRS & MAINTENANCE
27/07/2022,2441341,4458.34,CAPITA SYMONDS LTD,376582,Public Health,Environmental & Regulatory Services,105,Supplies and Services,504,Miscellaneous Expenses,5034,Revenue,REPAIRS & MAINTENANCE.REPAIRS & MAINTENANCE
27/07/2022,2441341,11062.00,CAPITA SYMONDS LTD,376582,Public Health,Environmental & Regulatory Services,105,Supplies and Services,504,Miscellaneous Expenses,5034,Revenue,REPAIRS & MAINTENANCE.REPAIRS & MAINTENANCE
14/07/2022,2434759,1000.00,EVILLE AND JONES (COMMERCIAL SERVICES) LTD,402156,Public Health,Environmental & Regulatory Services,105,Third Party Payments,505,Private Contractors,5042,Revenue,ENVIRONMENTAL SERVICES.ANIMAL SERVICES
15/07/2022,2434939,843.00,CAPITA SYMONDS LTD,376582,Public Health,Environmental & Regulatory Services,105,Supplies and Services,504,Miscellaneous Expenses,5034,Revenue,REPAIRS & MAINTENANCE.REPAIRS & MAINTENANCE
27/07/2022,2441309,48161.68,SITA UK LIMITED,359430,Waste Management,Environmental & Regulatory Services,105,Third Party Payments,505,Private Contractors,5042,Revenue,WASTE.RECYCLING
27/07/2022,2441309,155073.51,SITA UK LIMITED,359430,Waste Management,Environmental & Regulatory Services,105,Third Party Payments,505,Private Contractors,5042,Revenue,WASTE.RECYCLING
27/07/2022,2441309,159246.72,SITA UK LIMITED,359430,Waste Management,Environmental & Regulatory Services,105,Third Party Payments,505,Private Contractors,5042,Revenue,WASTE.RECYCLING
27/07/2022,2441309,425344.00,SITA UK LIMITED,359430,Waste Management,Environmental & Regulatory Services,105,Third Party Payments,505,Private Contractors,5042,Revenue,WASTE.RECYCLING
06/07/2022,2431747,400.00,FRANK DIXON ASSOCIATES,388713,Regeneration & Economic Development,Planning Services,110,Employees,501,Indirect Employee Expenses,5002,Revenue,HUMAN RESOURCES.TRAINING & CONFERENCES
05/07/2022,2431531,1125.00,GW DEVELOPMENT SERVICES,398230,Regeneration & Economic Development,Housing Services,108,Supplies and Services,504,Miscellaneous Expenses,5034,Revenue,REPAIRS & MAINTENANCE.REPAIRS & MAINTENANCE
08/07/2022,2432484,2670.00,SPATIAL GEOMATICS LTD,396611,Regeneration & Economic Development,Housing Services,108,Supplies and Services,504,Miscellaneous Expenses,5034,Revenue,CONSULTANCY.CONSULTANCY
05/07/2022,2431454,7263.00,Redacted Personal Data,402418,General Fund Housing,Housing Services,108,Premises-Related Expenditure,502,Rents,5007,Revenue,NON INFLUENCIBLE.INDIVIDUAL
08/07/2022,2432375,4186.00,Redacted Personal Data,403266,General Fund Housing,Housing Services,108,Premises-Related Expenditure,502,Rents,5007,Revenue,NON INFLUENCIBLE.INDIVIDUAL
04/07/2022,2429199,500.00,FRESH PROPERTY CENTRE,368207,"Health, Education, Care and Safeguarding",Children's & Education Services,103,Third Party Payments,505,Private Contractors,5042,Revenue,NON INFLUENCIBLE.NON INFLUENCIBLE
05/07/2022,2431570,575.00,MELEM CONSTRUCTION SERVICES,386145,"Health, Education, Care and Safeguarding",Children's & Education Services,103,Third Party Payments,505,Private Contractors,5042,Revenue,HUMAN RESOURCES.TRAINING & CONFERENCES
05/07/2022,2431630,809.00,YMCA NORTH TYNESIDE,356069,"Health, Education, Care and Safeguarding",Children's & Education Services,103,Premises-Related Expenditure,502,Rents,5007,Revenue,SOCIAL CARE.CARE SERVICES
01/07/2022,2428048,2125.00,CAPITA SYMONDS LTD,376582,Commissioning & Asset Management,Planning Services,110,Third Party Payments,505,Private Contractors,5042,Revenue,REPAIRS & MAINTENANCE.REPAIRS & MAINTENANCE
06/07/2022,2431714,360.00,ELITE ELECTRICAL AND SECURITY SERVICES,396321,Commissioning & Asset Management,Planning Services,110,Premises-Related Expenditure,502,Fixtures & Fittings,5010,Revenue,REPAIRS & MAINTENANCE.REPAIRS & MAINTENANCE
05/07/2022,2431500,2500.00,CMH CREATIVE ENTERPRISES,403108,Regeneration & Economic Development,Planning Services,110,Third Party Payments,505,Private Contractors,5042,Revenue,CONSULTANCY.CONSULTANCY
13/07/2022,2434587,875.00,RENEWS LIMITED,396848,Regeneration & Economic Development,Planning Services,110,Supplies and Services,504,"Printing, Stationery and General Office Expenses",5026,Revenue,ADVERTISING & MARKETING.PUBLIC RELATIONS & IMAGE
20/07/2022,2438597,6.82,OCE (UK) LIMITED,015952,Regeneration & Economic Development,Planning Services,110,Supplies and Services,504,"Printing, Stationery and General Office Expenses",5026,Revenue,OFFICE & REPROGRAPHICS EQUIPMENT.PHOTOCOPIERS & MFDS
21/07/2022,2438708,4979.75,WUBBLEYOU LTD,389053,Regeneration & Economic Development,Planning Services,110,Supplies and Services,504,Miscellaneous Expenses,5034,Revenue,ICT.SOFTWARE
25/07/2022,2440032,112.17,OCE (UK) LIMITED,015952,Regeneration & Economic Development,Planning Services,110,Supplies and Services,504,"Printing, Stationery and General Office Expenses",5026,Revenue,OFFICE & REPROGRAPHICS EQUIPMENT.PHOTOCOPIERS & MFDS
28/07/2022,2441538,39.69,OCE (UK) LIMITED,015952,Regeneration & Economic Development,Planning Services,110,Supplies and Services,504,"Printing, Stationery and General Office Expenses",5026,Revenue,OFFICE & REPROGRAPHICS EQUIPMENT.PHOTOCOPIERS & MFDS
28/07/2022,2441541,547.50,BRYAN LATTY,387188,Regeneration & Economic Development,Planning Services,110,Supplies and Services,504,Miscellaneous Expenses,5034,Revenue,CONSULTANCY.CONSULTANCY
29/07/2022,2442167,0.16,OCE (UK) LIMITED,015952,Regeneration & Economic Development,Planning Services,110,Supplies and Services,504,"Printing, Stationery and General Office Expenses",5026,Revenue,OFFICE & REPROGRAPHICS EQUIPMENT.PHOTOCOPIERS & MFDS
29/07/2022,2442167,0.86,OCE (UK) LIMITED,015952,Regeneration & Economic Development,Planning Services,110,Supplies and Services,504,"Printing, Stationery and General Office Expenses",5026,Revenue,OFFICE & REPROGRAPHICS EQUIPMENT.PHOTOCOPIERS & MFDS
29/07/2022,2442167,6.72,OCE (UK) LIMITED,015952,Regeneration & Economic Development,Planning Services,110,Supplies and Services,504,"Printing, Stationery and General Office Expenses",5026,Revenue,OFFICE & REPROGRAPHICS EQUIPMENT.PHOTOCOPIERS & MFDS
29/07/2022,2442180,39.96,Redacted Personal Data,403388,Regeneration & Economic Development,Planning Services,110,Supplies and Services,504,"Printing, Stationery and General Office Expenses",5026,Revenue,
29/07/2022,2442180,253.68,Redacted Personal Data,403388,Regeneration & Economic Development,Planning Services,110,Supplies and Services,504,"Printing, Stationery and General Office Expenses",5026,Revenue,
06/07/2022,2431653,300.71,Redacted Personal Data,402976,Commissioning & Asset Management,Housing Services,108,Premises-Related Expenditure,502,Energy Costs,5006,Revenue,NON INFLUENCIBLE.NON INFLUENCIBLE
19/07/2022,2438364,240.00,FRANKS PORTLOCK CONSULTING LIMITED,376545,Commissioning & Asset Management,Planning Services,110,Third Party Payments,505,Private Contractors,5042,Revenue,REPAIRS & MAINTENANCE.REPAIRS & MAINTENANCE
29/07/2022,2442215,2361.23,NORTH TYNESIDE COUNCIL,102767,Commissioning & Asset Management,Planning Services,110,Premises-Related Expenditure,502,Rates,5008,Revenue,NON INFLUENCIBLE.PUBLIC SECTOR
08/07/2022,2432378,2500.00,GLEEDS COST MANAGEMENT LTD,403252,Regeneration & Economic Development,Planning Services,110,Supplies and Services,504,Miscellaneous Expenses,5034,Revenue,CONSULTANCY.CONSULTANCY
12/07/2022,2434274,2360.00,KBR IT & NETWORKING SOLUTIONS LTD,335137,Regeneration & Economic Development,Planning Services,110,Supplies and Services,504,Miscellaneous Expenses,5034,Revenue,ICT.MAINTENANCE & SUPPORT
19/07/2022,2438318,575.72,SITEXORBIS LIMITED,313133,Commissioning & Asset Management,Children's & Education Services,103,Premises-Related Expenditure,502,Fixtures & Fittings,5010,Revenue,FIRE & SECURITY.EQUIPMENT
19/07/2022,2438364,240.00,FRANKS PORTLOCK CONSULTING LIMITED,376545,Commissioning & Asset Management,Planning Services,110,Third Party Payments,505,Private Contractors,5042,Revenue,REPAIRS & MAINTENANCE.REPAIRS & MAINTENANCE
29/07/2022,2442215,1825.67,NORTH TYNESIDE COUNCIL,102767,Commissioning & Asset Management,Planning Services,110,Premises-Related Expenditure,502,Rates,5008,Revenue,NON INFLUENCIBLE.PUBLIC SECTOR
06/07/2022,2431653,538.78,Redacted Personal Data,402976,Commissioning & Asset Management,Housing Services,108,Premises-Related Expenditure,502,Energy Costs,5006,Revenue,NON INFLUENCIBLE.NON INFLUENCIBLE
15/07/2022,2434977,538.78,Redacted Personal Data,402976,Commissioning & Asset Management,Housing Services,108,Premises-Related Expenditure,502,Energy Costs,5006,Revenue,NON INFLUENCIBLE.NON INFLUENCIBLE
15/07/2022,2434977,727.12,Redacted Personal Data,402976,Commissioning & Asset Management,Housing Services,108,Premises-Related Expenditure,502,Energy Costs,5006,Revenue,NON INFLUENCIBLE.NON INFLUENCIBLE
06/07/2022,2431717,252.60,OPUS ENERGY LIMITED,380331,Commissioning & Asset Management,Planning Services,110,Premises-Related Expenditure,502,Energy Costs,5006,Revenue,ELECTRICITY.ELECTRICITY
08/07/2022,2432432,438.50,ZUBRU CREATIVE,399176,Regeneration & Economic Development,Planning Services,110,Supplies and Services,504,Miscellaneous Expenses,5034,Revenue,ADVERTISING & MARKETING.PUBLIC RELATIONS & IMAGE
08/07/2022,2432432,607.00,ZUBRU CREATIVE,399176,Regeneration & Economic Development,Planning Services,110,Supplies and Services,504,Miscellaneous Expenses,5034,Revenue,ADVERTISING & MARKETING.PUBLIC RELATIONS & IMAGE
13/07/2022,2434484,300.00,IN THE DETAIL,395337,Regeneration & Economic Development,Planning Services,110,Supplies and Services,504,Miscellaneous Expenses,5034,Revenue,CONSULTANCY.BUSINESS
14/07/2022,2434700,499.00,HIGHLIGHTS PUBLIC RELATIONS LTD,398022,Regeneration & Economic Development,Planning Services,110,Supplies and Services,504,Miscellaneous Expenses,5034,Revenue,ADVERTISING & MARKETING.PUBLIC RELATIONS & IMAGE
29/07/2022,2442217,500.00,VILLAGE HOTEL AND LEISURE CLUB,333605,Regeneration & Economic Development,Planning Services,110,Supplies and Services,504,Miscellaneous Expenses,5034,Revenue,HUMAN RESOURCES.TRAINING & CONFERENCES
06/07/2022,2431717,415.45,OPUS ENERGY LIMITED,380331,Commissioning & Asset Management,Planning Services,110,Premises-Related Expenditure,502,Energy Costs,5006,Revenue,ELECTRICITY.ELECTRICITY
06/07/2022,2431717,458.75,OPUS ENERGY LIMITED,380331,Commissioning & Asset Management,Planning Services,110,Premises-Related Expenditure,502,Energy Costs,5006,Revenue,ELECTRICITY.ELECTRICITY
06/07/2022,2431717,1498.52,OPUS ENERGY LIMITED,380331,Commissioning & Asset Management,Planning Services,110,Premises-Related Expenditure,502,Energy Costs,5006,Revenue,ELECTRICITY.ELECTRICITY
15/07/2022,2435019,121.00,ORANGE PCS LTD,345889,"Health, Education, Care and Safeguarding",Planning Services,110,Supplies and Services,504,Communications & Computing,5028,Revenue,TELECOMMUNICATIONS.MOBILE
06/07/2022,2431713,451.80,VERGOUK,393000,"Health, Education, Care and Safeguarding",Planning Services,110,Supplies and Services,504,Miscellaneous Expenses,5034,Revenue,HEALTH & SAFETY.PRODUCTS
15/07/2022,2435019,242.00,ORANGE PCS LTD,345889,"Health, Education, Care and Safeguarding",Planning Services,110,Supplies and Services,504,Communications & Computing,5028,Revenue,TELECOMMUNICATIONS.MOBILE
19/07/2022,2438389,281.99,DIGIDODA LTD,402917,Regeneration & Economic Development,Planning Services,110,Supplies and Services,504,Miscellaneous Expenses,5034,Revenue,ADVERTISING & MARKETING.PUBLIC RELATIONS & IMAGE
28/07/2022,2441534,1375.00,TONI CLARK - COMMUNITY ENTERPRISE SUPPORT,395258,Regeneration & Economic Development,Planning Services,110,Supplies and Services,504,Miscellaneous Expenses,5034,Revenue,CONSULTANCY.BUSINESS
01/07/2022,2428056,8000.00,FORUM EVENTS & MEDIA GROUP LTD,403142,Central Items,Planning Services,110,Supplies and Services,504,Miscellaneous Expenses,5034,Revenue,
27/07/2022,2441299,221.00,DICKINSON DEES,274544,Resources,Central Services,102,Third Party Payments,505,Private Contractors,5042,Revenue,LEGAL.LEGAL OPINION
27/07/2022,2441328,400.00,ASPIRE TECHNOLOGY SOLUTIONS LTD,393810,Regeneration & Economic Development,Cultural & Related Services,104,Supplies and Services,504,Communications & Computing,5028,Revenue,ICT.MAINTENANCE & SUPPORT
27/07/2022,2441328,1060.00,ASPIRE TECHNOLOGY SOLUTIONS LTD,393810,Regeneration & Economic Development,Cultural & Related Services,104,Supplies and Services,504,Communications & Computing,5028,Revenue,ICT.MAINTENANCE & SUPPORT
29/07/2022,2442215,1306.79,NORTH TYNESIDE COUNCIL,102767,Regeneration & Economic Development,Cultural & Related Services,104,Premises-Related Expenditure,502,Rates,5008,Revenue,NON INFLUENCIBLE.PUBLIC SECTOR
08/07/2022,2432496,138.49,OCE (UK) LIMITED,015952,Regeneration & Economic Development,Planning Services,110,Supplies and Services,504,"Printing, Stationery and General Office Expenses",5026,Revenue,OFFICE & REPROGRAPHICS EQUIPMENT.PHOTOCOPIERS & MFDS
20/07/2022,2438597,6.82,OCE (UK) LIMITED,015952,Regeneration & Economic Development,Planning Services,110,Supplies and Services,504,"Printing, Stationery and General Office Expenses",5026,Revenue,OFFICE & REPROGRAPHICS EQUIPMENT.PHOTOCOPIERS & MFDS
28/07/2022,2441538,39.69,OCE (UK) LIMITED,015952,Regeneration & Economic Development,Planning Services,110,Supplies and Services,504,"Printing, Stationery and General Office Expenses",5026,Revenue,OFFICE & REPROGRAPHICS EQUIPMENT.PHOTOCOPIERS & MFDS
29/07/2022,2442167,0.03,OCE (UK) LIMITED,015952,Regeneration & Economic Development,Planning Services,110,Supplies and Services,504,"Printing, Stationery and General Office Expenses",5026,Revenue,OFFICE & REPROGRAPHICS EQUIPMENT.PHOTOCOPIERS & MFDS
29/07/2022,2442167,0.79,OCE (UK) LIMITED,015952,Regeneration & Economic Development,Planning Services,110,Supplies and Services,504,"Printing, Stationery and General Office Expenses",5026,Revenue,OFFICE & REPROGRAPHICS EQUIPMENT.PHOTOCOPIERS & MFDS
29/07/2022,2442167,0.86,OCE (UK) LIMITED,015952,Regeneration & Economic Development,Planning Services,110,Supplies and Services,504,"Printing, Stationery and General Office Expenses",5026,Revenue,OFFICE & REPROGRAPHICS EQUIPMENT.PHOTOCOPIERS & MFDS
29/07/2022,2442167,1.72,OCE (UK) LIMITED,015952,Regeneration & Economic Development,Planning Services,110,Supplies and Services,504,"Printing, Stationery and General Office Expenses",5026,Revenue,OFFICE & REPROGRAPHICS EQUIPMENT.PHOTOCOPIERS & MFDS
29/07/2022,2442167,20.91,OCE (UK) LIMITED,015952,Regeneration & Economic Development,Planning Services,110,Supplies and Services,504,"Printing, Stationery and General Office Expenses",5026,Revenue,OFFICE & REPROGRAPHICS EQUIPMENT.PHOTOCOPIERS & MFDS
29/07/2022,2442232,3435.00,CAPITA SYMONDS LTD,376582,Regeneration & Economic Development,Planning Services,110,Third Party Payments,505,Private Contractors,5042,Revenue,REPAIRS & MAINTENANCE.REPAIRS & MAINTENANCE
26/07/2022,2440181,1222.00,TMP (UK) LTD,386724,Local Environmental Services,Highways & Transport Services,107,Supplies and Services,504,Miscellaneous Expenses,5034,Revenue,ADVERTISING & MARKETING.ADVERTISING
28/07/2022,2441554,500.00,Redacted Personal Data,372885,General Fund Housing,Housing Services,108,Third Party Payments,505,Private Contractors,5042,Revenue,PRINTING SERVICES.DESIGN
25/07/2022,2440018,10545.00,GATESHEAD COUNCIL,231440,Regeneration & Economic Development,Highways & Transport Services,107,Third Party Payments,505,Private Contractors,5042,Revenue,NON INFLUENCIBLE.PUBLIC SECTOR
05/07/2022,2431625,134.00,NODA TAXIS LTD,234760,Public Health,Environmental & Regulatory Services,105,Income,509,Customer and Client Receipts,5064,Revenue,PUBLIC TRANSPORT.TAXI SERVICES
05/07/2022,2431625,134.00,NODA TAXIS LTD,234760,Public Health,Environmental & Regulatory Services,105,Income,509,Customer and Client Receipts,5064,Revenue,PUBLIC TRANSPORT.TAXI SERVICES
04/07/2022,2429196,1082.24,Redacted Personal Data,381169,Commissioning & Asset Management,Children's & Education Services,103,Transport,503,Recharges,5017,Revenue,PUBLIC TRANSPORT.TAXI SERVICES
04/07/2022,2429196,1139.40,Redacted Personal Data,381169,Commissioning & Asset Management,Children's & Education Services,103,Transport,503,Recharges,5017,Revenue,PUBLIC TRANSPORT.TAXI SERVICES
04/07/2022,2429242,1202.70,NE EXECUTIVE LTD T/A NE TAXIS,397329,Commissioning & Asset Management,Children's & Education Services,103,Transport,503,Recharges,5017,Revenue,PUBLIC TRANSPORT.TAXI SERVICES
04/07/2022,2429242,3798.00,NE EXECUTIVE LTD T/A NE TAXIS,397329,Commissioning & Asset Management,Children's & Education Services,103,Transport,503,Recharges,5017,Revenue,PUBLIC TRANSPORT.TAXI SERVICES
04/07/2022,2429383,442.80,DIRECT CARS,366879,Commissioning & Asset Management,Children's & Education Services,103,Transport,503,Recharges,5017,Revenue,PUBLIC TRANSPORT.TAXI SERVICES
04/07/2022,2429383,822.80,DIRECT CARS,366879,Commissioning & Asset Management,Children's & Education Services,103,Transport,503,Recharges,5017,Revenue,PUBLIC TRANSPORT.TAXI SERVICES
04/07/2022,2429383,835.20,DIRECT CARS,366879,Commissioning & Asset Management,Children's & Education Services,103,Transport,503,Recharges,5017,Revenue,PUBLIC TRANSPORT.TAXI SERVICES
04/07/2022,2429383,1297.60,DIRECT CARS,366879,Commissioning & Asset Management,Children's & Education Services,103,Transport,503,Recharges,5017,Revenue,PUBLIC TRANSPORT.TAXI SERVICES
06/07/2022,2431729,1899.00,Redacted Personal Data,398167,Commissioning & Asset Management,Children's & Education Services,103,Transport,503,Recharges,5017,Revenue,NON INFLUENCIBLE.INDIVIDUAL
06/07/2022,2431757,1803.86,Redacted Personal Data,234365,Commissioning & Asset Management,Children's & Education Services,103,Transport,503,Recharges,5017,Revenue,PUBLIC TRANSPORT.TAXI SERVICES
13/07/2022,2434558,1402.96,HADRIAN MINI BUSES,361545,Commissioning & Asset Management,Children's & Education Services,103,Transport,503,Recharges,5017,Revenue,PUBLIC TRANSPORT.TAXI SERVICES
13/07/2022,2434558,1402.96,HADRIAN MINI BUSES,361545,Commissioning & Asset Management,Children's & Education Services,103,Transport,503,Recharges,5017,Revenue,PUBLIC TRANSPORT.TAXI SERVICES
13/07/2022,2434594,880.00,RADAR TAXIS,394913,Commissioning & Asset Management,Children's & Education Services,103,Transport,503,Recharges,5017,Revenue,PUBLIC TRANSPORT.TAXI SERVICES
13/07/2022,2434594,1113.00,RADAR TAXIS,394913,Commissioning & Asset Management,Children's & Education Services,103,Transport,503,Recharges,5017,Revenue,PUBLIC TRANSPORT.TAXI SERVICES
13/07/2022,2434594,1680.00,RADAR TAXIS,394913,Commissioning & Asset Management,Children's & Education Services,103,Transport,503,Recharges,5017,Revenue,PUBLIC TRANSPORT.TAXI SERVICES
26/07/2022,2440146,617.60,GENERAL BACS PAYMENTS - BSS ONLY,381148,Commissioning & Asset Management,Children's & Education Services,103,Transport,503,Recharges,5017,Revenue,NON INFLUENCIBLE.NON INFLUENCIBLE
26/07/2022,2440172,728.00,RADAR TAXIS,394913,Commissioning & Asset Management,Children's & Education Services,103,Transport,503,Recharges,5017,Revenue,PUBLIC TRANSPORT.TAXI SERVICES
26/07/2022,2440172,945.00,RADAR TAXIS,394913,Commissioning & Asset Management,Children's & Education Services,103,Transport,503,Recharges,5017,Revenue,PUBLIC TRANSPORT.TAXI SERVICES
26/07/2022,2440174,956.93,Redacted Personal Data,381169,Commissioning & Asset Management,Children's & Education Services,103,Transport,503,Recharges,5017,Revenue,PUBLIC TRANSPORT.TAXI SERVICES
26/07/2022,2440174,1139.40,Redacted Personal Data,381169,Commissioning & Asset Management,Children's & Education Services,103,Transport,503,Recharges,5017,Revenue,PUBLIC TRANSPORT.TAXI SERVICES
26/07/2022,2440188,1033.76,HADRIAN MINI BUSES,361545,Commissioning & Asset Management,Children's & Education Services,103,Transport,503,Recharges,5017,Revenue,PUBLIC TRANSPORT.TAXI SERVICES
26/07/2022,2440188,1033.76,HADRIAN MINI BUSES,361545,Commissioning & Asset Management,Children's & Education Services,103,Transport,503,Recharges,5017,Revenue,PUBLIC TRANSPORT.TAXI SERVICES
26/07/2022,2440197,1139.28,Redacted Personal Data,234365,Commissioning & Asset Management,Children's & Education Services,103,Transport,503,Recharges,5017,Revenue,PUBLIC TRANSPORT.TAXI SERVICES
26/07/2022,2440222,310.17,DIRECT CARS,366879,Commissioning & Asset Management,Children's & Education Services,103,Transport,503,Recharges,5017,Revenue,PUBLIC TRANSPORT.TAXI SERVICES
26/07/2022,2440222,417.78,DIRECT CARS,366879,Commissioning & Asset Management,Children's & Education Services,103,Transport,503,Recharges,5017,Revenue,PUBLIC TRANSPORT.TAXI SERVICES
26/07/2022,2440222,633.00,DIRECT CARS,366879,Commissioning & Asset Management,Children's & Education Services,103,Transport,503,Recharges,5017,Revenue,PUBLIC TRANSPORT.TAXI SERVICES
26/07/2022,2440222,860.88,DIRECT CARS,366879,Commissioning & Asset Management,Children's & Education Services,103,Transport,503,Recharges,5017,Revenue,PUBLIC TRANSPORT.TAXI SERVICES
26/07/2022,2440246,1424.25,Redacted Personal Data,398167,Commissioning & Asset Management,Children's & Education Services,103,Transport,503,Recharges,5017,Revenue,NON INFLUENCIBLE.INDIVIDUAL
04/07/2022,2429196,949.32,Redacted Personal Data,381169,Commissioning & Asset Management,Children's & Education Services,103,Transport,503,Recharges,5017,Revenue,PUBLIC TRANSPORT.TAXI SERVICES
04/07/2022,2429196,1255.28,Redacted Personal Data,381169,Commissioning & Asset Management,Children's & Education Services,103,Transport,503,Recharges,5017,Revenue,PUBLIC TRANSPORT.TAXI SERVICES
04/07/2022,2429196,1603.60,Redacted Personal Data,381169,Commissioning & Asset Management,Children's & Education Services,103,Transport,503,Recharges,5017,Revenue,PUBLIC TRANSPORT.TAXI SERVICES
04/07/2022,2429196,1803.86,Redacted Personal Data,381169,Commissioning & Asset Management,Children's & Education Services,103,Transport,503,Recharges,5017,Revenue,PUBLIC TRANSPORT.TAXI SERVICES
04/07/2022,2429196,1898.80,Redacted Personal Data,381169,Commissioning & Asset Management,Children's & Education Services,103,Transport,503,Recharges,5017,Revenue,PUBLIC TRANSPORT.TAXI SERVICES
04/07/2022,2429196,2084.68,Redacted Personal Data,381169,Commissioning & Asset Management,Children's & Education Services,103,Transport,503,Recharges,5017,Revenue,PUBLIC TRANSPORT.TAXI SERVICES
04/07/2022,2429203,2067.80,READYPAY LTD T/A PHOENIX TAXIS,306608,Commissioning & Asset Management,Children's & Education Services,103,Transport,503,Recharges,5017,Revenue,PUBLIC TRANSPORT.TAXI SERVICES
04/07/2022,2429203,2278.80,READYPAY LTD T/A PHOENIX TAXIS,306608,Commissioning & Asset Management,Children's & Education Services,103,Transport,503,Recharges,5017,Revenue,PUBLIC TRANSPORT.TAXI SERVICES
04/07/2022,2429242,1403.34,NE EXECUTIVE LTD T/A NE TAXIS,397329,Commissioning & Asset Management,Children's & Education Services,103,Transport,503,Recharges,5017,Revenue,PUBLIC TRANSPORT.TAXI SERVICES
04/07/2022,2429242,1523.42,NE EXECUTIVE LTD T/A NE TAXIS,397329,Commissioning & Asset Management,Children's & Education Services,103,Transport,503,Recharges,5017,Revenue,PUBLIC TRANSPORT.TAXI SERVICES
04/07/2022,2429242,1899.20,NE EXECUTIVE LTD T/A NE TAXIS,397329,Commissioning & Asset Management,Children's & Education Services,103,Transport,503,Recharges,5017,Revenue,PUBLIC TRANSPORT.TAXI SERVICES
04/07/2022,2429244,738.40,PREMIER TRANSPORT,310296,Commissioning & Asset Management,Children's & Education Services,103,Transport,503,Recharges,5017,Revenue,PUBLIC TRANSPORT.TAXI SERVICES
04/07/2022,2429244,1160.40,PREMIER TRANSPORT,310296,Commissioning & Asset Management,Children's & Education Services,103,Transport,503,Recharges,5017,Revenue,PUBLIC TRANSPORT.TAXI SERVICES
04/07/2022,2429244,1244.80,PREMIER TRANSPORT,310296,Commissioning & Asset Management,Children's & Education Services,103,Transport,503,Recharges,5017,Revenue,PUBLIC TRANSPORT.TAXI SERVICES
04/07/2022,2429244,1582.40,PREMIER TRANSPORT,310296,Commissioning & Asset Management,Children's & Education Services,103,Transport,503,Recharges,5017,Revenue,PUBLIC TRANSPORT.TAXI SERVICES
04/07/2022,2429244,2088.80,PREMIER TRANSPORT,310296,Commissioning & Asset Management,Children's & Education Services,103,Transport,503,Recharges,5017,Revenue,PUBLIC TRANSPORT.TAXI SERVICES
04/07/2022,2429244,2215.60,PREMIER TRANSPORT,310296,Commissioning & Asset Management,Children's & Education Services,103,Transport,503,Recharges,5017,Revenue,PUBLIC TRANSPORT.TAXI SERVICES
04/07/2022,2429383,1029.60,DIRECT CARS,366879,Commissioning & Asset Management,Children's & Education Services,103,Transport,503,Recharges,5017,Revenue,PUBLIC TRANSPORT.TAXI SERVICES
04/07/2022,2429383,1114.00,DIRECT CARS,366879,Commissioning & Asset Management,Children's & Education Services,103,Transport,503,Recharges,5017,Revenue,PUBLIC TRANSPORT.TAXI SERVICES
04/07/2022,2429383,1257.56,DIRECT CARS,366879,Commissioning & Asset Management,Children's & Education Services,103,Transport,503,Recharges,5017,Revenue,PUBLIC TRANSPORT.TAXI SERVICES
04/07/2022,2429383,1316.40,DIRECT CARS,366879,Commissioning & Asset Management,Children's & Education Services,103,Transport,503,Recharges,5017,Revenue,PUBLIC TRANSPORT.TAXI SERVICES
04/07/2022,2429383,1384.00,DIRECT CARS,366879,Commissioning & Asset Management,Children's & Education Services,103,Transport,503,Recharges,5017,Revenue,PUBLIC TRANSPORT.TAXI SERVICES
04/07/2022,2429383,1443.60,DIRECT CARS,366879,Commissioning & Asset Management,Children's & Education Services,103,Transport,503,Recharges,5017,Revenue,PUBLIC TRANSPORT.TAXI SERVICES
13/07/2022,2434594,400.00,RADAR TAXIS,394913,Commissioning & Asset Management,Children's & Education Services,103,Transport,503,Recharges,5017,Revenue,PUBLIC TRANSPORT.TAXI SERVICES
13/07/2022,2434594,1672.00,RADAR TAXIS,394913,Commissioning & Asset Management,Children's & Education Services,103,Transport,503,Recharges,5017,Revenue,PUBLIC TRANSPORT.TAXI SERVICES
13/07/2022,2434594,1800.00,RADAR TAXIS,394913,Commissioning & Asset Management,Children's & Education Services,103,Transport,503,Recharges,5017,Revenue,PUBLIC TRANSPORT.TAXI SERVICES
13/07/2022,2434594,2040.00,RADAR TAXIS,394913,Commissioning & Asset Management,Children's & Education Services,103,Transport,503,Recharges,5017,Revenue,PUBLIC TRANSPORT.TAXI SERVICES
13/07/2022,2434594,2160.00,RADAR TAXIS,394913,Commissioning & Asset Management,Children's & Education Services,103,Transport,503,Recharges,5017,Revenue,PUBLIC TRANSPORT.TAXI SERVICES
13/07/2022,2434594,2320.00,RADAR TAXIS,394913,Commissioning & Asset Management,Children's & Education Services,103,Transport,503,Recharges,5017,Revenue,PUBLIC TRANSPORT.TAXI SERVICES
13/07/2022,2434594,2360.00,RADAR TAXIS,394913,Commissioning & Asset Management,Children's & Education Services,103,Transport,503,Recharges,5017,Revenue,PUBLIC TRANSPORT.TAXI SERVICES
13/07/2022,2434594,3480.00,RADAR TAXIS,394913,Commissioning & Asset Management,Children's & Education Services,103,Transport,503,Recharges,5017,Revenue,PUBLIC TRANSPORT.TAXI SERVICES
14/07/2022,2434653,367.40,GENERAL BACS PAYMENTS - BSS ONLY,381148,Commissioning & Asset Management,Children's & Education Services,103,Transport,503,Recharges,5017,Revenue,NON INFLUENCIBLE.NON INFLUENCIBLE
14/07/2022,2434669,1052.00,MARK HUNTER,347587,Commissioning & Asset Management,Children's & Education Services,103,Transport,503,Recharges,5017,Revenue,PUBLIC TRANSPORT.TAXI SERVICES
14/07/2022,2434744,303.84,PRIORY TAXIS,388929,Commissioning & Asset Management,Children's & Education Services,103,Transport,503,Recharges,5017,Revenue,PUBLIC TRANSPORT.TAXI SERVICES
14/07/2022,2434744,1002.44,PRIORY TAXIS,388929,Commissioning & Asset Management,Children's & Education Services,103,Transport,503,Recharges,5017,Revenue,PUBLIC TRANSPORT.TAXI SERVICES
14/07/2022,2434744,1434.80,PRIORY TAXIS,388929,Commissioning & Asset Management,Children's & Education Services,103,Transport,503,Recharges,5017,Revenue,PUBLIC TRANSPORT.TAXI SERVICES
14/07/2022,2434777,0.00,ALBION PRIVATE HIRE,363494,Commissioning & Asset Management,Children's & Education Services,103,Transport,503,Recharges,5017,Revenue,PUBLIC TRANSPORT.TAXI SERVICES
14/07/2022,2434777,0.00,ALBION PRIVATE HIRE,363494,Commissioning & Asset Management,Children's & Education Services,103,Transport,503,Recharges,5017,Revenue,PUBLIC TRANSPORT.TAXI SERVICES
14/07/2022,2434777,1202.70,ALBION PRIVATE HIRE,363494,Commissioning & Asset Management,Children's & Education Services,103,Transport,503,Recharges,5017,Revenue,PUBLIC TRANSPORT.TAXI SERVICES
14/07/2022,2434777,1262.74,ALBION PRIVATE HIRE,363494,Commissioning & Asset Management,Children's & Education Services,103,Transport,503,Recharges,5017,Revenue,PUBLIC TRANSPORT.TAXI SERVICES
14/07/2022,2434777,1383.20,ALBION PRIVATE HIRE,363494,Commissioning & Asset Management,Children's & Education Services,103,Transport,503,Recharges,5017,Revenue,PUBLIC TRANSPORT.TAXI SERVICES
14/07/2022,2434777,1463.38,ALBION PRIVATE HIRE,363494,Commissioning & Asset Management,Children's & Education Services,103,Transport,503,Recharges,5017,Revenue,PUBLIC TRANSPORT.TAXI SERVICES
14/07/2022,2434777,1463.38,ALBION PRIVATE HIRE,363494,Commissioning & Asset Management,Children's & Education Services,103,Transport,503,Recharges,5017,Revenue,PUBLIC TRANSPORT.TAXI SERVICES
14/07/2022,2434777,1543.56,ALBION PRIVATE HIRE,363494,Commissioning & Asset Management,Children's & Education Services,103,Transport,503,Recharges,5017,Revenue,PUBLIC TRANSPORT.TAXI SERVICES
14/07/2022,2434777,1835.60,ALBION PRIVATE HIRE,363494,Commissioning & Asset Management,Children's & Education Services,103,Transport,503,Recharges,5017,Revenue,PUBLIC TRANSPORT.TAXI SERVICES
18/07/2022,2435886,666.00,GENERAL BACS PAYMENTS - BSS ONLY,381148,Commissioning & Asset Management,Children's & Education Services,103,Transport,503,Recharges,5017,Revenue,NON INFLUENCIBLE.NON INFLUENCIBLE
18/07/2022,2435898,359.60,GENERAL BACS PAYMENTS - BSS ONLY,381148,Commissioning & Asset Management,Children's & Education Services,103,Transport,503,Recharges,5017,Revenue,NON INFLUENCIBLE.NON INFLUENCIBLE
25/07/2022,2440006,553.80,PREMIER TRANSPORT,310296,Commissioning & Asset Management,Children's & Education Services,103,Transport,503,Recharges,5017,Revenue,PUBLIC TRANSPORT.TAXI SERVICES
25/07/2022,2440006,870.30,PREMIER TRANSPORT,310296,Commissioning & Asset Management,Children's & Education Services,103,Transport,503,Recharges,5017,Revenue,PUBLIC TRANSPORT.TAXI SERVICES
25/07/2022,2440006,933.60,PREMIER TRANSPORT,310296,Commissioning & Asset Management,Children's & Education Services,103,Transport,503,Recharges,5017,Revenue,PUBLIC TRANSPORT.TAXI SERVICES
25/07/2022,2440006,1186.80,PREMIER TRANSPORT,310296,Commissioning & Asset Management,Children's & Education Services,103,Transport,503,Recharges,5017,Revenue,PUBLIC TRANSPORT.TAXI SERVICES
25/07/2022,2440006,1566.60,PREMIER TRANSPORT,310296,Commissioning & Asset Management,Children's & Education Services,103,Transport,503,Recharges,5017,Revenue,PUBLIC TRANSPORT.TAXI SERVICES
25/07/2022,2440006,1661.70,PREMIER TRANSPORT,310296,Commissioning & Asset Management,Children's & Education Services,103,Transport,503,Recharges,5017,Revenue,PUBLIC TRANSPORT.TAXI SERVICES
26/07/2022,2440172,216.00,RADAR TAXIS,394913,Commissioning & Asset Management,Children's & Education Services,103,Transport,503,Recharges,5017,Revenue,PUBLIC TRANSPORT.TAXI SERVICES
26/07/2022,2440172,300.00,RADAR TAXIS,394913,Commissioning & Asset Management,Children's & Education Services,103,Transport,503,Recharges,5017,Revenue,PUBLIC TRANSPORT.TAXI SERVICES
26/07/2022,2440172,1170.00,RADAR TAXIS,394913,Commissioning & Asset Management,Children's & Education Services,103,Transport,503,Recharges,5017,Revenue,PUBLIC TRANSPORT.TAXI SERVICES
26/07/2022,2440172,1232.00,RADAR TAXIS,394913,Commissioning & Asset Management,Children's & Education Services,103,Transport,503,Recharges,5017,Revenue,PUBLIC TRANSPORT.TAXI SERVICES
26/07/2022,2440172,1326.00,RADAR TAXIS,394913,Commissioning & Asset Management,Children's & Education Services,103,Transport,503,Recharges,5017,Revenue,PUBLIC TRANSPORT.TAXI SERVICES
26/07/2022,2440172,1512.00,RADAR TAXIS,394913,Commissioning & Asset Management,Children's & Education Services,103,Transport,503,Recharges,5017,Revenue,PUBLIC TRANSPORT.TAXI SERVICES
26/07/2022,2440172,1534.00,RADAR TAXIS,394913,Commissioning & Asset Management,Children's & Education Services,103,Transport,503,Recharges,5017,Revenue,PUBLIC TRANSPORT.TAXI SERVICES
26/07/2022,2440172,1624.00,RADAR TAXIS,394913,Commissioning & Asset Management,Children's & Education Services,103,Transport,503,Recharges,5017,Revenue,PUBLIC TRANSPORT.TAXI SERVICES
26/07/2022,2440172,2610.00,RADAR TAXIS,394913,Commissioning & Asset Management,Children's & Education Services,103,Transport,503,Recharges,5017,Revenue,PUBLIC TRANSPORT.TAXI SERVICES
26/07/2022,2440174,949.32,Redacted Personal Data,381169,Commissioning & Asset Management,Children's & Education Services,103,Transport,503,Recharges,5017,Revenue,PUBLIC TRANSPORT.TAXI SERVICES
26/07/2022,2440174,1240.51,Redacted Personal Data,381169,Commissioning & Asset Management,Children's & Education Services,103,Transport,503,Recharges,5017,Revenue,PUBLIC TRANSPORT.TAXI SERVICES
26/07/2022,2440174,1417.92,Redacted Personal Data,381169,Commissioning & Asset Management,Children's & Education Services,103,Transport,503,Recharges,5017,Revenue,PUBLIC TRANSPORT.TAXI SERVICES
26/07/2022,2440174,1594.99,Redacted Personal Data,381169,Commissioning & Asset Management,Children's & Education Services,103,Transport,503,Recharges,5017,Revenue,PUBLIC TRANSPORT.TAXI SERVICES
26/07/2022,2440174,1594.99,Redacted Personal Data,381169,Commissioning & Asset Management,Children's & Education Services,103,Transport,503,Recharges,5017,Revenue,PUBLIC TRANSPORT.TAXI SERVICES
26/07/2022,2440174,1843.30,Redacted Personal Data,381169,Commissioning & Asset Management,Children's & Education Services,103,Transport,503,Recharges,5017,Revenue,PUBLIC TRANSPORT.TAXI SERVICES
26/07/2022,2440180,1447.46,READYPAY LTD T/A PHOENIX TAXIS,306608,Commissioning & Asset Management,Children's & Education Services,103,Transport,503,Recharges,5017,Revenue,PUBLIC TRANSPORT.TAXI SERVICES
26/07/2022,2440180,1595.16,READYPAY LTD T/A PHOENIX TAXIS,306608,Commissioning & Asset Management,Children's & Education Services,103,Transport,503,Recharges,5017,Revenue,PUBLIC TRANSPORT.TAXI SERVICES
26/07/2022,2440222,696.30,DIRECT CARS,366879,Commissioning & Asset Management,Children's & Education Services,103,Transport,503,Recharges,5017,Revenue,PUBLIC TRANSPORT.TAXI SERVICES
26/07/2022,2440222,772.26,DIRECT CARS,366879,Commissioning & Asset Management,Children's & Education Services,103,Transport,503,Recharges,5017,Revenue,PUBLIC TRANSPORT.TAXI SERVICES
26/07/2022,2440222,779.85,DIRECT CARS,366879,Commissioning & Asset Management,Children's & Education Services,103,Transport,503,Recharges,5017,Revenue,PUBLIC TRANSPORT.TAXI SERVICES
26/07/2022,2440222,822.90,DIRECT CARS,366879,Commissioning & Asset Management,Children's & Education Services,103,Transport,503,Recharges,5017,Revenue,PUBLIC TRANSPORT.TAXI SERVICES
26/07/2022,2440222,921.64,DIRECT CARS,366879,Commissioning & Asset Management,Children's & Education Services,103,Transport,503,Recharges,5017,Revenue,PUBLIC TRANSPORT.TAXI SERVICES
26/07/2022,2440222,974.82,DIRECT CARS,366879,Commissioning & Asset Management,Children's & Education Services,103,Transport,503,Recharges,5017,Revenue,PUBLIC TRANSPORT.TAXI SERVICES
26/07/2022,2440222,1039.80,DIRECT CARS,366879,Commissioning & Asset Management,Children's & Education Services,103,Transport,503,Recharges,5017,Revenue,PUBLIC TRANSPORT.TAXI SERVICES
04/07/2022,2429194,1645.80,STEVE JOHNSTON TAXI SERVICE,394914,Commissioning & Asset Management,Children's & Education Services,103,Transport,503,Recharges,5017,Revenue,PUBLIC TRANSPORT.TAXI SERVICES
04/07/2022,2429196,0.00,Redacted Personal Data,381169,Commissioning & Asset Management,Children's & Education Services,103,Transport,503,Recharges,5017,Revenue,PUBLIC TRANSPORT.TAXI SERVICES
04/07/2022,2429196,949.32,Redacted Personal Data,381169,Commissioning & Asset Management,Children's & Education Services,103,Transport,503,Recharges,5017,Revenue,PUBLIC TRANSPORT.TAXI SERVICES
04/07/2022,2429196,949.32,Redacted Personal Data,381169,Commissioning & Asset Management,Children's & Education Services,103,Transport,503,Recharges,5017,Revenue,PUBLIC TRANSPORT.TAXI SERVICES
04/07/2022,2429196,1202.70,Redacted Personal Data,381169,Commissioning & Asset Management,Children's & Education Services,103,Transport,503,Recharges,5017,Revenue,PUBLIC TRANSPORT.TAXI SERVICES
04/07/2022,2429196,1434.80,Redacted Personal Data,381169,Commissioning & Asset Management,Children's & Education Services,103,Transport,503,Recharges,5017,Revenue,PUBLIC TRANSPORT.TAXI SERVICES
04/07/2022,2429196,1563.32,Redacted Personal Data,381169,Commissioning & Asset Management,Children's & Education Services,103,Transport,503,Recharges,5017,Revenue,PUBLIC TRANSPORT.TAXI SERVICES
04/07/2022,2429196,1563.32,Redacted Personal Data,381169,Commissioning & Asset Management,Children's & Education Services,103,Transport,503,Recharges,5017,Revenue,PUBLIC TRANSPORT.TAXI SERVICES
04/07/2022,2429196,1595.16,Redacted Personal Data,381169,Commissioning & Asset Management,Children's & Education Services,103,Transport,503,Recharges,5017,Revenue,PUBLIC TRANSPORT.TAXI SERVICES
04/07/2022,2429196,1603.60,Redacted Personal Data,381169,Commissioning & Asset Management,Children's & Education Services,103,Transport,503,Recharges,5017,Revenue,PUBLIC TRANSPORT.TAXI SERVICES
04/07/2022,2429196,1683.78,Redacted Personal Data,381169,Commissioning & Asset Management,Children's & Education Services,103,Transport,503,Recharges,5017,Revenue,PUBLIC TRANSPORT.TAXI SERVICES
04/07/2022,2429196,1688.00,Redacted Personal Data,381169,Commissioning & Asset Management,Children's & Education Services,103,Transport,503,Recharges,5017,Revenue,PUBLIC TRANSPORT.TAXI SERVICES
04/07/2022,2429196,1708.92,Redacted Personal Data,381169,Commissioning & Asset Management,Children's & Education Services,103,Transport,503,Recharges,5017,Revenue,PUBLIC TRANSPORT.TAXI SERVICES
04/07/2022,2429196,1708.92,Redacted Personal Data,381169,Commissioning & Asset Management,Children's & Education Services,103,Transport,503,Recharges,5017,Revenue,PUBLIC TRANSPORT.TAXI SERVICES
04/07/2022,2429196,1723.68,Redacted Personal Data,381169,Commissioning & Asset Management,Children's & Education Services,103,Transport,503,Recharges,5017,Revenue,PUBLIC TRANSPORT.TAXI SERVICES
04/07/2022,2429196,1723.68,Redacted Personal Data,381169,Commissioning & Asset Management,Children's & Education Services,103,Transport,503,Recharges,5017,Revenue,PUBLIC TRANSPORT.TAXI SERVICES
04/07/2022,2429196,1747.08,Redacted Personal Data,381169,Commissioning & Asset Management,Children's & Education Services,103,Transport,503,Recharges,5017,Revenue,PUBLIC TRANSPORT.TAXI SERVICES
04/07/2022,2429196,1747.08,Redacted Personal Data,381169,Commissioning & Asset Management,Children's & Education Services,103,Transport,503,Recharges,5017,Revenue,PUBLIC TRANSPORT.TAXI SERVICES
04/07/2022,2429196,1747.08,Redacted Personal Data,381169,Commissioning & Asset Management,Children's & Education Services,103,Transport,503,Recharges,5017,Revenue,PUBLIC TRANSPORT.TAXI SERVICES
04/07/2022,2429196,1803.86,Redacted Personal Data,381169,Commissioning & Asset Management,Children's & Education Services,103,Transport,503,Recharges,5017,Revenue,PUBLIC TRANSPORT.TAXI SERVICES
04/07/2022,2429196,1814.40,Redacted Personal Data,381169,Commissioning & Asset Management,Children's & Education Services,103,Transport,503,Recharges,5017,Revenue,PUBLIC TRANSPORT.TAXI SERVICES
04/07/2022,2429196,1860.84,Redacted Personal Data,381169,Commissioning & Asset Management,Children's & Education Services,103,Transport,503,Recharges,5017,Revenue,PUBLIC TRANSPORT.TAXI SERVICES
04/07/2022,2429196,1860.84,Redacted Personal Data,381169,Commissioning & Asset Management,Children's & Education Services,103,Transport,503,Recharges,5017,Revenue,PUBLIC TRANSPORT.TAXI SERVICES
04/07/2022,2429196,1899.00,Redacted Personal Data,381169,Commissioning & Asset Management,Children's & Education Services,103,Transport,503,Recharges,5017,Revenue,PUBLIC TRANSPORT.TAXI SERVICES
04/07/2022,2429196,1964.22,Redacted Personal Data,381169,Commissioning & Asset Management,Children's & Education Services,103,Transport,503,Recharges,5017,Revenue,PUBLIC TRANSPORT.TAXI SERVICES
04/07/2022,2429196,1964.22,Redacted Personal Data,381169,Commissioning & Asset Management,Children's & Education Services,103,Transport,503,Recharges,5017,Revenue,PUBLIC TRANSPORT.TAXI SERVICES
04/07/2022,2429196,2231.09,Redacted Personal Data,381169,Commissioning & Asset Management,Children's & Education Services,103,Transport,503,Recharges,5017,Revenue,PUBLIC TRANSPORT.TAXI SERVICES
04/07/2022,2429196,2848.50,Redacted Personal Data,381169,Commissioning & Asset Management,Children's & Education Services,103,Transport,503,Recharges,5017,Revenue,PUBLIC TRANSPORT.TAXI SERVICES
04/07/2022,2429203,0.00,READYPAY LTD T/A PHOENIX TAXIS,306608,Commissioning & Asset Management,Children's & Education Services,103,Transport,503,Recharges,5017,Revenue,PUBLIC TRANSPORT.TAXI SERVICES
04/07/2022,2429203,0.00,READYPAY LTD T/A PHOENIX TAXIS,306608,Commissioning & Asset Management,Children's & Education Services,103,Transport,503,Recharges,5017,Revenue,PUBLIC TRANSPORT.TAXI SERVICES
04/07/2022,2429203,19.20,READYPAY LTD T/A PHOENIX TAXIS,306608,Commissioning & Asset Management,Children's & Education Services,103,Transport,503,Recharges,5017,Revenue,PUBLIC TRANSPORT.TAXI SERVICES
04/07/2022,2429203,57.60,READYPAY LTD T/A PHOENIX TAXIS,306608,Commissioning & Asset Management,Children's & Education Services,103,Transport,503,Recharges,5017,Revenue,PUBLIC TRANSPORT.TAXI SERVICES
04/07/2022,2429203,1861.02,READYPAY LTD T/A PHOENIX TAXIS,306608,Commissioning & Asset Management,Children's & Education Services,103,Transport,503,Recharges,5017,Revenue,PUBLIC TRANSPORT.TAXI SERVICES
04/07/2022,2429203,1861.02,READYPAY LTD T/A PHOENIX TAXIS,306608,Commissioning & Asset Management,Children's & Education Services,103,Transport,503,Recharges,5017,Revenue,PUBLIC TRANSPORT.TAXI SERVICES
04/07/2022,2429203,1964.41,READYPAY LTD T/A PHOENIX TAXIS,306608,Commissioning & Asset Management,Children's & Education Services,103,Transport,503,Recharges,5017,Revenue,PUBLIC TRANSPORT.TAXI SERVICES
04/07/2022,2429203,1964.41,READYPAY LTD T/A PHOENIX TAXIS,306608,Commissioning & Asset Management,Children's & Education Services,103,Transport,503,Recharges,5017,Revenue,PUBLIC TRANSPORT.TAXI SERVICES
04/07/2022,2429203,2044.59,READYPAY LTD T/A PHOENIX TAXIS,306608,Commissioning & Asset Management,Children's & Education Services,103,Transport,503,Recharges,5017,Revenue,PUBLIC TRANSPORT.TAXI SERVICES
04/07/2022,2429203,2164.86,READYPAY LTD T/A PHOENIX TAXIS,306608,Commissioning & Asset Management,Children's & Education Services,103,Transport,503,Recharges,5017,Revenue,PUBLIC TRANSPORT.TAXI SERVICES
04/07/2022,2429203,2164.86,READYPAY LTD T/A PHOENIX TAXIS,306608,Commissioning & Asset Management,Children's & Education Services,103,Transport,503,Recharges,5017,Revenue,PUBLIC TRANSPORT.TAXI SERVICES
04/07/2022,2429203,2245.04,READYPAY LTD T/A PHOENIX TAXIS,306608,Commissioning & Asset Management,Children's & Education Services,103,Transport,503,Recharges,5017,Revenue,PUBLIC TRANSPORT.TAXI SERVICES
04/07/2022,2429203,2278.80,READYPAY LTD T/A PHOENIX TAXIS,306608,Commissioning & Asset Management,Children's & Education Services,103,Transport,503,Recharges,5017,Revenue,PUBLIC TRANSPORT.TAXI SERVICES
04/07/2022,2429203,2325.22,READYPAY LTD T/A PHOENIX TAXIS,306608,Commissioning & Asset Management,Children's & Education Services,103,Transport,503,Recharges,5017,Revenue,PUBLIC TRANSPORT.TAXI SERVICES
04/07/2022,2429215,836.00,BLUE LINE TAXIS,002700,Commissioning & Asset Management,Children's & Education Services,103,Transport,503,Recharges,5017,Revenue,PUBLIC TRANSPORT.TAXI SERVICES
04/07/2022,2429220,1899.00,Redacted Personal Data,272405,Commissioning & Asset Management,Children's & Education Services,103,Transport,503,Recharges,5017,Revenue,PUBLIC TRANSPORT.TAXI SERVICES
04/07/2022,2429242,0.00,NE EXECUTIVE LTD T/A NE TAXIS,397329,Commissioning & Asset Management,Children's & Education Services,103,Transport,503,Recharges,5017,Revenue,PUBLIC TRANSPORT.TAXI SERVICES
04/07/2022,2429242,0.00,NE EXECUTIVE LTD T/A NE TAXIS,397329,Commissioning & Asset Management,Children's & Education Services,103,Transport,503,Recharges,5017,Revenue,PUBLIC TRANSPORT.TAXI SERVICES
04/07/2022,2429242,1282.88,NE EXECUTIVE LTD T/A NE TAXIS,397329,Commissioning & Asset Management,Children's & Education Services,103,Transport,503,Recharges,5017,Revenue,PUBLIC TRANSPORT.TAXI SERVICES
04/07/2022,2429242,1477.20,NE EXECUTIVE LTD T/A NE TAXIS,397329,Commissioning & Asset Management,Children's & Education Services,103,Transport,503,Recharges,5017,Revenue,PUBLIC TRANSPORT.TAXI SERVICES
04/07/2022,2429242,1523.42,NE EXECUTIVE LTD T/A NE TAXIS,397329,Commissioning & Asset Management,Children's & Education Services,103,Transport,503,Recharges,5017,Revenue,PUBLIC TRANSPORT.TAXI SERVICES
04/07/2022,2429242,1563.70,NE EXECUTIVE LTD T/A NE TAXIS,397329,Commissioning & Asset Management,Children's & Education Services,103,Transport,503,Recharges,5017,Revenue,PUBLIC TRANSPORT.TAXI SERVICES
04/07/2022,2429244,2565.76,PREMIER TRANSPORT,310296,Commissioning & Asset Management,Children's & Education Services,103,Transport,503,Recharges,5017,Revenue,PUBLIC TRANSPORT.TAXI SERVICES
04/07/2022,2429244,2606.04,PREMIER TRANSPORT,310296,Commissioning & Asset Management,Children's & Education Services,103,Transport,503,Recharges,5017,Revenue,PUBLIC TRANSPORT.TAXI SERVICES
04/07/2022,2429244,2606.04,PREMIER TRANSPORT,310296,Commissioning & Asset Management,Children's & Education Services,103,Transport,503,Recharges,5017,Revenue,PUBLIC TRANSPORT.TAXI SERVICES
04/07/2022,2429252,0.00,S&B TAXIS,361901,Commissioning & Asset Management,Children's & Education Services,103,Transport,503,Recharges,5017,Revenue,PUBLIC TRANSPORT.TAXI SERVICES
04/07/2022,2429252,2233.08,S&B TAXIS,361901,Commissioning & Asset Management,Children's & Education Services,103,Transport,503,Recharges,5017,Revenue,PUBLIC TRANSPORT.TAXI SERVICES
04/07/2022,2429383,531.60,DIRECT CARS,366879,Commissioning & Asset Management,Children's & Education Services,103,Transport,503,Recharges,5017,Revenue,PUBLIC TRANSPORT.TAXI SERVICES
04/07/2022,2429383,632.80,DIRECT CARS,366879,Commissioning & Asset Management,Children's & Education Services,103,Transport,503,Recharges,5017,Revenue,PUBLIC TRANSPORT.TAXI SERVICES
04/07/2022,2429383,759.60,DIRECT CARS,366879,Commissioning & Asset Management,Children's & Education Services,103,Transport,503,Recharges,5017,Revenue,PUBLIC TRANSPORT.TAXI SERVICES
04/07/2022,2429383,886.00,DIRECT CARS,366879,Commissioning & Asset Management,Children's & Education Services,103,Transport,503,Recharges,5017,Revenue,PUBLIC TRANSPORT.TAXI SERVICES
04/07/2022,2429383,1392.40,DIRECT CARS,366879,Commissioning & Asset Management,Children's & Education Services,103,Transport,503,Recharges,5017,Revenue,PUBLIC TRANSPORT.TAXI SERVICES
04/07/2022,2429383,1597.15,DIRECT CARS,366879,Commissioning & Asset Management,Children's & Education Services,103,Transport,503,Recharges,5017,Revenue,PUBLIC TRANSPORT.TAXI SERVICES
04/07/2022,2429383,2354.40,DIRECT CARS,366879,Commissioning & Asset Management,Children's & Education Services,103,Transport,503,Recharges,5017,Revenue,PUBLIC TRANSPORT.TAXI SERVICES
06/07/2022,2431648,0.00,MICHAEL J MCALLISTER TAXIS,398960,Commissioning & Asset Management,Children's & Education Services,103,Transport,503,Recharges,5017,Revenue,PUBLIC TRANSPORT.TAXI SERVICES
06/07/2022,2431648,1399.17,MICHAEL J MCALLISTER TAXIS,398960,Commissioning & Asset Management,Children's & Education Services,103,Transport,503,Recharges,5017,Revenue,PUBLIC TRANSPORT.TAXI SERVICES
06/07/2022,2431670,1139.40,MEKLEC CARS,400445,Commissioning & Asset Management,Children's & Education Services,103,Transport,503,Recharges,5017,Revenue,PUBLIC TRANSPORT.TAXI SERVICES
06/07/2022,2431682,1341.64,Redacted Personal Data,319175,Commissioning & Asset Management,Children's & Education Services,103,Transport,503,Recharges,5017,Revenue,PUBLIC TRANSPORT.TAXI SERVICES
06/07/2022,2431688,0.00,Redacted Personal Data,370827,Commissioning & Asset Management,Children's & Education Services,103,Transport,503,Recharges,5017,Revenue,PUBLIC TRANSPORT.TAXI SERVICES
06/07/2022,2431688,0.00,Redacted Personal Data,370827,Commissioning & Asset Management,Children's & Education Services,103,Transport,503,Recharges,5017,Revenue,PUBLIC TRANSPORT.TAXI SERVICES
06/07/2022,2431688,638.08,Redacted Personal Data,370827,Commissioning & Asset Management,Children's & Education Services,103,Transport,503,Recharges,5017,Revenue,PUBLIC TRANSPORT.TAXI SERVICES
06/07/2022,2431688,1519.20,Redacted Personal Data,370827,Commissioning & Asset Management,Children's & Education Services,103,Transport,503,Recharges,5017,Revenue,PUBLIC TRANSPORT.TAXI SERVICES
06/07/2022,2431692,0.00,Redacted Personal Data,333622,Commissioning & Asset Management,Children's & Education Services,103,Transport,503,Recharges,5017,Revenue,PUBLIC TRANSPORT.TAXI SERVICES
06/07/2022,2431692,1878.20,Redacted Personal Data,333622,Commissioning & Asset Management,Children's & Education Services,103,Transport,503,Recharges,5017,Revenue,PUBLIC TRANSPORT.TAXI SERVICES
06/07/2022,2431697,1291.32,Redacted Personal Data,363850,Commissioning & Asset Management,Children's & Education Services,103,Transport,503,Recharges,5017,Revenue,PUBLIC TRANSPORT.TAXI SERVICES
06/07/2022,2431702,1685.89,Redacted Personal Data,390223,Commissioning & Asset Management,Children's & Education Services,103,Transport,503,Recharges,5017,Revenue,PUBLIC TRANSPORT.TAXI SERVICES
06/07/2022,2431739,1901.02,Redacted Personal Data,361061,Commissioning & Asset Management,Children's & Education Services,103,Transport,503,Recharges,5017,Revenue,PUBLIC TRANSPORT.TAXI SERVICES
06/07/2022,2431751,506.00,Redacted Personal Data,357580,Commissioning & Asset Management,Children's & Education Services,103,Transport,503,Recharges,5017,Revenue,PUBLIC TRANSPORT.TAXI SERVICES
06/07/2022,2431757,822.90,Redacted Personal Data,234365,Commissioning & Asset Management,Children's & Education Services,103,Transport,503,Recharges,5017,Revenue,PUBLIC TRANSPORT.TAXI SERVICES
13/07/2022,2434558,0.00,HADRIAN MINI BUSES,361545,Commissioning & Asset Management,Children's & Education Services,103,Transport,503,Recharges,5017,Revenue,PUBLIC TRANSPORT.TAXI SERVICES
13/07/2022,2434558,0.00,HADRIAN MINI BUSES,361545,Commissioning & Asset Management,Children's & Education Services,103,Transport,503,Recharges,5017,Revenue,PUBLIC TRANSPORT.TAXI SERVICES
13/07/2022,2434558,0.00,HADRIAN MINI BUSES,361545,Commissioning & Asset Management,Children's & Education Services,103,Transport,503,Recharges,5017,Revenue,PUBLIC TRANSPORT.TAXI SERVICES
13/07/2022,2434558,1519.20,HADRIAN MINI BUSES,361545,Commissioning & Asset Management,Children's & Education Services,103,Transport,503,Recharges,5017,Revenue,PUBLIC TRANSPORT.TAXI SERVICES
13/07/2022,2434558,1613.98,HADRIAN MINI BUSES,361545,Commissioning & Asset Management,Children's & Education Services,103,Transport,503,Recharges,5017,Revenue,PUBLIC TRANSPORT.TAXI SERVICES
13/07/2022,2434558,1613.98,HADRIAN MINI BUSES,361545,Commissioning & Asset Management,Children's & Education Services,103,Transport,503,Recharges,5017,Revenue,PUBLIC TRANSPORT.TAXI SERVICES
13/07/2022,2434558,1708.92,HADRIAN MINI BUSES,361545,Commissioning & Asset Management,Children's & Education Services,103,Transport,503,Recharges,5017,Revenue,PUBLIC TRANSPORT.TAXI SERVICES
13/07/2022,2434558,1708.92,HADRIAN MINI BUSES,361545,Commissioning & Asset Management,Children's & Education Services,103,Transport,503,Recharges,5017,Revenue,PUBLIC TRANSPORT.TAXI SERVICES
13/07/2022,2434558,1708.92,HADRIAN MINI BUSES,361545,Commissioning & Asset Management,Children's & Education Services,103,Transport,503,Recharges,5017,Revenue,PUBLIC TRANSPORT.TAXI SERVICES
13/07/2022,2434558,1708.92,HADRIAN MINI BUSES,361545,Commissioning & Asset Management,Children's & Education Services,103,Transport,503,Recharges,5017,Revenue,PUBLIC TRANSPORT.TAXI SERVICES
13/07/2022,2434558,1708.92,HADRIAN MINI BUSES,361545,Commissioning & Asset Management,Children's & Education Services,103,Transport,503,Recharges,5017,Revenue,PUBLIC TRANSPORT.TAXI SERVICES
13/07/2022,2434558,1708.92,HADRIAN MINI BUSES,361545,Commissioning & Asset Management,Children's & Education Services,103,Transport,503,Recharges,5017,Revenue,PUBLIC TRANSPORT.TAXI SERVICES
13/07/2022,2434558,1708.92,HADRIAN MINI BUSES,361545,Commissioning & Asset Management,Children's & Education Services,103,Transport,503,Recharges,5017,Revenue,PUBLIC TRANSPORT.TAXI SERVICES
13/07/2022,2434558,2004.50,HADRIAN MINI BUSES,361545,Commissioning & Asset Management,Children's & Education Services,103,Transport,503,Recharges,5017,Revenue,PUBLIC TRANSPORT.TAXI SERVICES
13/07/2022,2434558,2278.80,HADRIAN MINI BUSES,361545,Commissioning & Asset Management,Children's & Education Services,103,Transport,503,Recharges,5017,Revenue,PUBLIC TRANSPORT.TAXI SERVICES
